Effective Date,Department,Supplier Name,Payment Date,Amount**,Purpose of Spend,Merchant Category,Card Transaction 
18/10/2018 to 19/11/2018,Adults and Communities,Activityvillage,02/11/2018,14.58,Subscriptions - General,Computer Software Stores,GPC
18/10/2018 to 19/11/2018,Adults and Communities,Airport Parking,01/11/2018,36.66,Conference - General,"Airports, Airport Terminals, Flying Fields",GPC
18/10/2018 to 19/11/2018,Adults and Communities,Amazon Prime*mt15n0um4,05/11/2018,6.66,Subscriptions - General,Continuity/Subscription Merchants,GPC
18/10/2018 to 19/11/2018,Adults and Communities,Amazon Prime*mt4o53md4,27/10/2018,6.66,Stationery - General,Continuity/Subscription Merchants,GPC
18/10/2018 to 19/11/2018,Adults and Communities,Amazon Prime*mt5cj6a24,21/10/2018,6.66,Other Expenditure - General,Continuity/Subscription Merchants,GPC
18/10/2018 to 19/11/2018,Adults and Communities,Amazon.Co.Uk*m81di50d4,15/11/2018,11.00,Other Expenditure - General,Direct Marketers - Other,GPC
18/10/2018 to 19/11/2018,Adults and Communities,Amazon.Co.Uk*m820l2ct4 Am,08/11/2018,8.25,Other Expenditure - General,Miscellaneous and Specialty Retail Stores,GPC
18/10/2018 to 19/11/2018,Adults and Communities,Amazon.Co.Uk*m82dt10l4 Am,15/11/2018,13.65,Stationery - General,Miscellaneous and Specialty Retail Stores,GPC
18/10/2018 to 19/11/2018,Adults and Communities,Amazon.Co.Uk*m83nu0014 Am,15/11/2018,20.91,General Equipment - General,Miscellaneous and Specialty Retail Stores,GPC
18/10/2018 to 19/11/2018,Adults and Communities,Amazon.Co.Uk*m84fk3o14 Am,09/11/2018,26.86,Materials - General,Miscellaneous and Specialty Retail Stores,GPC
18/10/2018 to 19/11/2018,Adults and Communities,Amazon.Co.Uk*m84wp5at4 Am,14/11/2018,7.13,General Equipment - General,Miscellaneous and Specialty Retail Stores,GPC
18/10/2018 to 19/11/2018,Adults and Communities,Amazon.Co.Uk*m86421ec4,15/11/2018,11.33,Other Expenditure - General,Direct Marketers - Other,GPC
18/10/2018 to 19/11/2018,Adults and Communities,Amazon.Co.Uk*m89tn3aa4 Am,14/11/2018,11.62,Display/Conservn/Exhibitions - Exhibitions,Miscellaneous and Specialty Retail Stores,GPC
18/10/2018 to 19/11/2018,Adults and Communities,Amazon.Co.Uk*mt0kn40v4 Am,23/10/2018,10.39,Operational Equipment - General,Miscellaneous and Specialty Retail Stores,GPC
18/10/2018 to 19/11/2018,Adults and Communities,Amazon.Co.Uk*mt0so6xy4,26/10/2018,33.00,Stationery - General,Direct Marketers - Other,GPC
18/10/2018 to 19/11/2018,Adults and Communities,Amazon.Co.Uk*mt1a176j4,31/10/2018,14.63,Stationery - General,Direct Marketers - Other,GPC
18/10/2018 to 19/11/2018,Adults and Communities,Amazon.Co.Uk*mt1k080i4 Am,23/10/2018,15.34,Stationery - General,Miscellaneous and Specialty Retail Stores,GPC
18/10/2018 to 19/11/2018,Adults and Communities,Amazon.Co.Uk*mt23y4g74 Am,25/10/2018,28.48,Stationery - General,Miscellaneous and Specialty Retail Stores,GPC
18/10/2018 to 19/11/2018,Adults and Communities,Amazon.Co.Uk*mt2y99714 Am,04/11/2018,62.58,General Equipment - General,Miscellaneous and Specialty Retail Stores,GPC
18/10/2018 to 19/11/2018,Adults and Communities,Amazon.Co.Uk*mt35i2d64,31/10/2018,21.59,Conference - General,Direct Marketers - Other,GPC
18/10/2018 to 19/11/2018,Adults and Communities,Amazon.Co.Uk*mt4ed4mt4,27/10/2018,43.98,Other Expenditure - General,Direct Marketers - Other,GPC
18/10/2018 to 19/11/2018,Adults and Communities,Amazon.Co.Uk*mt4fo6dd4,31/10/2018,13.32,Materials - General,Direct Marketers - Other,GPC
18/10/2018 to 19/11/2018,Adults and Communities,Amazon.Co.Uk*mt4hv6ds4 Am,01/11/2018,84.29,Stationery - General,Miscellaneous and Specialty Retail Stores,GPC
18/10/2018 to 19/11/2018,Adults and Communities,Amazon.Co.Uk*mt5hr6344,24/10/2018,10.38,Conference - General,Direct Marketers - Other,GPC
18/10/2018 to 19/11/2018,Adults and Communities,Amazon.Co.Uk*mt5vm1354 Am,23/10/2018,10.40,Materials - General,Miscellaneous and Specialty Retail Stores,GPC
18/10/2018 to 19/11/2018,Adults and Communities,Amazon.Co.Uk*mt63z63o4 Am,23/10/2018,11.21,Materials - General,Miscellaneous and Specialty Retail Stores,GPC
18/10/2018 to 19/11/2018,Adults and Communities,Amazon.Co.Uk*mt6ll8qj4 Am,30/10/2018,15.29,Materials - General,Miscellaneous and Specialty Retail Stores,GPC
18/10/2018 to 19/11/2018,Adults and Communities,Amazon.Co.Uk*mt7ei4wf4 Am,07/11/2018,18.49,Materials - General,Miscellaneous and Specialty Retail Stores,GPC
18/10/2018 to 19/11/2018,Adults and Communities,Amazon.Co.Uk*mt7p100s4 Am,23/10/2018,29.36,Stationery - General,Miscellaneous and Specialty Retail Stores,GPC
18/10/2018 to 19/11/2018,Adults and Communities,Amazon.Co.Uk*mt7rd8rh4 Am,06/11/2018,8.74,Stationery - General,Miscellaneous and Specialty Retail Stores,GPC
18/10/2018 to 19/11/2018,Adults and Communities,Amazon.Co.Uk*mt9f81ay4 Am,21/10/2018,12.06,Petrol/Oil/Tyres/Spares - General,Miscellaneous and Specialty Retail Stores,GPC
18/10/2018 to 19/11/2018,Adults and Communities,Amz*morgans Direct,09/11/2018,-16.92,Stationery - General,Miscellaneous and Specialty Retail Stores,GPC
18/10/2018 to 19/11/2018,Adults and Communities,Amzn Mktp Uk,17/10/2018,6.24,Display/Conservn/Exhibitions - Exhibitions,Book Stores,GPC
18/10/2018 to 19/11/2018,Adults and Communities,Amzn Mktp Uk,17/10/2018,12.00,Display/Conservn/Exhibitions - Exhibitions,Book Stores,GPC
18/10/2018 to 19/11/2018,Adults and Communities,Amzn Mktp Uk*m800j41u4 Am,16/11/2018,2.65,Books - General,Book Stores,GPC
18/10/2018 to 19/11/2018,Adults and Communities,Amzn Mktp Uk*m80bl6td4 Am,14/11/2018,49.19,Catering Equipment - General,Book Stores,GPC
18/10/2018 to 19/11/2018,Adults and Communities,Amzn Mktp Uk*m80il8t34 Am,14/11/2018,33.32,Books - General,Book Stores,GPC
18/10/2018 to 19/11/2018,Adults and Communities,Amzn Mktp Uk*m81362tz4 Am,14/11/2018,42.50,Books - General,Book Stores,GPC
18/10/2018 to 19/11/2018,Adults and Communities,Amzn Mktp Uk*m817d20s4 Am,15/11/2018,9.06,Catering Equipment - General,Book Stores,GPC
18/10/2018 to 19/11/2018,Adults and Communities,Amzn Mktp Uk*m81id73m4 Am,13/11/2018,4.67,General Equipment - General,Book Stores,GPC
18/10/2018 to 19/11/2018,Adults and Communities,Amzn Mktp Uk*m81wi0054 Am,15/11/2018,18.66,Catering Equipment - General,Book Stores,GPC
18/10/2018 to 19/11/2018,Adults and Communities,Amzn Mktp Uk*m825r9p54 Am,16/11/2018,2.78,Other Equipment & Materials - General,Book Stores,GPC
18/10/2018 to 19/11/2018,Adults and Communities,Amzn Mktp Uk*m82700eg4 Am,15/11/2018,84.99,Materials - General,Book Stores,GPC
18/10/2018 to 19/11/2018,Adults and Communities,Amzn Mktp Uk*m82q81el4 Am,15/11/2018,20.07,Catering Equipment - General,Book Stores,GPC
18/10/2018 to 19/11/2018,Adults and Communities,Amzn Mktp Uk*m82rf11y4,16/11/2018,6.58,Hospitality - General,Book Stores,GPC
18/10/2018 to 19/11/2018,Adults and Communities,Amzn Mktp Uk*m83o240f4 Am,15/11/2018,8.61,Catering Equipment - General,Book Stores,GPC
18/10/2018 to 19/11/2018,Adults and Communities,Amzn Mktp Uk*m846z2vv4 Am,18/11/2018,30.31,Other Equipment & Materials - General,Book Stores,GPC
18/10/2018 to 19/11/2018,Adults and Communities,Amzn Mktp Uk*m84g43pa4 Am,16/11/2018,3.91,Other Equipment & Materials - General,Book Stores,GPC
18/10/2018 to 19/11/2018,Adults and Communities,Amzn Mktp Uk*m84ul4o24 Am,09/11/2018,3.95,Stationery - General,Book Stores,GPC
18/10/2018 to 19/11/2018,Adults and Communities,Amzn Mktp Uk*m852z2tz4 Am,14/11/2018,29.97,Catering Equipment - General,Book Stores,GPC
18/10/2018 to 19/11/2018,Adults and Communities,Amzn Mktp Uk*m857a10m4 Am,15/11/2018,57.73,Catering Equipment - General,Book Stores,GPC
18/10/2018 to 19/11/2018,Adults and Communities,Amzn Mktp Uk*m85ky3zg4 Am,12/11/2018,5.34,General Equipment - General,Book Stores,GPC
18/10/2018 to 19/11/2018,Adults and Communities,Amzn Mktp Uk*m85r95t14 Am,14/11/2018,14.09,Books - General,Book Stores,GPC
18/10/2018 to 19/11/2018,Adults and Communities,Amzn Mktp Uk*m866o3av4 Am,14/11/2018,31.52,Books - General,Book Stores,GPC
18/10/2018 to 19/11/2018,Adults and Communities,Amzn Mktp Uk*m86d22084 Am,15/11/2018,19.97,Books - General,Book Stores,GPC
18/10/2018 to 19/11/2018,Adults and Communities,Amzn Mktp Uk*m86fu2od4 Am,09/11/2018,4.98,Stationery - General,Book Stores,GPC
18/10/2018 to 19/11/2018,Adults and Communities,Amzn Mktp Uk*m86gz2nx4 Am,12/11/2018,1.57,Stationery - General,Book Stores,GPC
18/10/2018 to 19/11/2018,Adults and Communities,Amzn Mktp Uk*m86ib80i4 Am,15/11/2018,114.15,Operational Equipment - General,Book Stores,GPC
18/10/2018 to 19/11/2018,Adults and Communities,Amzn Mktp Uk*m86lg5pp4 Am,16/11/2018,3.36,Other Equipment & Materials - General,Book Stores,GPC
18/10/2018 to 19/11/2018,Adults and Communities,Amzn Mktp Uk*m86vf73q4 Am,13/11/2018,18.29,Catering Equipment - General,Book Stores,GPC
18/10/2018 to 19/11/2018,Adults and Communities,Amzn Mktp Uk*m879w0ny4 Am,12/11/2018,2.72,General Equipment - General,Book Stores,GPC
18/10/2018 to 19/11/2018,Adults and Communities,Amzn Mktp Uk*m87cc5p54 Am,16/11/2018,2.49,Other Equipment & Materials - General,Book Stores,GPC
18/10/2018 to 19/11/2018,Adults and Communities,Amzn Mktp Uk*m87lx6a44 Am,14/11/2018,19.81,Catering Equipment - General,Book Stores,GPC
18/10/2018 to 19/11/2018,Adults and Communities,Amzn Mktp Uk*m87s58j74 Am,13/11/2018,29.97,Books - General,Book Stores,GPC
18/10/2018 to 19/11/2018,Adults and Communities,Amzn Mktp Uk*m884r1394 Am,13/11/2018,28.32,Catering Equipment - General,Book Stores,GPC
18/10/2018 to 19/11/2018,Adults and Communities,Amzn Mktp Uk*m88a05184 Am,16/11/2018,5.38,Other Equipment & Materials - General,Book Stores,GPC
18/10/2018 to 19/11/2018,Adults and Communities,Amzn Mktp Uk*m88n71ey4 Am,15/11/2018,16.44,Books - General,Book Stores,GPC
18/10/2018 to 19/11/2018,Adults and Communities,Amzn Mktp Uk*m88ve93d4 Am,13/11/2018,16.97,Catering Equipment - General,Book Stores,GPC
18/10/2018 to 19/11/2018,Adults and Communities,Amzn Mktp Uk*m893k00k4 Am,15/11/2018,291.58,IT Equipment - General,Book Stores,GPC
18/10/2018 to 19/11/2018,Adults and Communities,Amzn Mktp Uk*mt0541z44 Am,18/10/2018,16.64,Books - General,Book Stores,GPC
18/10/2018 to 19/11/2018,Adults and Communities,Amzn Mktp Uk*mt08n9qs4,31/10/2018,2.18,Stationery - General,Book Stores,GPC
18/10/2018 to 19/11/2018,Adults and Communities,Amzn Mktp Uk*mt0cg7yq4,07/11/2018,28.00,Materials - General,Book Stores,GPC
18/10/2018 to 19/11/2018,Adults and Communities,Amzn Mktp Uk*mt0jq33e4 Am,24/10/2018,31.68,Stationery - General,Book Stores,GPC
18/10/2018 to 19/11/2018,Adults and Communities,Amzn Mktp Uk*mt0o23sc4 Am,01/11/2018,91.46,Other Expenditure - General,Book Stores,GPC
18/10/2018 to 19/11/2018,Adults and Communities,Amzn Mktp Uk*mt0p85af4 Am,21/10/2018,59.96,Other Equipment & Materials - General,Book Stores,GPC
18/10/2018 to 19/11/2018,Adults and Communities,Amzn Mktp Uk*mt0x51s54,02/11/2018,4.71,Stationery - General,Book Stores,GPC
18/10/2018 to 19/11/2018,Adults and Communities,Amzn Mktp Uk*mt12p9p54,25/10/2018,132.48,Materials - General,Book Stores,GPC
18/10/2018 to 19/11/2018,Adults and Communities,Amzn Mktp Uk*mt1hr3rb4 Am,07/11/2018,16.54,Stationery - General,Book Stores,GPC
18/10/2018 to 19/11/2018,Adults and Communities,Amzn Mktp Uk*mt1i65534 Am,28/10/2018,29.92,Stationery - General,Book Stores,GPC
18/10/2018 to 19/11/2018,Adults and Communities,Amzn Mktp Uk*mt2fu32v4 Am,02/11/2018,3.57,Other Expenditure - General,Book Stores,GPC
18/10/2018 to 19/11/2018,Adults and Communities,Amzn Mktp Uk*mt2lr1w34,07/11/2018,6.99,Books - General,Book Stores,GPC
18/10/2018 to 19/11/2018,Adults and Communities,Amzn Mktp Uk*mt2tf87f4,04/11/2018,18.49,Materials - General,Book Stores,GPC
18/10/2018 to 19/11/2018,Adults and Communities,Amzn Mktp Uk*mt2w83g24,25/10/2018,10.67,Books - General,Book Stores,GPC
18/10/2018 to 19/11/2018,Adults and Communities,Amzn Mktp Uk*mt32j8db4 Am,01/11/2018,12.49,Other Expenditure - General,Book Stores,GPC
18/10/2018 to 19/11/2018,Adults and Communities,Amzn Mktp Uk*mt3ex2n94 Am,20/10/2018,22.24,Operational Equipment - General,Book Stores,GPC
18/10/2018 to 19/11/2018,Adults and Communities,Amzn Mktp Uk*mt3j54j64,20/10/2018,31.64,Books - General,Book Stores,GPC
18/10/2018 to 19/11/2018,Adults and Communities,Amzn Mktp Uk*mt3ks8ne4 Am,19/10/2018,21.92,Books - General,Book Stores,GPC
18/10/2018 to 19/11/2018,Adults and Communities,Amzn Mktp Uk*mt3r83d44,01/11/2018,14.14,Other Equipment & Materials - General,Book Stores,GPC
18/10/2018 to 19/11/2018,Adults and Communities,Amzn Mktp Uk*mt3wj53s4,21/10/2018,7.04,Stationery - General,Book Stores,GPC
18/10/2018 to 19/11/2018,Adults and Communities,Amzn Mktp Uk*mt47w6i14 Am,06/11/2018,8.24,Stationery - General,Book Stores,GPC
18/10/2018 to 19/11/2018,Adults and Communities,Amzn Mktp Uk*mt48s41m4 Am,24/10/2018,8.21,Other Expenditure - General,Book Stores,GPC
18/10/2018 to 19/11/2018,Adults and Communities,Amzn Mktp Uk*mt4r96ns4 Am,19/10/2018,4.86,Operational Equipment - General,Book Stores,GPC
18/10/2018 to 19/11/2018,Adults and Communities,Amzn Mktp Uk*mt4sa3j84 Am,21/10/2018,33.31,Stationery - General,Book Stores,GPC
18/10/2018 to 19/11/2018,Adults and Communities,Amzn Mktp Uk*mt4ur23i4,21/10/2018,32.01,Other Expenditure - General,Book Stores,GPC
18/10/2018 to 19/11/2018,Adults and Communities,Amzn Mktp Uk*mt54o67g4,04/11/2018,12.07,Materials - General,Book Stores,GPC
18/10/2018 to 19/11/2018,Adults and Communities,Amzn Mktp Uk*mt57t7j94 Am,19/10/2018,15.96,Other Equipment & Materials - General,Book Stores,GPC
18/10/2018 to 19/11/2018,Adults and Communities,Amzn Mktp Uk*mt5987of4,17/10/2018,3.52,Other Expenditure - General,Book Stores,GPC
18/10/2018 to 19/11/2018,Adults and Communities,Amzn Mktp Uk*mt5b99vd4,26/10/2018,29.97,Books - General,Book Stores,GPC
18/10/2018 to 19/11/2018,Adults and Communities,Amzn Mktp Uk*mt5jt7zu4 Am,18/10/2018,2.79,Other Equipment & Materials - General,Book Stores,GPC
18/10/2018 to 19/11/2018,Adults and Communities,Amzn Mktp Uk*mt5os6nt4,18/10/2018,14.98,Other Expenditure - General,Book Stores,GPC
18/10/2018 to 19/11/2018,Adults and Communities,Amzn Mktp Uk*mt5qc1xb4,26/10/2018,64.60,Other Expenditure - General,Book Stores,GPC
18/10/2018 to 19/11/2018,Adults and Communities,Amzn Mktp Uk*mt5tq51l4,24/10/2018,8.15,Other Equipment & Materials - General,Book Stores,GPC
18/10/2018 to 19/11/2018,Adults and Communities,Amzn Mktp Uk*mt5w90wx4 Am,07/11/2018,7.99,Stationery - General,Book Stores,GPC
18/10/2018 to 19/11/2018,Adults and Communities,Amzn Mktp Uk*mt64a38i4,30/10/2018,33.20,Materials - General,Book Stores,GPC
18/10/2018 to 19/11/2018,Adults and Communities,Amzn Mktp Uk*mt6ah92k4 Am,02/11/2018,18.99,Books - General,Book Stores,GPC
18/10/2018 to 19/11/2018,Adults and Communities,Amzn Mktp Uk*mt6dr2nk4 Am,18/10/2018,24.60,Operational Equipment - General,Book Stores,GPC
18/10/2018 to 19/11/2018,Adults and Communities,Amzn Mktp Uk*mt6or6sc4 Am,01/11/2018,6.95,Books - General,Book Stores,GPC
18/10/2018 to 19/11/2018,Adults and Communities,Amzn Mktp Uk*mt6qd50r4,23/10/2018,1.98,Operational Equipment - General,Book Stores,GPC
18/10/2018 to 19/11/2018,Adults and Communities,Amzn Mktp Uk*mt6s02i94,06/11/2018,13.33,Books - General,Book Stores,GPC
18/10/2018 to 19/11/2018,Adults and Communities,Amzn Mktp Uk*mt6sh3d84,01/11/2018,16.92,Stationery - General,Book Stores,GPC
18/10/2018 to 19/11/2018,Adults and Communities,Amzn Mktp Uk*mt6yg0ut4 Am,05/11/2018,61.25,Books - General,Book Stores,GPC
18/10/2018 to 19/11/2018,Adults and Communities,Amzn Mktp Uk*mt7dg01p4 Am,24/10/2018,56.77,Cleaning Materials - General,Book Stores,GPC
18/10/2018 to 19/11/2018,Adults and Communities,Amzn Mktp Uk*mt7dg5um4,05/11/2018,3.57,Display/Conservn/Exhibitions - Exhibitions,Book Stores,GPC
18/10/2018 to 19/11/2018,Adults and Communities,Amzn Mktp Uk*mt7l512e4 Am,02/11/2018,9.00,Operational Equipment - General,Book Stores,GPC
18/10/2018 to 19/11/2018,Adults and Communities,Amzn Mktp Uk*mt7qs4134,24/10/2018,6.75,Operational Equipment - General,Book Stores,GPC
18/10/2018 to 19/11/2018,Adults and Communities,Amzn Mktp Uk*mt7uw1vq4,26/10/2018,22.50,Books - General,Book Stores,GPC
18/10/2018 to 19/11/2018,Adults and Communities,Amzn Mktp Uk*mt8fb40s4,23/10/2018,7.80,Furniture - General,Book Stores,GPC
18/10/2018 to 19/11/2018,Adults and Communities,Amzn Mktp Uk*mt8mg0z54 Am,18/10/2018,11.96,Other Equipment & Materials - General,Book Stores,GPC
18/10/2018 to 19/11/2018,Adults and Communities,Amzn Mktp Uk*mt8n83104 Am,24/10/2018,39.99,Operational Equipment - General,Book Stores,GPC
18/10/2018 to 19/11/2018,Adults and Communities,Amzn Mktp Uk*mt8vn0by4 Am,29/10/2018,12.07,IT Equipment - General,Book Stores,GPC
18/10/2018 to 19/11/2018,Adults and Communities,Amzn Mktp Uk*mt93z00o4,23/10/2018,36.99,General Equipment - General,Book Stores,GPC
18/10/2018 to 19/11/2018,Adults and Communities,Amzn Mktp Uk*mt97j5gv4 Am,25/10/2018,14.37,Books - General,Book Stores,GPC
18/10/2018 to 19/11/2018,Adults and Communities,Amzn Mktp Uk*mt9f059w4,04/11/2018,11.23,Materials - General,Book Stores,GPC
18/10/2018 to 19/11/2018,Adults and Communities,Amzn Mktp Uk*mt9ho2s54,02/11/2018,20.58,Other Expenditure - General,Book Stores,GPC
18/10/2018 to 19/11/2018,Adults and Communities,Arcade World Uk,23/10/2018,17.17,Display/Conservn/Exhibitions - Exhibitions,Miscellaneous General Merchandise Stores,GPC
18/10/2018 to 19/11/2018,Adults and Communities,Argos Hinckley Ins,02/11/2018,29.99,Operational Equipment - DDA,Discount Stores,GPC
18/10/2018 to 19/11/2018,Adults and Communities,Argos Leic North (Inside,31/10/2018,-218.00,Materials - General,Discount Stores,GPC
18/10/2018 to 19/11/2018,Adults and Communities,Argos Ltd,31/10/2018,239.98,Materials - General,Discount Stores,GPC
18/10/2018 to 19/11/2018,Adults and Communities,Argos Ltd,05/11/2018,119.99,Materials - General,Discount Stores,GPC
18/10/2018 to 19/11/2018,Adults and Communities,Argos Retail Group,26/10/2018,376.95,Materials - General,Discount Stores,GPC
18/10/2018 to 19/11/2018,Adults and Communities,Argos Retail Group,22/10/2018,29.99,Operational Equipment - General,Discount Stores,GPC
18/10/2018 to 19/11/2018,Adults and Communities,Argos Retail Group,01/11/2018,-119.99,Other Expenditure - General,Discount Stores,GPC
18/10/2018 to 19/11/2018,Adults and Communities,Argos Retail Group,01/11/2018,119.99,Other Expenditure - General,Discount Stores,GPC
18/10/2018 to 19/11/2018,Adults and Communities,Argos Retail Group,01/11/2018,119.99,Other Expenditure - General,Discount Stores,GPC
18/10/2018 to 19/11/2018,Adults and Communities,Argos Retail Group,01/11/2018,-119.99,Other Expenditure - General,Discount Stores,GPC
18/10/2018 to 19/11/2018,Adults and Communities,Argos Retail Group,01/11/2018,-119.99,Other Expenditure - General,Discount Stores,GPC
18/10/2018 to 19/11/2018,Adults and Communities,Argos Retail Group,01/11/2018,119.99,Other Expenditure - General,Discount Stores,GPC
18/10/2018 to 19/11/2018,Adults and Communities,Argos Wigston,18/10/2018,17.95,Operational Equipment - General,Discount Stores,GPC
18/10/2018 to 19/11/2018,Adults and Communities,Asda Stores,21/10/2018,20.96,Materials - General,"Grocery Stores, Supermarkets",GPC
18/10/2018 to 19/11/2018,Adults and Communities,Asda Stores,04/11/2018,6.00,Materials - General,"Grocery Stores, Supermarkets",GPC
18/10/2018 to 19/11/2018,Adults and Communities,Asda Stores,10/11/2018,16.87,Materials - General,"Grocery Stores, Supermarkets",GPC
18/10/2018 to 19/11/2018,Adults and Communities,Asda Stores,17/11/2018,11.25,Materials - General,"Grocery Stores, Supermarkets",GPC
18/10/2018 to 19/11/2018,Adults and Communities,Asda Stores 4477,23/10/2018,10.80,Materials - General,"Grocery Stores, Supermarkets",GPC
18/10/2018 to 19/11/2018,Adults and Communities,Asda Stores 4477,29/10/2018,11.25,Materials - General,"Grocery Stores, Supermarkets",GPC
18/10/2018 to 19/11/2018,Adults and Communities,Asda Stores 4477,15/11/2018,2.81,Other Equipment & Materials - General,"Grocery Stores, Supermarkets",GPC
18/10/2018 to 19/11/2018,Adults and Communities,Asda Stores 4533,23/10/2018,28.56,Client/Volunteers - General,"Grocery Stores, Supermarkets",GPC
18/10/2018 to 19/11/2018,Adults and Communities,Asda Stores 4798,03/11/2018,16.91,Materials - General,"Grocery Stores, Supermarkets",GPC
18/10/2018 to 19/11/2018,Adults and Communities,Asda Superstore,05/11/2018,29.50,Materials - General,"Grocery Stores, Supermarkets",GPC
18/10/2018 to 19/11/2018,Adults and Communities,Asda Superstore,12/11/2018,26.04,Materials - General,"Grocery Stores, Supermarkets",GPC
18/10/2018 to 19/11/2018,Adults and Communities,B & Q 1012,12/11/2018,7.50,R & M of Buildings - General,"Building Materials, Lumber Stores",GPC
18/10/2018 to 19/11/2018,Adults and Communities,B & Q 1157,30/10/2018,24.52,R & M of Buildings - General,"Building Materials, Lumber Stores",GPC
18/10/2018 to 19/11/2018,Adults and Communities,B & Q 1157,13/11/2018,16.84,R & M of Buildings - General,"Building Materials, Lumber Stores",GPC
18/10/2018 to 19/11/2018,Adults and Communities,B&m Retail Ltd,23/10/2018,9.02,Provisions - General,Discount Stores,GPC
18/10/2018 to 19/11/2018,Adults and Communities,Bc.Basecamp 2 2997305,04/11/2018,15.44,IT Equipment - Licences,Membership Organizations-Not Elsewhere Classified,GPC
18/10/2018 to 19/11/2018,Adults and Communities,Cafe On The Square,07/11/2018,8.17,Conference - General,"Eating Places, Restaurants",GPC
18/10/2018 to 19/11/2018,Adults and Communities,Cafe Parisien,07/11/2018,11.96,Conference - General,"Eating Places, Restaurants",GPC
18/10/2018 to 19/11/2018,Adults and Communities,Central Eng Coop,06/11/2018,15.27,Materials - General,Department Stores,GPC
18/10/2018 to 19/11/2018,Adults and Communities,Central Eng Coop,13/11/2018,12.95,Materials - General,Department Stores,GPC
18/10/2018 to 19/11/2018,Adults and Communities,Central Eng Coop,18/11/2018,2.60,Materials - General,Department Stores,GPC
18/10/2018 to 19/11/2018,Adults and Communities,Central Eng Coop,16/11/2018,17.72,Other Equipment & Materials - General,Department Stores,GPC
18/10/2018 to 19/11/2018,Adults and Communities,Central Eng Coop,24/10/2018,10.20,Provisions - General,Department Stores,GPC
18/10/2018 to 19/11/2018,Adults and Communities,Central Eng Coop,05/11/2018,4.38,Provisions - General,Department Stores,GPC
18/10/2018 to 19/11/2018,Adults and Communities,Central Eng Coop,05/11/2018,-2.60,Provisions - General,Department Stores,GPC
18/10/2018 to 19/11/2018,Adults and Communities,Charnwood Borough Council,05/11/2018,3.20,Casual/Essential - General,Automobile Parking Lots and Garages,GPC
18/10/2018 to 19/11/2018,Adults and Communities,Charnwood Borough Council,15/11/2018,1.83,Casual/Essential - General,Automobile Parking Lots and Garages,GPC
18/10/2018 to 19/11/2018,Adults and Communities,Charnwood Borough Council,15/11/2018,2.20,Casual/Essential - General,Automobile Parking Lots and Garages,GPC
18/10/2018 to 19/11/2018,Adults and Communities,Charnwood Borough Council,15/11/2018,2.20,Other Transport Costs - General,Automobile Parking Lots and Garages,GPC
18/10/2018 to 19/11/2018,Adults and Communities,Charnwood Borough Council,15/11/2018,2.20,Other Transport Costs - General,Automobile Parking Lots and Garages,GPC
18/10/2018 to 19/11/2018,Adults and Communities,Creation Baumann,07/11/2018,155.28,Materials - General,"Drapery, Window Coverings, and Upholstery Stores",GPC
18/10/2018 to 19/11/2018,Adults and Communities,Cross Country Trains,19/10/2018,8.95,Client/Volunteers - General,Passenger Railways,GPC
18/10/2018 to 19/11/2018,Adults and Communities,Crossbow Education Ltd,14/11/2018,17.93,Stationery - General,Book Stores,GPC
18/10/2018 to 19/11/2018,Adults and Communities,Currys Online,23/10/2018,36.65,IT Equipment - General,"RADIO, TELEVISION, AND STEREO STORES (ELECTRONIC STORES)",GPC
18/10/2018 to 19/11/2018,Adults and Communities,Currys T/sales,12/06/2018,-385.00,General Equipment - General,"RADIO, TELEVISION, AND STEREO STORES (ELECTRONIC STORES)",GPC
18/10/2018 to 19/11/2018,Adults and Communities,Decathlon UK Vad,10/11/2018,26.65,Protective Clothing & Uniforms - General,Sporting Goods Stores,GPC
18/10/2018 to 19/11/2018,Adults and Communities,Dementia Care Matters,06/11/2018,330.00,Training Expenses - General,Vocational and Trade Schools,GPC
18/10/2018 to 19/11/2018,Adults and Communities,Dobbies,17/11/2018,3.49,Materials - General,"Lawn and Garden Supply Stores, Nurseries",GPC
18/10/2018 to 19/11/2018,Adults and Communities,Dobbies,17/11/2018,36.83,Other Expenditure - General,"Lawn and Garden Supply Stores, Nurseries",GPC
18/10/2018 to 19/11/2018,Adults and Communities,Dunelm Online Order,24/10/2018,33.29,General Equipment - General,"Drapery, Window Coverings, and Upholstery Stores",GPC
18/10/2018 to 19/11/2018,Adults and Communities,Dunelm Online Order,26/10/2018,30.95,Materials - General,"Drapery, Window Coverings, and Upholstery Stores",GPC
18/10/2018 to 19/11/2018,Adults and Communities,Dvla Vehicle Tax,13/11/2018,252.50,Road Licences - General,Government Services-Not Elsewhere Classified,GPC
18/10/2018 to 19/11/2018,Adults and Communities,East Midlands Trai,05/11/2018,40.90,Public Transport -  Staff - General,Passenger Railways,GPC
18/10/2018 to 19/11/2018,Adults and Communities,East Midlands Trai,15/11/2018,20.50,Public Transport -  Staff - General,Passenger Railways,GPC
18/10/2018 to 19/11/2018,Adults and Communities,East Midlands Trains,08/11/2018,92.00,Casual/Essential - Casual,Passenger Railways,GPC
18/10/2018 to 19/11/2018,Adults and Communities,East Midlands Trains,08/11/2018,53.50,Casual/Essential - Casual,Passenger Railways,GPC
18/10/2018 to 19/11/2018,Adults and Communities,East Midlands Trains,02/11/2018,67.00,Casual/Essential - General,Passenger Railways,GPC
18/10/2018 to 19/11/2018,Adults and Communities,East Midlands Trains,02/11/2018,46.00,Casual/Essential - General,Passenger Railways,GPC
18/10/2018 to 19/11/2018,Adults and Communities,East Midlands Trains,05/11/2018,19.95,Casual/Essential - General,Passenger Railways,GPC
18/10/2018 to 19/11/2018,Adults and Communities,East Midlands Trains,06/11/2018,52.40,Casual/Essential - General,Passenger Railways,GPC
18/10/2018 to 19/11/2018,Adults and Communities,East Midlands Trains,06/11/2018,47.50,Casual/Essential - General,Passenger Railways,GPC
18/10/2018 to 19/11/2018,Adults and Communities,East Midlands Trains,14/11/2018,39.90,Casual/Essential - General,Passenger Railways,GPC
18/10/2018 to 19/11/2018,Adults and Communities,East Midlands Trains,19/10/2018,49.00,Client/Volunteers - General,Passenger Railways,GPC
18/10/2018 to 19/11/2018,Adults and Communities,East Midlands Trains,19/10/2018,33.40,Public Transport -  Staff - General,Passenger Railways,GPC
18/10/2018 to 19/11/2018,Adults and Communities,East Midlands Trains,31/10/2018,21.80,Public Transport -  Staff - General,Passenger Railways,GPC
18/10/2018 to 19/11/2018,Adults and Communities,East Midlands Trains Ltd,15/11/2018,3.50,Public Transport -  Staff - General,Automobile Parking Lots and Garages,GPC
18/10/2018 to 19/11/2018,Adults and Communities,Eb *digital Health Mas,22/10/2018,-150.00,Conference - General,Business Services-Not Elsewhere Classified,GPC
18/10/2018 to 19/11/2018,Adults and Communities,Eb *teg Tactile Access,17/10/2018,81.44,Training Expenses - General,Business Services-Not Elsewhere Classified,GPC
18/10/2018 to 19/11/2018,Adults and Communities,Espo,22/10/2018,35.92,Other Expenditure - General,Government Services-Not Elsewhere Classified,GPC
18/10/2018 to 19/11/2018,Adults and Communities,Espo,30/10/2018,36.56,Stationery - General,Government Services-Not Elsewhere Classified,GPC
18/10/2018 to 19/11/2018,Adults and Communities,Espo,05/11/2018,16.75,Stationery - General,Government Services-Not Elsewhere Classified,GPC
18/10/2018 to 19/11/2018,Adults and Communities,Esquires Coffee Houses,01/11/2018,4.38,Other Expenditure - General,Fast-Food Restaurants (Quick Payment Service Pilot,GPC
18/10/2018 to 19/11/2018,Adults and Communities,Esquires Coffee Houses,01/11/2018,6.75,Other Expenditure - General,Fast-Food Restaurants (Quick Payment Service Pilot,GPC
18/10/2018 to 19/11/2018,Adults and Communities,Euroffice.Co.Uk,18/10/2018,103.95,Cleaning Materials - General,"Stationery, Office, and School Supply Stores",GPC
18/10/2018 to 19/11/2018,Adults and Communities,Euroffice.Co.Uk,06/11/2018,28.37,General Equipment - General,"Stationery, Office, and School Supply Stores",GPC
18/10/2018 to 19/11/2018,Adults and Communities,Euroffice.Co.Uk,12/11/2018,41.40,Stationery - General,"Stationery, Office, and School Supply Stores",GPC
18/10/2018 to 19/11/2018,Adults and Communities,Euroflorist Ab,24/10/2018,29.49,Other Expenditure - General,Florists,GPC
18/10/2018 to 19/11/2018,Adults and Communities,Facebk *56pmjhakf2,31/10/2018,17.72,Printing - General,Advertising Services,GPC
18/10/2018 to 19/11/2018,Adults and Communities,Fast Key Services Limi,02/11/2018,7.26,Furniture - General,Business Services-Not Elsewhere Classified,GPC
18/10/2018 to 19/11/2018,Adults and Communities,Fast Key Services Limi,15/11/2018,7.26,Furniture - General,Business Services-Not Elsewhere Classified,GPC
18/10/2018 to 19/11/2018,Adults and Communities,Fast Key Services Limi,24/10/2018,6.05,General Equipment - General,Business Services-Not Elsewhere Classified,GPC
18/10/2018 to 19/11/2018,Adults and Communities,Fast Key Services Limi,26/10/2018,6.05,General Equipment - General,Business Services-Not Elsewhere Classified,GPC
18/10/2018 to 19/11/2018,Adults and Communities,Fast Key Services Limi,05/11/2018,6.05,General Equipment - General,Business Services-Not Elsewhere Classified,GPC
18/10/2018 to 19/11/2018,Adults and Communities,Fast Key Services Limi,15/11/2018,7.26,General Equipment - General,Business Services-Not Elsewhere Classified,GPC
18/10/2018 to 19/11/2018,Adults and Communities,Fast Key Services Limi,15/11/2018,7.26,Other Equipment & Materials - General,Business Services-Not Elsewhere Classified,GPC
18/10/2018 to 19/11/2018,Adults and Communities,Gates Garden Centre,16/11/2018,32.50,Display/Conservn/Exhibitions - Exhibitions,"Lawn and Garden Supply Stores, Nurseries",GPC
18/10/2018 to 19/11/2018,Adults and Communities,Gates Garden Centre,16/11/2018,285.13,Display/Conservn/Exhibitions - Exhibitions,"Lawn and Garden Supply Stores, Nurseries",GPC
18/10/2018 to 19/11/2018,Adults and Communities,George Walker,18/10/2018,378.10,Other Expenditure - General,"Building Materials, Lumber Stores",GPC
18/10/2018 to 19/11/2018,Adults and Communities,Grand Central,19/10/2018,70.00,Other Equipment & Materials - General,Passenger Railways,GPC
18/10/2018 to 19/11/2018,Adults and Communities,Harborough District Co,13/11/2018,6.00,Casual/Essential - General,Government Services-Not Elsewhere Classified,GPC
18/10/2018 to 19/11/2018,Adults and Communities,"Highcross Car Park, Le",25/10/2018,4.58,Casual/Essential - General,Automobile Parking Lots and Garages,GPC
18/10/2018 to 19/11/2018,Adults and Communities,Hilton Hotels,09/11/2018,252.38,Other Expenditure - General,Hilton Hotels,GPC
18/10/2018 to 19/11/2018,Adults and Communities,Holiday Inn Leices,08/11/2018,131.67,Other Equipment & Materials - General,"Lodging-Hotels, Motels, Resorts",GPC
18/10/2018 to 19/11/2018,Adults and Communities,Home Bargains,03/11/2018,3.36,Materials - General,Hardware Stores,GPC
18/10/2018 to 19/11/2018,Adults and Communities,Home Bargains,03/11/2018,11.71,Other Expenditure - General,Hardware Stores,GPC
18/10/2018 to 19/11/2018,Adults and Communities,Home Bargains,08/11/2018,2.13,Stationery - General,Hardware Stores,GPC
18/10/2018 to 19/11/2018,Adults and Communities,Home Bargains Coalvill,25/10/2018,1.15,Other Expenditure - General,Hardware Stores,GPC
18/10/2018 to 19/11/2018,Adults and Communities,Home Bargains Coalvill,27/10/2018,1.32,Other Expenditure - General,Hardware Stores,GPC
18/10/2018 to 19/11/2018,Adults and Communities,Home Bargains Coalvill,21/10/2018,42.39,Provisions - General,Hardware Stores,GPC
18/10/2018 to 19/11/2018,Adults and Communities,Hotel On Booking.Com,18/10/2018,36.66,Training Expenses - General,"Lodging-Hotels, Motels, Resorts",GPC
18/10/2018 to 19/11/2018,Adults and Communities,Http://ace.Apprentices,05/11/2018,440.00,Exam Fees - General,"Management, Consulting and Public Relations Servic",GPC
18/10/2018 to 19/11/2018,Adults and Communities,Kaiser+kraft Ltd.,24/10/2018,801.36,Other Equipment & Materials - General,Commercial Equipment Not Elsewhere Classified,GPC
18/10/2018 to 19/11/2018,Adults and Communities,Lace Market Car Park U,13/11/2018,8.33,Public Transport -  Staff - General,Automobile Parking Lots and Garages,GPC
18/10/2018 to 19/11/2018,Adults and Communities,Lcc Catering Services,25/10/2018,5.00,Client/Volunteers - General,Government Services-Not Elsewhere Classified,GPC
18/10/2018 to 19/11/2018,Adults and Communities,Lente Designs,12/11/2018,43.78,Display/Conservn/Exhibitions - Exhibitions,"RADIO, TELEVISION, AND STEREO STORES (ELECTRONIC STORES)",GPC
18/10/2018 to 19/11/2018,Adults and Communities,Lidl UK Coalville,27/10/2018,4.83,Other Expenditure - General,"Grocery Stores, Supermarkets",GPC
18/10/2018 to 19/11/2018,Adults and Communities,Malmaison Belfast,09/11/2018,32.00,Conference - General,"Lodging-Hotels, Motels, Resorts",GPC
18/10/2018 to 19/11/2018,Adults and Communities,Malmaison Belfast,09/11/2018,32.00,Conference - General,"Lodging-Hotels, Motels, Resorts",GPC
18/10/2018 to 19/11/2018,Adults and Communities,Marks&spencer Plc,08/11/2018,84.50,Materials - General,"Grocery Stores, Supermarkets",GPC
18/10/2018 to 19/11/2018,Adults and Communities,Marks&spencer Plc,13/11/2018,5.17,Other Expenditure - General,"Grocery Stores, Supermarkets",GPC
18/10/2018 to 19/11/2018,Adults and Communities,Moo Com,05/11/2018,86.41,Conference - General,"Stationery, Office, and School Supply Stores",GPC
18/10/2018 to 19/11/2018,Adults and Communities,National Assoc,14/11/2018,82.25,General Equipment - General,"Management, Consulting and Public Relations Servic",GPC
18/10/2018 to 19/11/2018,Adults and Communities,Ncp Limited,17/10/2018,10.83,Casual/Essential - General,Automobile Parking Lots and Garages,GPC
18/10/2018 to 19/11/2018,Adults and Communities,Ncp Limited,24/10/2018,6.67,Casual/Essential - General,Automobile Parking Lots and Garages,GPC
18/10/2018 to 19/11/2018,Adults and Communities,Ncp Limited,25/10/2018,5.17,Casual/Essential - General,Automobile Parking Lots and Garages,GPC
18/10/2018 to 19/11/2018,Adults and Communities,Ncp Limited,26/10/2018,5.17,Casual/Essential - General,Automobile Parking Lots and Garages,GPC
18/10/2018 to 19/11/2018,Adults and Communities,Ncp Limited,01/11/2018,10.83,Casual/Essential - General,Automobile Parking Lots and Garages,GPC
18/10/2018 to 19/11/2018,Adults and Communities,Ncp Limited,01/11/2018,5.17,Casual/Essential - General,Automobile Parking Lots and Garages,GPC
18/10/2018 to 19/11/2018,Adults and Communities,Ncp Limited,06/11/2018,5.17,Casual/Essential - General,Automobile Parking Lots and Garages,GPC
18/10/2018 to 19/11/2018,Adults and Communities,Ncp Limited,12/11/2018,1.58,Public Transport -  Staff - General,Automobile Parking Lots and Garages,GPC
18/10/2018 to 19/11/2018,Adults and Communities,Ncp Lincoln Central,14/11/2018,11.00,Public Transport -  Staff - General,Automobile Parking Lots and Garages,GPC
18/10/2018 to 19/11/2018,Adults and Communities,Ncp Lincoln St Rumbold,14/11/2018,4.17,Public Transport -  Staff - General,Automobile Parking Lots and Garages,GPC
18/10/2018 to 19/11/2018,Adults and Communities,Nott Emt Carpark,05/11/2018,7.50,Public Transport -  Staff - General,Automobile Parking Lots and Garages,GPC
18/10/2018 to 19/11/2018,Adults and Communities,Ocado Ltd.,26/10/2018,176.51,Provisions - General,"Miscellaneous Food Stores-Convenience Stores, Mark",GPC
18/10/2018 to 19/11/2018,Adults and Communities,Ocado Ltd.,29/10/2018,193.42,Provisions - General,"Miscellaneous Food Stores-Convenience Stores, Mark",GPC
18/10/2018 to 19/11/2018,Adults and Communities,Ocado Ltd.,02/11/2018,179.59,Provisions - General,"Miscellaneous Food Stores-Convenience Stores, Mark",GPC
18/10/2018 to 19/11/2018,Adults and Communities,Ocado Ltd.,05/11/2018,10.99,Provisions - General,"Miscellaneous Food Stores-Convenience Stores, Mark",GPC
18/10/2018 to 19/11/2018,Adults and Communities,Ocado Ltd.,09/11/2018,207.63,Provisions - General,"Miscellaneous Food Stores-Convenience Stores, Mark",GPC
18/10/2018 to 19/11/2018,Adults and Communities,Ocado Ltd.,12/11/2018,200.76,Provisions - General,"Miscellaneous Food Stores-Convenience Stores, Mark",GPC
18/10/2018 to 19/11/2018,Adults and Communities,Ocado Retail Limit,19/10/2018,184.39,Materials - General,"Grocery Stores, Supermarkets",GPC
18/10/2018 to 19/11/2018,Adults and Communities,Ocado Retail Limit,22/10/2018,216.56,Materials - General,"Grocery Stores, Supermarkets",GPC
18/10/2018 to 19/11/2018,Adults and Communities,Ocado Retail Limit,05/11/2018,198.35,Materials - General,"Grocery Stores, Supermarkets",GPC
18/10/2018 to 19/11/2018,Adults and Communities,Ocado Retail Limit,16/11/2018,210.81,Materials - General,"Grocery Stores, Supermarkets",GPC
18/10/2018 to 19/11/2018,Adults and Communities,Palace Theatre,18/10/2018,3.60,Other Expenditure - General,"Drinking Places (Alcoholic Beverages)-Bars, Tavern",GPC
18/10/2018 to 19/11/2018,Adults and Communities,Parcel2go_uk,08/11/2018,25.02,Postal Services - General,"Courier Services-Air and Ground, and Freight Forw",GPC
18/10/2018 to 19/11/2018,Adults and Communities,Parking Leic Cc,14/11/2018,2.50,Casual/Essential - General,Government Services-Not Elsewhere Classified,GPC
18/10/2018 to 19/11/2018,Adults and Communities,Parking Leic Cc,25/10/2018,3.00,Client/Volunteers - General,Government Services-Not Elsewhere Classified,GPC
18/10/2018 to 19/11/2018,Adults and Communities,Parking Leic Cc,09/11/2018,8.00,Other Transport Costs - General,Government Services-Not Elsewhere Classified,GPC
18/10/2018 to 19/11/2018,Adults and Communities,Parking Leic Cc,09/11/2018,8.00,Other Transport Costs - General,Government Services-Not Elsewhere Classified,GPC
18/10/2018 to 19/11/2018,Adults and Communities,Paypal *abbeybazaar,15/11/2018,1.98,Furniture - General,"Drapery, Window Coverings, and Upholstery Stores",GPC
18/10/2018 to 19/11/2018,Adults and Communities,Paypal *adriansgap,30/10/2018,9.50,Materials - General,Miscellaneous and Specialty Retail Stores,GPC
18/10/2018 to 19/11/2018,Adults and Communities,Paypal *alzheimersr,31/10/2018,21.92,Stationery - General,"Gift, Card, Novelty, and Souvenir Shops",GPC
18/10/2018 to 19/11/2018,Adults and Communities,Paypal *blackbox-Av,26/10/2018,421.10,Display/Conservn/Exhibitions - Exhibitions,"RADIO, TELEVISION, AND STEREO STORES (ELECTRONIC STORES)",GPC
18/10/2018 to 19/11/2018,Adults and Communities,Paypal *blackburnmo,06/11/2018,26.25,Other Equipment & Materials - General,"Hobby, Toy, and Game Shops",GPC
18/10/2018 to 19/11/2018,Adults and Communities,Paypal *maaablimite,07/11/2018,24.99,Other Equipment & Materials - General,Book Stores,GPC
18/10/2018 to 19/11/2018,Adults and Communities,Paypal *membrane,28/10/2018,3.95,Materials - General,"RADIO, TELEVISION, AND STEREO STORES (ELECTRONIC STORES)",GPC
18/10/2018 to 19/11/2018,Adults and Communities,Paypal *ned Newitt,15/11/2018,7.50,Books - General,Record Shops,GPC
18/10/2018 to 19/11/2018,Adults and Communities,Paypal *newconnecti,15/11/2018,188.67,Materials - General,Miscellaneous House Furnishing Specialty Shops,GPC
18/10/2018 to 19/11/2018,Adults and Communities,Paypal *nicoledebru,13/11/2018,2.95,Other Equipment & Materials - General,Variety Stores,GPC
18/10/2018 to 19/11/2018,Adults and Communities,Paypal *onlineshop,13/11/2018,2.12,Other Equipment & Materials - General,"RADIO, TELEVISION, AND STEREO STORES (ELECTRONIC STORES)",GPC
18/10/2018 to 19/11/2018,Adults and Communities,Paypal *shirley23sh,30/10/2018,8.85,Other Equipment & Materials - General,Miscellaneous and Specialty Retail Stores,GPC
18/10/2018 to 19/11/2018,Adults and Communities,Paypal *tassellhors,30/10/2018,30.42,Other Equipment & Materials - General,"Hobby, Toy, and Game Shops",GPC
18/10/2018 to 19/11/2018,Adults and Communities,Paypal *trunetpack,08/11/2018,13.78,Educational Visits - General,Caterers,GPC
18/10/2018 to 19/11/2018,Adults and Communities,Post Office Counter,25/10/2018,2.50,Postal Services - General,Postage Stamps,GPC
18/10/2018 to 19/11/2018,Adults and Communities,Post Office Counter,30/10/2018,1.77,Postal Services - General,Postage Stamps,GPC
18/10/2018 to 19/11/2018,Adults and Communities,Post Office Counter,07/11/2018,1.77,Postal Services - General,Postage Stamps,GPC
18/10/2018 to 19/11/2018,Adults and Communities,Post Office Counter,12/11/2018,41.20,Postal Services - General,Postage Stamps,GPC
18/10/2018 to 19/11/2018,Adults and Communities,Post Office Counter,13/11/2018,13.14,Postal Services - General,Postage Stamps,GPC
18/10/2018 to 19/11/2018,Adults and Communities,Potclays Limited,30/10/2018,40.40,Materials - General,"Hobby, Toy, and Game Shops",GPC
18/10/2018 to 19/11/2018,Adults and Communities,Pottery Crafts,30/10/2018,42.30,Materials - General,Glassware and Crystal Stores,GPC
18/10/2018 to 19/11/2018,Adults and Communities,Poundland Ltd,06/11/2018,5.00,Display/Conservn/Exhibitions - Exhibitions,Discount Stores,GPC
18/10/2018 to 19/11/2018,Adults and Communities,Poundland Ltd,07/11/2018,8.33,Other Equipment & Materials - General,Discount Stores,GPC
18/10/2018 to 19/11/2018,Adults and Communities,Poundland Ltd 1142,27/10/2018,4.00,Other Expenditure - General,Discount Stores,GPC
18/10/2018 to 19/11/2018,Adults and Communities,Poundland Ltd 1142,21/10/2018,19.00,Provisions - General,Discount Stores,GPC
18/10/2018 to 19/11/2018,Adults and Communities,Poundstretcher 791,17/10/2018,18.00,Other Expenditure - General,"Drapery, Window Coverings, and Upholstery Stores",GPC
18/10/2018 to 19/11/2018,Adults and Communities,Poundstretcher 791,22/10/2018,13.00,Other Expenditure - General,"Drapery, Window Coverings, and Upholstery Stores",GPC
18/10/2018 to 19/11/2018,Adults and Communities,Poundstretcher 791,23/10/2018,9.00,Other Expenditure - General,"Drapery, Window Coverings, and Upholstery Stores",GPC
18/10/2018 to 19/11/2018,Adults and Communities,Premier Farnell,09/11/2018,57.84,IT Equipment - Purchase - Hardware,Electrical Parts and Equipment,GPC
18/10/2018 to 19/11/2018,Adults and Communities,Premier Inn 44536665,14/11/2018,47.92,Other Expenditure - General,PREMIER TRAVEL,GPC
18/10/2018 to 19/11/2018,Adults and Communities,Premier Inn44022890,07/11/2018,23.75,Subsistence - General,PREMIER TRAVEL,GPC
18/10/2018 to 19/11/2018,Adults and Communities,Premier Inn44022890,07/11/2018,23.75,Subsistence - General,PREMIER TRAVEL,GPC
18/10/2018 to 19/11/2018,Adults and Communities,Premier Inn44521690,13/11/2018,85.42,Other Expenditure - General,PREMIER TRAVEL,GPC
18/10/2018 to 19/11/2018,Adults and Communities,Premier Mobility (UK),13/11/2018,45.00,Operational Equipment - General,Laboratory/Medical/Dental/Ophthalmic Hospital Equi,GPC
18/10/2018 to 19/11/2018,Adults and Communities,Q Park Birmingham Brindle,05/11/2018,9.58,Public Transport -  Staff - General,Automobile Parking Lots and Garages,GPC
18/10/2018 to 19/11/2018,Adults and Communities,Rubiks Brand Limited,01/11/2018,11.66,Other Expenditure - General,"Hobby, Toy, and Game Shops",GPC
18/10/2018 to 19/11/2018,Adults and Communities,Sainsburys Local,19/10/2018,7.50,Materials - General,"Grocery Stores, Supermarkets",GPC
18/10/2018 to 19/11/2018,Adults and Communities,Sainsburys Local,30/10/2018,3.75,Materials - General,"Grocery Stores, Supermarkets",GPC
18/10/2018 to 19/11/2018,Adults and Communities,Sainsburys S/mkt,25/10/2018,13.42,Display/Conservn/Exhibitions - Exhibitions,"Grocery Stores, Supermarkets",GPC
18/10/2018 to 19/11/2018,Adults and Communities,Sainsburys S/mkt,07/11/2018,26.67,Display/Conservn/Exhibitions - Exhibitions,"Grocery Stores, Supermarkets",GPC
18/10/2018 to 19/11/2018,Adults and Communities,Sainsburys S/mkt,24/10/2018,17.95,Provisions - General,"Grocery Stores, Supermarkets",GPC
18/10/2018 to 19/11/2018,Adults and Communities,Sainsburys S/mkt,07/11/2018,12.50,Provisions - General,"Grocery Stores, Supermarkets",GPC
18/10/2018 to 19/11/2018,Adults and Communities,Sainsburys S/mkt,10/11/2018,13.55,Provisions - General,"Grocery Stores, Supermarkets",GPC
18/10/2018 to 19/11/2018,Adults and Communities,Sainsburys S/mkts,06/11/2018,1.42,Display/Conservn/Exhibitions - Exhibitions,"Grocery Stores, Supermarkets",GPC
18/10/2018 to 19/11/2018,Adults and Communities,Sainsburys S/mkts,07/11/2018,5.50,Provisions - General,"Grocery Stores, Supermarkets",GPC
18/10/2018 to 19/11/2018,Adults and Communities,Sainsburys Spmkts,25/10/2018,5.40,Other Expenditure - General,"Grocery Stores, Supermarkets",GPC
18/10/2018 to 19/11/2018,Adults and Communities,Screwfix Coalville,25/10/2018,22.21,Display/Conservn/Exhibitions - Exhibitions,"Building Materials, Lumber Stores",GPC
18/10/2018 to 19/11/2018,Adults and Communities,Sp * Charfleet Books,23/10/2018,40.00,Other Expenditure - General,Computer Software Stores,GPC
18/10/2018 to 19/11/2018,Adults and Communities,Sp * Mikes Electrical,17/10/2018,26.86,Display/Conservn/Exhibitions - Exhibitions,Computer Software Stores,GPC
18/10/2018 to 19/11/2018,Adults and Communities,Sp * Osprey Signs,17/10/2018,125.00,Display/Conservn/Exhibitions - Exhibitions,Computer Software Stores,GPC
18/10/2018 to 19/11/2018,Adults and Communities,Speedy Stamps,23/10/2018,11.35,Stationery - General,"Stationary, Office Supplies, Printing and Writing",GPC
18/10/2018 to 19/11/2018,Adults and Communities,St John Ambulance,13/11/2018,75.00,Training Expenses - General,Charitable and Social Service Organizations,GPC
18/10/2018 to 19/11/2018,Adults and Communities,Stansted Airport,24/10/2018,44.99,Casual/Essential - General,Automobile Parking Lots and Garages,GPC
18/10/2018 to 19/11/2018,Adults and Communities,Stansted Airport,04/11/2018,41.66,Casual/Essential - General,Automobile Parking Lots and Garages,GPC
18/10/2018 to 19/11/2018,Adults and Communities,Tesco Store 2846,16/11/2018,202.98,Materials - General,"Grocery Stores, Supermarkets",GPC
18/10/2018 to 19/11/2018,Adults and Communities,Tesco Store 2846,18/10/2018,56.56,Provisions - General,"Grocery Stores, Supermarkets",GPC
18/10/2018 to 19/11/2018,Adults and Communities,Tesco Store 2846,19/10/2018,81.62,Provisions - General,"Grocery Stores, Supermarkets",GPC
18/10/2018 to 19/11/2018,Adults and Communities,Tesco Store 2846,24/10/2018,175.02,Provisions - General,"Grocery Stores, Supermarkets",GPC
18/10/2018 to 19/11/2018,Adults and Communities,Tesco Store 2846,25/10/2018,116.88,Provisions - General,"Grocery Stores, Supermarkets",GPC
18/10/2018 to 19/11/2018,Adults and Communities,Tesco Store 2846,01/11/2018,114.01,Provisions - General,"Grocery Stores, Supermarkets",GPC
18/10/2018 to 19/11/2018,Adults and Communities,Tesco Store 2846,02/11/2018,105.64,Provisions - General,"Grocery Stores, Supermarkets",GPC
18/10/2018 to 19/11/2018,Adults and Communities,Tesco Store 2846,08/11/2018,72.85,Provisions - General,"Grocery Stores, Supermarkets",GPC
18/10/2018 to 19/11/2018,Adults and Communities,Tesco Store 2846,09/11/2018,148.11,Provisions - General,"Grocery Stores, Supermarkets",GPC
18/10/2018 to 19/11/2018,Adults and Communities,Tesco Store 2846,15/11/2018,84.25,Provisions - General,"Grocery Stores, Supermarkets",GPC
18/10/2018 to 19/11/2018,Adults and Communities,Tesco Stores 3297,25/10/2018,5.00,Other Expenditure - General,"Grocery Stores, Supermarkets",GPC
18/10/2018 to 19/11/2018,Adults and Communities,Tesco Stores 5182,07/11/2018,1.67,Display/Conservn/Exhibitions - Exhibitions,"Grocery Stores, Supermarkets",GPC
18/10/2018 to 19/11/2018,Adults and Communities,Tesco Stores 5182,29/10/2018,13.71,Materials - General,"Grocery Stores, Supermarkets",GPC
18/10/2018 to 19/11/2018,Adults and Communities,Tesco Stores 5182,19/10/2018,121.11,Provisions - General,"Grocery Stores, Supermarkets",GPC
18/10/2018 to 19/11/2018,Adults and Communities,Tesco Stores 5182,22/10/2018,162.66,Provisions - General,"Grocery Stores, Supermarkets",GPC
18/10/2018 to 19/11/2018,Adults and Communities,Tesco Stores 5182,26/10/2018,133.13,Provisions - General,"Grocery Stores, Supermarkets",GPC
18/10/2018 to 19/11/2018,Adults and Communities,Tesco Stores 5182,29/10/2018,161.96,Provisions - General,"Grocery Stores, Supermarkets",GPC
18/10/2018 to 19/11/2018,Adults and Communities,Tesco Stores 5182,02/11/2018,139.43,Provisions - General,"Grocery Stores, Supermarkets",GPC
18/10/2018 to 19/11/2018,Adults and Communities,Tesco Stores 5182,05/11/2018,134.67,Provisions - General,"Grocery Stores, Supermarkets",GPC
18/10/2018 to 19/11/2018,Adults and Communities,Tesco Stores 5182,09/11/2018,127.03,Provisions - General,"Grocery Stores, Supermarkets",GPC
18/10/2018 to 19/11/2018,Adults and Communities,Tesco Stores 5182,12/11/2018,60.75,Provisions - General,"Grocery Stores, Supermarkets",GPC
18/10/2018 to 19/11/2018,Adults and Communities,Tesco Stores 5182,16/11/2018,75.79,Provisions - General,"Grocery Stores, Supermarkets",GPC
18/10/2018 to 19/11/2018,Adults and Communities,Tesco Stores 5902,17/10/2018,8.00,Other Expenditure - General,"Grocery Stores, Supermarkets",GPC
18/10/2018 to 19/11/2018,Adults and Communities,Tesco Stores 5902,22/10/2018,8.00,Other Expenditure - General,"Grocery Stores, Supermarkets",GPC
18/10/2018 to 19/11/2018,Adults and Communities,Tesco Stores 6223,18/11/2018,6.20,Materials - General,"Grocery Stores, Supermarkets",GPC
18/10/2018 to 19/11/2018,Adults and Communities,Tesco Stores 6223,18/11/2018,1.40,Materials - General,"Grocery Stores, Supermarkets",GPC
18/10/2018 to 19/11/2018,Adults and Communities,Tfg Copy Print,18/10/2018,90.00,Operational Equipment - General,Miscellaneous Publishing and  Printing,GPC
18/10/2018 to 19/11/2018,Adults and Communities,The Book People,07/11/2018,15.00,Materials - General,Book Stores,GPC
18/10/2018 to 19/11/2018,Adults and Communities,The Book People,07/11/2018,73.96,Materials - General,Book Stores,GPC
18/10/2018 to 19/11/2018,Adults and Communities,The Forge Inn,17/10/2018,68.00,Other Expenditure - General,"Eating Places, Restaurants",GPC
18/10/2018 to 19/11/2018,Adults and Communities,The Ginger Bistro,07/11/2018,15.63,Conference - General,"Eating Places, Restaurants",GPC
18/10/2018 to 19/11/2018,Adults and Communities,The National Tramw,26/10/2018,35.83,Training Expenses - General,"Gift, Card, Novelty, and Souvenir Shops",GPC
18/10/2018 to 19/11/2018,Adults and Communities,The National Tramw,26/10/2018,14.00,Training Expenses - General,"Gift, Card, Novelty, and Souvenir Shops",GPC
18/10/2018 to 19/11/2018,Adults and Communities,The Post Office,25/10/2018,12.06,Postal Services - General,Postage Stamps,GPC
18/10/2018 to 19/11/2018,Adults and Communities,The Works,23/10/2018,12.75,Other Expenditure - General,Discount Stores,GPC
18/10/2018 to 19/11/2018,Adults and Communities,Titanic Belfast Lt,07/11/2018,15.42,Conference - General,Tourist Attractions and Exhibits,GPC
18/10/2018 to 19/11/2018,Adults and Communities,Trainline,23/10/2018,176.45,Casual/Essential - General,Passenger Railways,GPC
18/10/2018 to 19/11/2018,Adults and Communities,Trainline,25/10/2018,126.11,Casual/Essential - General,Passenger Railways,GPC
18/10/2018 to 19/11/2018,Adults and Communities,Trainline,22/10/2018,95.60,Other Equipment & Materials - General,Passenger Railways,GPC
18/10/2018 to 19/11/2018,Adults and Communities,Trainline,06/11/2018,176.45,Public Transport -  Staff - General,Passenger Railways,GPC
18/10/2018 to 19/11/2018,Adults and Communities,Travelodge Gb0000,29/10/2018,401.50,Subsistence - General,Travelodge,GPC
18/10/2018 to 19/11/2018,Adults and Communities,Triangle Nursery Ltd,13/11/2018,45.87,Other Expenditure - General,"Florists Supplies, Nursery Stock, and Flowers",GPC
18/10/2018 to 19/11/2018,Adults and Communities,Triangle Nursery Ltd,13/11/2018,93.68,Other Expenditure - General,"Florists Supplies, Nursery Stock, and Flowers",GPC
18/10/2018 to 19/11/2018,Adults and Communities,Tvlicensing.Co.Uk,23/10/2018,150.50,Other Expenditure - General,"Management, Consulting and Public Relations Servic",GPC
18/10/2018 to 19/11/2018,Adults and Communities,University Hospitals Of L,31/10/2018,3.67,Casual/Essential - General,Automobile Parking Lots and Garages,GPC
18/10/2018 to 19/11/2018,Adults and Communities,Villa Italia,08/11/2018,16.67,Conference - General,"Eating Places, Restaurants",GPC
18/10/2018 to 19/11/2018,Adults and Communities,Vistapr*vistaprint.Com,30/10/2018,55.19,Printing - General,Miscellaneous Publishing and  Printing,GPC
18/10/2018 to 19/11/2018,Adults and Communities,Vistapr*vistaprint.Com,05/11/2018,-43.20,Printing - General,Miscellaneous Publishing and  Printing,GPC
18/10/2018 to 19/11/2018,Adults and Communities,Vistapr*vistaprint.Com,05/11/2018,-11.99,Printing - General,Miscellaneous Publishing and  Printing,GPC
18/10/2018 to 19/11/2018,Adults and Communities,W Boyes & Co Ltd Coalv,25/10/2018,11.03,Other Expenditure - General,Discount Stores,GPC
18/10/2018 to 19/11/2018,Adults and Communities,W Boyes & Co Ltd Coalv,21/10/2018,48.96,Stationery - General,Discount Stores,GPC
18/10/2018 to 19/11/2018,Adults and Communities,Wagamama,09/11/2018,15.88,Conference - General,"Eating Places, Restaurants",GPC
18/10/2018 to 19/11/2018,Adults and Communities,Wh Smith,13/11/2018,45.00,Newspapers & Periodicals - General,News Dealers and Newsstands,GPC
18/10/2018 to 19/11/2018,Adults and Communities,Wildflower Favours Ltd,26/10/2018,352.00,Conference - General,"Lawn and Garden Supply Stores, Nurseries",GPC
18/10/2018 to 19/11/2018,Adults and Communities,Wilko Retail Limit,05/11/2018,29.08,Display/Conservn/Exhibitions - Exhibitions,Household Appliance Stores,GPC
18/10/2018 to 19/11/2018,Adults and Communities,Wilko Retail Limit,07/11/2018,1.67,Display/Conservn/Exhibitions - Exhibitions,Household Appliance Stores,GPC
18/10/2018 to 19/11/2018,Adults and Communities,Wilko Retail Limit,06/11/2018,5.50,Materials - General,Household Appliance Stores,GPC
18/10/2018 to 19/11/2018,Adults and Communities,Wilko Retail Limit,23/10/2018,35.40,Other Expenditure - General,Household Appliance Stores,GPC
18/10/2018 to 19/11/2018,Adults and Communities,Wilko Retail Limit,25/10/2018,11.25,Other Expenditure - General,Household Appliance Stores,GPC
18/10/2018 to 19/11/2018,Adults and Communities,Wm Morrisons Store,17/10/2018,32.77,Materials - General,"Grocery Stores, Supermarkets",GPC
18/10/2018 to 19/11/2018,Adults and Communities,Wm Morrisons Store,20/10/2018,13.81,Materials - General,"Grocery Stores, Supermarkets",GPC
18/10/2018 to 19/11/2018,Adults and Communities,Wm Morrisons Store,23/10/2018,24.17,Materials - General,"Grocery Stores, Supermarkets",GPC
18/10/2018 to 19/11/2018,Adults and Communities,Wm Morrisons Store,25/10/2018,51.19,Materials - General,"Grocery Stores, Supermarkets",GPC
18/10/2018 to 19/11/2018,Adults and Communities,Wm Morrisons Store,27/10/2018,8.80,Materials - General,"Grocery Stores, Supermarkets",GPC
18/10/2018 to 19/11/2018,Adults and Communities,Wm Morrisons Store,01/11/2018,12.25,Materials - General,"Grocery Stores, Supermarkets",GPC
18/10/2018 to 19/11/2018,Adults and Communities,Wm Morrisons Store,07/11/2018,18.19,Materials - General,"Grocery Stores, Supermarkets",GPC
18/10/2018 to 19/11/2018,Adults and Communities,Wm Morrisons Store,15/11/2018,8.20,Materials - General,"Grocery Stores, Supermarkets",GPC
18/10/2018 to 19/11/2018,Adults and Communities,Wm Morrisons Store,15/11/2018,20.55,Materials - General,"Grocery Stores, Supermarkets",GPC
18/10/2018 to 19/11/2018,Adults and Communities,Wm Morrisons Store,17/11/2018,15.04,Materials - General,"Grocery Stores, Supermarkets",GPC
18/10/2018 to 19/11/2018,Adults and Communities,Wm Morrisons Store,17/11/2018,68.92,Materials - General,"Grocery Stores, Supermarkets",GPC
18/10/2018 to 19/11/2018,Adults and Communities,Wm Morrisons Store,18/11/2018,3.30,Materials - General,"Grocery Stores, Supermarkets",GPC
18/10/2018 to 19/11/2018,Adults and Communities,Wm Morrisons Store,27/10/2018,7.25,Other Expenditure - General,"Grocery Stores, Supermarkets",GPC
18/10/2018 to 19/11/2018,Adults and Communities,Wm Morrisons Store,23/10/2018,89.45,Provisions - General,"Grocery Stores, Supermarkets",GPC
18/10/2018 to 19/11/2018,Adults and Communities,Wm Morrisons Store,23/10/2018,22.04,Provisions - General,"Grocery Stores, Supermarkets",GPC
18/10/2018 to 19/11/2018,Adults and Communities,Wm Morrisons Store,27/10/2018,14.36,Provisions - General,"Grocery Stores, Supermarkets",GPC
18/10/2018 to 19/11/2018,Adults and Communities,Www.Argos.Co.Uk,08/11/2018,28.94,General Equipment - General,Discount Stores,GPC
18/10/2018 to 19/11/2018,Adults and Communities,Www.Argos.Co.Uk,17/10/2018,21.62,Other Equipment & Materials - General,Discount Stores,GPC
18/10/2018 to 19/11/2018,Adults and Communities,Www.Bishopg.Ac.Uk,02/11/2018,45.00,Educational Visits - General,"Colleges, Universities, Professional Schools, and",GPC
18/10/2018 to 19/11/2018,Adults and Communities,Www.Careshop.Co.Uk,18/10/2018,46.41,Cleaning Materials - General,Miscellaneous and Specialty Retail Stores,GPC
18/10/2018 to 19/11/2018,Adults and Communities,Www.Complete-Costumes.,16/11/2018,103.99,Display/Conservn/Exhibitions - Exhibitions,"Clothing Rental-Costumes, Uniforms",GPC
18/10/2018 to 19/11/2018,Adults and Communities,Www.Ezrshelving.Com,02/11/2018,46.95,Materials - General,Miscellaneous General Merchandise Stores,GPC
18/10/2018 to 19/11/2018,Adults and Communities,Www.Goleicestershire.C,26/10/2018,25.00,Subscriptions - General,Travel Agencies,GPC
18/10/2018 to 19/11/2018,Adults and Communities,Www.Hobbycraft.Co.Uk,31/10/2018,24.00,Conference - General,"Artist Supply Stores, Craft Shops",GPC
18/10/2018 to 19/11/2018,Adults and Communities,Www.Neopost.Co.Uk,31/10/2018,480.00,Postal Services - General,"Stationary, Office Supplies, Printing and Writing",GPC
18/10/2018 to 19/11/2018,Adults and Communities,Www.Neopost.Co.Uk,31/10/2018,480.00,Postal Services - General,"Stationary, Office Supplies, Printing and Writing",GPC
18/10/2018 to 19/11/2018,Adults and Communities,Www.Partypacks.Co.Uk,17/10/2018,18.45,Operational Equipment - General,Miscellaneous General Merchandise Stores,GPC
18/10/2018 to 19/11/2018,Adults and Communities,Www.Postofficeshop.Co.Uk,18/10/2018,54.96,Cleaning Materials - General,"Stationary, Office Supplies, Printing and Writing",GPC
18/10/2018 to 19/11/2018,Adults and Communities,Www.Postofficeshop.Co.Uk,18/10/2018,27.48,Cleaning Materials - General,"Stationary, Office Supplies, Printing and Writing",GPC
18/10/2018 to 19/11/2018,Adults and Communities,Www.Reallyusefulstorag,22/10/2018,69.23,Other Expenditure - General,Industrial Supplies Not Elsewhere Classified,GPC
18/10/2018 to 19/11/2018,Adults and Communities,Www.Rhodesandscholes.C,05/11/2018,183.50,Furniture - General,Commercial Furniture,GPC
18/10/2018 to 19/11/2018,Adults and Communities,Www.Royalmint.Com,30/10/2018,60.00,Client/Volunteers - General,"Gift, Card, Novelty, and Souvenir Shops",GPC
18/10/2018 to 19/11/2018,Adults and Communities,Www.Ryman.Co.Uk,09/10/2018,-89.99,Stationery - General,"Stationery, Office, and School Supply Stores",GPC
18/10/2018 to 19/11/2018,Adults and Communities,Www.Ryman.Co.Uk,29/10/2018,22.44,Stationery - General,"Stationery, Office, and School Supply Stores",GPC
18/10/2018 to 19/11/2018,Adults and Communities,Www.Ryman.Co.Uk,07/11/2018,8.92,Stationery - General,"Stationery, Office, and School Supply Stores",GPC
18/10/2018 to 19/11/2018,Adults and Communities,Www.Ryman.Co.Uk,07/11/2018,-1.99,Stationery - General,"Stationery, Office, and School Supply Stores",GPC
18/10/2018 to 19/11/2018,Adults and Communities,Www.Talktalkbusiness.C,22/10/2018,66.22,Telephones - General,Telecommunication Equipment Including Telephone Sa,GPC
18/10/2018 to 19/11/2018,Adults and Communities,Www.Zen.Co.Uk,29/10/2018,34.76,Telephones - General,Computer Network/Information Services,GPC
18/10/2018 to 19/11/2018,Adults and Communities,Information not known,05/11/2018,0.42,IT Equipment - Licences,Misc-Unknown,GPC
18/10/2018 to 19/11/2018,C&YPS-Non Delegated,360 Play (Leicester) L,24/10/2018,3.95,Other Transfer Payments - Section 23 Grants,RECREATION SERVICES--NOT ELSEWHERE CLASSIFIED,GPC
18/10/2018 to 19/11/2018,C&YPS-Non Delegated,360 Play (Leicester) L,24/10/2018,5.60,Other Transfer Payments - Section 23 Grants,RECREATION SERVICES--NOT ELSEWHERE CLASSIFIED,GPC
18/10/2018 to 19/11/2018,C&YPS-Non Delegated,360 Play (Leicester) L,24/10/2018,4.80,Other Transfer Payments - Section 23 Grants,RECREATION SERVICES--NOT ELSEWHERE CLASSIFIED,GPC
18/10/2018 to 19/11/2018,C&YPS-Non Delegated,Aldi 19 772,14/11/2018,16.11,Other Equipment & Materials - General,"Grocery Stores, Supermarkets",GPC
18/10/2018 to 19/11/2018,C&YPS-Non Delegated,Aldi 19 772,15/11/2018,10.74,Other Equipment & Materials - General,"Grocery Stores, Supermarkets",GPC
18/10/2018 to 19/11/2018,C&YPS-Non Delegated,Aldi 21 772,29/10/2018,27.97,Other Expenditure - General,"Grocery Stores, Supermarkets",GPC
18/10/2018 to 19/11/2018,C&YPS-Non Delegated,Aldi 25 774,08/11/2018,24.99,Other Transfer Payments - Section 24,"Grocery Stores, Supermarkets",GPC
18/10/2018 to 19/11/2018,C&YPS-Non Delegated,Aldi 25 774,08/11/2018,29.70,Other Transfer Payments - Section 24,"Grocery Stores, Supermarkets",GPC
18/10/2018 to 19/11/2018,C&YPS-Non Delegated,Aldi 27 772,12/11/2018,26.82,Other Expenditure - General,"Grocery Stores, Supermarkets",GPC
18/10/2018 to 19/11/2018,C&YPS-Non Delegated,Aldi 47 772,07/11/2018,28.05,Other Equipment & Materials - General,"Grocery Stores, Supermarkets",GPC
18/10/2018 to 19/11/2018,C&YPS-Non Delegated,Aldi 54 772,08/11/2018,4.43,General Equipment - General,"Grocery Stores, Supermarkets",GPC
18/10/2018 to 19/11/2018,C&YPS-Non Delegated,Aldi 54 772,05/11/2018,21.85,Other Expenditure - General,"Grocery Stores, Supermarkets",GPC
18/10/2018 to 19/11/2018,C&YPS-Non Delegated,Aldi 91 772,31/10/2018,37.12,Other Transfer Payments - General,"Grocery Stores, Supermarkets",GPC
18/10/2018 to 19/11/2018,C&YPS-Non Delegated,Aldi 91 772,12/11/2018,18.51,Provisions - General,"Grocery Stores, Supermarkets",GPC
18/10/2018 to 19/11/2018,C&YPS-Non Delegated,Aldi Stores Ltd,29/10/2018,5.17,Other Equipment & Materials - General,"Grocery Stores, Supermarkets",GPC
18/10/2018 to 19/11/2018,C&YPS-Non Delegated,Amazon Prime*m88bq1fy4,09/11/2018,6.66,Other Equipment & Materials - General,Continuity/Subscription Merchants,GPC
18/10/2018 to 19/11/2018,C&YPS-Non Delegated,Amazon.Co.Uk*m88vm3nq4 Am,12/11/2018,39.06,Stationery - General,Miscellaneous and Specialty Retail Stores,GPC
18/10/2018 to 19/11/2018,C&YPS-Non Delegated,Amazon.Co.Uk*m89095cy4 Am,08/11/2018,11.11,Stationery - General,Miscellaneous and Specialty Retail Stores,GPC
18/10/2018 to 19/11/2018,C&YPS-Non Delegated,Amazon.Co.Uk*m896k3jd4 Am,13/11/2018,13.32,Other Equipment & Materials - General,Miscellaneous and Specialty Retail Stores,GPC
18/10/2018 to 19/11/2018,C&YPS-Non Delegated,Amazon.Co.Uk*m89mz7f44 Am,09/11/2018,19.84,Other Expenditure - General,Miscellaneous and Specialty Retail Stores,GPC
18/10/2018 to 19/11/2018,C&YPS-Non Delegated,Amazon.Co.Uk*mt03j6hx4 Am,29/10/2018,84.77,Materials - General,Miscellaneous and Specialty Retail Stores,GPC
18/10/2018 to 19/11/2018,C&YPS-Non Delegated,Amazon.Co.Uk*mt25l5ov4,17/10/2018,52.44,Other Equipment & Materials - General,Direct Marketers - Other,GPC
18/10/2018 to 19/11/2018,C&YPS-Non Delegated,Amazon.Co.Uk*mt3ux6gg4 Am,25/10/2018,20.25,Other Transfer Payments - Leaving Care Grants,Miscellaneous and Specialty Retail Stores,GPC
18/10/2018 to 19/11/2018,C&YPS-Non Delegated,Amazon.Co.Uk*mt4ip3bd4 Am,29/10/2018,59.32,Materials - General,Miscellaneous and Specialty Retail Stores,GPC
18/10/2018 to 19/11/2018,C&YPS-Non Delegated,Amazon.Co.Uk*mt57o4me4,27/10/2018,19.43,General Equipment - General,Direct Marketers - Other,GPC
18/10/2018 to 19/11/2018,C&YPS-Non Delegated,Amazon.Co.Uk*mt5r01ti4 Am,20/10/2018,29.65,Other Equipment & Materials - General,Miscellaneous and Specialty Retail Stores,GPC
18/10/2018 to 19/11/2018,C&YPS-Non Delegated,Amazon.Co.Uk*mt60h6t94 Am,20/10/2018,20.09,Other Equipment & Materials - General,Miscellaneous and Specialty Retail Stores,GPC
18/10/2018 to 19/11/2018,C&YPS-Non Delegated,Amazon.Co.Uk*mt73t76y4,31/10/2018,49.92,Provisions - General,Direct Marketers - Other,GPC
18/10/2018 to 19/11/2018,C&YPS-Non Delegated,Amazon.Co.Uk*mt7i078q4 Am,30/10/2018,8.59,Other Equipment & Materials - General,Miscellaneous and Specialty Retail Stores,GPC
18/10/2018 to 19/11/2018,C&YPS-Non Delegated,Amazon.Co.Uk*mt8pe0434,17/10/2018,90.87,Other Equipment & Materials - General,Direct Marketers - Other,GPC
18/10/2018 to 19/11/2018,C&YPS-Non Delegated,Amazon.Co.Uk*mt9337h34 Am,29/10/2018,13.13,Materials - General,Miscellaneous and Specialty Retail Stores,GPC
18/10/2018 to 19/11/2018,C&YPS-Non Delegated,Amf Bowling,17/10/2018,66.56,Public Transport -  Staff - General,"Membership Clubs (Sports, Recreation, Athletic), C",GPC
18/10/2018 to 19/11/2018,C&YPS-Non Delegated,Amzn Mktp UK Amazon.Co.Uk,18/10/2018,15.49,Books - General,Book Stores,GPC
18/10/2018 to 19/11/2018,C&YPS-Non Delegated,Amzn Mktp UK Amazon.Co.Uk,18/10/2018,26.88,Conference - General,Book Stores,GPC
18/10/2018 to 19/11/2018,C&YPS-Non Delegated,Amzn Mktp UK Amazon.Co.Uk,18/10/2018,6.87,Other Equipment & Materials - General,Book Stores,GPC
18/10/2018 to 19/11/2018,C&YPS-Non Delegated,Amzn Mktp UK Amazon.Co.Uk,30/10/2018,-6.99,Other Equipment & Materials - General,Book Stores,GPC
18/10/2018 to 19/11/2018,C&YPS-Non Delegated,Amzn Mktp Uk*m80w66124 Am,15/11/2018,7.91,Other Transfer Payments - Leaving Care Grants,Book Stores,GPC
18/10/2018 to 19/11/2018,C&YPS-Non Delegated,Amzn Mktp Uk*m818k50a4 Am,15/11/2018,11.70,Other Equipment & Materials - General,Book Stores,GPC
18/10/2018 to 19/11/2018,C&YPS-Non Delegated,Amzn Mktp Uk*m81by7fd4 Am,09/11/2018,21.96,Provisions - General,Book Stores,GPC
18/10/2018 to 19/11/2018,C&YPS-Non Delegated,Amzn Mktp Uk*m81kz6fn4 Am,10/11/2018,3.18,Other Equipment & Materials - General,Book Stores,GPC
18/10/2018 to 19/11/2018,C&YPS-Non Delegated,Amzn Mktp Uk*m81su8zc4 Am,12/11/2018,24.06,Stationery - General,Book Stores,GPC
18/10/2018 to 19/11/2018,C&YPS-Non Delegated,Amzn Mktp Uk*m81u50ze4 Am,12/11/2018,6.94,Other Equipment & Materials - General,Book Stores,GPC
18/10/2018 to 19/11/2018,C&YPS-Non Delegated,Amzn Mktp Uk*m82yd5z14 Am,12/11/2018,5.61,Other Equipment & Materials - General,Book Stores,GPC
18/10/2018 to 19/11/2018,C&YPS-Non Delegated,Amzn Mktp Uk*m831z40g4 Am,15/11/2018,3.99,Other Equipment & Materials - General,Book Stores,GPC
18/10/2018 to 19/11/2018,C&YPS-Non Delegated,Amzn Mktp Uk*m833d7n64 Am,12/11/2018,11.98,Stationery - General,Book Stores,GPC
18/10/2018 to 19/11/2018,C&YPS-Non Delegated,Amzn Mktp Uk*m83u33fy4 Am,09/11/2018,4.32,Other Equipment & Materials - General,Book Stores,GPC
18/10/2018 to 19/11/2018,C&YPS-Non Delegated,Amzn Mktp Uk*m83yf1jy4 Am,13/11/2018,37.98,Materials - General,Book Stores,GPC
18/10/2018 to 19/11/2018,C&YPS-Non Delegated,Amzn Mktp Uk*m84n641l4 Am,16/11/2018,41.31,Other Transfer Payments - Leaving Care Grants,Book Stores,GPC
18/10/2018 to 19/11/2018,C&YPS-Non Delegated,Amzn Mktp Uk*m84o614r4 Am,10/11/2018,12.99,Other Equipment & Materials - General,Book Stores,GPC
18/10/2018 to 19/11/2018,C&YPS-Non Delegated,Amzn Mktp Uk*m84p24jn4 Am,13/11/2018,68.40,Other Equipment & Materials - General,Book Stores,GPC
18/10/2018 to 19/11/2018,C&YPS-Non Delegated,Amzn Mktp Uk*m859c73f4 Am,12/11/2018,26.92,Stationery - General,Book Stores,GPC
18/10/2018 to 19/11/2018,C&YPS-Non Delegated,Amzn Mktp Uk*m85ig01r4 Am,16/11/2018,19.95,Other Equipment & Materials - General,Book Stores,GPC
18/10/2018 to 19/11/2018,C&YPS-Non Delegated,Amzn Mktp Uk*m85ms1f54 Am,09/11/2018,1.70,Other Equipment & Materials - General,Book Stores,GPC
18/10/2018 to 19/11/2018,C&YPS-Non Delegated,Amzn Mktp Uk*m85nj8ja4 Am,13/11/2018,15.98,Other Equipment & Materials - General,Book Stores,GPC
18/10/2018 to 19/11/2018,C&YPS-Non Delegated,Amzn Mktp Uk*m85yp8gs4 Am,17/11/2018,32.45,Other Equipment & Materials - General,Book Stores,GPC
18/10/2018 to 19/11/2018,C&YPS-Non Delegated,Amzn Mktp Uk*m86ox6pj4 Am,16/11/2018,13.74,Other Transfer Payments - Leaving Care Grants,Book Stores,GPC
18/10/2018 to 19/11/2018,C&YPS-Non Delegated,Amzn Mktp Uk*m87q25fa4 Am,10/11/2018,71.02,Provisions - General,Book Stores,GPC
18/10/2018 to 19/11/2018,C&YPS-Non Delegated,Amzn Mktp Uk*m87r031s4 Am,16/11/2018,4.37,Other Equipment & Materials - General,Book Stores,GPC
18/10/2018 to 19/11/2018,C&YPS-Non Delegated,Amzn Mktp Uk*m87ri1104 Am,16/11/2018,15.82,Other Transfer Payments - Leaving Care Grants,Book Stores,GPC
18/10/2018 to 19/11/2018,C&YPS-Non Delegated,Amzn Mktp Uk*m88j30of4,09/11/2018,6.38,Other Equipment & Materials - General,Book Stores,GPC
18/10/2018 to 19/11/2018,C&YPS-Non Delegated,Amzn Mktp Uk*m88pe0tl4 Am,14/11/2018,8.79,Other Equipment & Materials - General,Book Stores,GPC
18/10/2018 to 19/11/2018,C&YPS-Non Delegated,Amzn Mktp Uk*m88u23az4 Am,14/11/2018,7.86,Other Equipment & Materials - General,Book Stores,GPC
18/10/2018 to 19/11/2018,C&YPS-Non Delegated,Amzn Mktp Uk*m89ab0pp4 Am,16/11/2018,16.66,Other Equipment & Materials - General,Book Stores,GPC
18/10/2018 to 19/11/2018,C&YPS-Non Delegated,Amzn Mktp Uk*m89n22j64 Am,13/11/2018,16.00,Other Equipment & Materials - General,Book Stores,GPC
18/10/2018 to 19/11/2018,C&YPS-Non Delegated,Amzn Mktp Uk*m89xz7e34 Am,15/11/2018,144.51,Stationery - General,Book Stores,GPC
18/10/2018 to 19/11/2018,C&YPS-Non Delegated,Amzn Mktp Uk*mt03658u4 Am,30/10/2018,16.62,Other Equipment & Materials - General,Book Stores,GPC
18/10/2018 to 19/11/2018,C&YPS-Non Delegated,Amzn Mktp Uk*mt0472vp4 Am,26/10/2018,6.99,Other Equipment & Materials - General,Book Stores,GPC
18/10/2018 to 19/11/2018,C&YPS-Non Delegated,Amzn Mktp Uk*mt04b8cv4 Am,17/10/2018,3.42,Stationery - General,Book Stores,GPC
18/10/2018 to 19/11/2018,C&YPS-Non Delegated,Amzn Mktp Uk*mt07h4ol4 Am,16/10/2018,3.20,General Equipment - General,Book Stores,GPC
18/10/2018 to 19/11/2018,C&YPS-Non Delegated,Amzn Mktp Uk*mt07s14w4 Am,17/10/2018,30.57,General Equipment - General,Book Stores,GPC
18/10/2018 to 19/11/2018,C&YPS-Non Delegated,Amzn Mktp Uk*mt09e3am4 Am,20/10/2018,24.47,Other Transfer Payments - Leaving Care Grants,Book Stores,GPC
18/10/2018 to 19/11/2018,C&YPS-Non Delegated,Amzn Mktp Uk*mt0o15sb4,01/11/2018,21.44,Other Equipment & Materials - General,Book Stores,GPC
18/10/2018 to 19/11/2018,C&YPS-Non Delegated,Amzn Mktp Uk*mt18a45t4,28/10/2018,23.48,Provisions - General,Book Stores,GPC
18/10/2018 to 19/11/2018,C&YPS-Non Delegated,Amzn Mktp Uk*mt1xr4w64 Am,07/11/2018,10.82,Provisions - General,Book Stores,GPC
18/10/2018 to 19/11/2018,C&YPS-Non Delegated,Amzn Mktp Uk*mt2ah0n74 Am,18/10/2018,30.04,General Equipment - General,Book Stores,GPC
18/10/2018 to 19/11/2018,C&YPS-Non Delegated,Amzn Mktp Uk*mt2q70l14,18/10/2018,4.96,Stationery - General,Book Stores,GPC
18/10/2018 to 19/11/2018,C&YPS-Non Delegated,Amzn Mktp Uk*mt2rh51q4,24/10/2018,10.75,Other Transfer Payments - Leaving Care Grants,Book Stores,GPC
18/10/2018 to 19/11/2018,C&YPS-Non Delegated,Amzn Mktp Uk*mt3425cd4 Am,17/10/2018,1.26,General Equipment - General,Book Stores,GPC
18/10/2018 to 19/11/2018,C&YPS-Non Delegated,Amzn Mktp Uk*mt36q20b4 Am,22/10/2018,21.00,Other Equipment & Materials - General,Book Stores,GPC
18/10/2018 to 19/11/2018,C&YPS-Non Delegated,Amzn Mktp Uk*mt39q7b24 Am,29/10/2018,84.72,Books - General,Book Stores,GPC
18/10/2018 to 19/11/2018,C&YPS-Non Delegated,Amzn Mktp Uk*mt3lb2js4 Am,19/10/2018,3.88,Other Equipment & Materials - General,Book Stores,GPC
18/10/2018 to 19/11/2018,C&YPS-Non Delegated,Amzn Mktp Uk*mt3wc2ze4 Am,18/10/2018,2.93,Other Equipment & Materials - General,Book Stores,GPC
18/10/2018 to 19/11/2018,C&YPS-Non Delegated,Amzn Mktp Uk*mt3wj53s4,21/10/2018,17.26,Other Transfer Payments - Sector 17- Other,Book Stores,GPC
18/10/2018 to 19/11/2018,C&YPS-Non Delegated,Amzn Mktp Uk*mt3zc4w04 Am,07/11/2018,76.98,Other Transfer Payments - Leaving Care Grants,Book Stores,GPC
18/10/2018 to 19/11/2018,C&YPS-Non Delegated,Amzn Mktp Uk*mt44h8an4 Am,22/10/2018,8.29,Other Equipment & Materials - General,Book Stores,GPC
18/10/2018 to 19/11/2018,C&YPS-Non Delegated,Amzn Mktp Uk*mt45g6oj4 Am,17/10/2018,12.42,Stationery - General,Book Stores,GPC
18/10/2018 to 19/11/2018,C&YPS-Non Delegated,Amzn Mktp Uk*mt4c71dn4 Am,31/10/2018,26.84,Provisions - General,Book Stores,GPC
18/10/2018 to 19/11/2018,C&YPS-Non Delegated,Amzn Mktp Uk*mt4er3dn4,01/11/2018,41.29,Other Transfer Payments - Leaving Care Grants,Book Stores,GPC
18/10/2018 to 19/11/2018,C&YPS-Non Delegated,Amzn Mktp Uk*mt4kb4d24,01/11/2018,10.98,Books - General,Book Stores,GPC
18/10/2018 to 19/11/2018,C&YPS-Non Delegated,Amzn Mktp Uk*mt4yp2i94 Am,06/11/2018,4.99,Other Expenditure - General,Book Stores,GPC
18/10/2018 to 19/11/2018,C&YPS-Non Delegated,Amzn Mktp Uk*mt5303ws4 Am,07/11/2018,20.82,Provisions - General,Book Stores,GPC
18/10/2018 to 19/11/2018,C&YPS-Non Delegated,Amzn Mktp Uk*mt5412c54 Am,17/10/2018,3.29,General Equipment - General,Book Stores,GPC
18/10/2018 to 19/11/2018,C&YPS-Non Delegated,Amzn Mktp Uk*mt5590dz4 Am,31/10/2018,15.06,Other Equipment & Materials - General,Book Stores,GPC
18/10/2018 to 19/11/2018,C&YPS-Non Delegated,Amzn Mktp Uk*mt58m3l54 Am,18/10/2018,1.17,Stationery - General,Book Stores,GPC
18/10/2018 to 19/11/2018,C&YPS-Non Delegated,Amzn Mktp Uk*mt5af3ou4 Am,16/10/2018,33.16,General Equipment - General,Book Stores,GPC
18/10/2018 to 19/11/2018,C&YPS-Non Delegated,Amzn Mktp Uk*mt5d09hk4 Am,29/10/2018,7.99,Other Equipment & Materials - General,Book Stores,GPC
18/10/2018 to 19/11/2018,C&YPS-Non Delegated,Amzn Mktp Uk*mt5gn9334 Am,22/10/2018,5.48,Other Equipment & Materials - General,Book Stores,GPC
18/10/2018 to 19/11/2018,C&YPS-Non Delegated,Amzn Mktp Uk*mt5im2934,05/11/2018,17.74,Other Equipment & Materials - General,Book Stores,GPC
18/10/2018 to 19/11/2018,C&YPS-Non Delegated,Amzn Mktp Uk*mt5vo4hj4 Am,29/10/2018,15.47,Other Equipment & Materials - General,Book Stores,GPC
18/10/2018 to 19/11/2018,C&YPS-Non Delegated,Amzn Mktp Uk*mt5yw7av4 Am,21/10/2018,35.73,Other Equipment & Materials - General,Book Stores,GPC
18/10/2018 to 19/11/2018,C&YPS-Non Delegated,Amzn Mktp Uk*mt5zq4ed4 Am,22/10/2018,3.18,Other Equipment & Materials - General,Book Stores,GPC
18/10/2018 to 19/11/2018,C&YPS-Non Delegated,Amzn Mktp Uk*mt6825uq4 Am,05/11/2018,12.38,Other Equipment & Materials - General,Book Stores,GPC
18/10/2018 to 19/11/2018,C&YPS-Non Delegated,Amzn Mktp Uk*mt6pb3r74 Am,06/11/2018,9.98,Other Transfer Payments - Section 24,Book Stores,GPC
18/10/2018 to 19/11/2018,C&YPS-Non Delegated,Amzn Mktp Uk*mt78o7dd4,01/11/2018,9.16,Other Transfer Payments - Leaving Care Grants,Book Stores,GPC
18/10/2018 to 19/11/2018,C&YPS-Non Delegated,Amzn Mktp Uk*mt7i32sz4,02/11/2018,18.20,Other Equipment & Materials - General,Book Stores,GPC
18/10/2018 to 19/11/2018,C&YPS-Non Delegated,Amzn Mktp Uk*mt7mc9aa4 Am,21/10/2018,24.79,Other Equipment & Materials - General,Book Stores,GPC
18/10/2018 to 19/11/2018,C&YPS-Non Delegated,Amzn Mktp Uk*mt83x5tx4 Am,20/10/2018,2.07,Other Equipment & Materials - General,Book Stores,GPC
18/10/2018 to 19/11/2018,C&YPS-Non Delegated,Amzn Mktp Uk*mt84m2lv4 Am,18/10/2018,19.96,General Equipment - General,Book Stores,GPC
18/10/2018 to 19/11/2018,C&YPS-Non Delegated,Amzn Mktp Uk*mt87o46k4 Am,31/10/2018,15.05,Other Equipment & Materials - General,Book Stores,GPC
18/10/2018 to 19/11/2018,C&YPS-Non Delegated,Amzn Mktp Uk*mt8hk4hm4 Am,29/10/2018,83.90,Other Equipment & Materials - General,Book Stores,GPC
18/10/2018 to 19/11/2018,C&YPS-Non Delegated,Amzn Mktp Uk*mt8vi5s94,02/11/2018,21.20,Other Equipment & Materials - General,Book Stores,GPC
18/10/2018 to 19/11/2018,C&YPS-Non Delegated,Amzn Mktp Uk*mt90i55m4 Am,28/10/2018,4.50,Other Equipment & Materials - General,Book Stores,GPC
18/10/2018 to 19/11/2018,C&YPS-Non Delegated,Amzn Mktp Uk*mt90o83s4,24/10/2018,10.00,Other Equipment & Materials - General,Book Stores,GPC
18/10/2018 to 19/11/2018,C&YPS-Non Delegated,Amzn Mktp Uk*mt93r8734,04/11/2018,55.99,Other Transfer Payments - Section 23 Grants,Book Stores,GPC
18/10/2018 to 19/11/2018,C&YPS-Non Delegated,Amzn Mktp Uk*mt95l38i4,30/10/2018,10.98,Provisions - General,Book Stores,GPC
18/10/2018 to 19/11/2018,C&YPS-Non Delegated,Amzn Mktp Uk*mt9bv6t74 Am,19/10/2018,3.01,Other Equipment & Materials - General,Book Stores,GPC
18/10/2018 to 19/11/2018,C&YPS-Non Delegated,Amzn Mktp Uk*mt9co7yi4 Am,07/11/2018,37.47,Other Transfer Payments - Section 24,Book Stores,GPC
18/10/2018 to 19/11/2018,C&YPS-Non Delegated,Amzn Mktp Uk*mt9he8ux4 Am,05/11/2018,38.22,Other Expenditure - General,Book Stores,GPC
18/10/2018 to 19/11/2018,C&YPS-Non Delegated,Amzn Mktp Uk*mt9ia9u74 Am,05/11/2018,17.65,Stationery - General,Book Stores,GPC
18/10/2018 to 19/11/2018,C&YPS-Non Delegated,Amzn Mktp Uk*mt9ti1og4 Am,17/10/2018,7.99,Stationery - General,Book Stores,GPC
18/10/2018 to 19/11/2018,C&YPS-Non Delegated,Amzn Mktp Uk*mt9ud88r4 Am,29/10/2018,28.25,Other Equipment & Materials - General,Book Stores,GPC
18/10/2018 to 19/11/2018,C&YPS-Non Delegated,Amzn Mktp Uk*mt9wm8264,02/11/2018,87.42,Other Equipment & Materials - General,Book Stores,GPC
18/10/2018 to 19/11/2018,C&YPS-Non Delegated,Amzn Mktp Us*m832a8so1,12/11/2018,20.02,Other Expenditure - General,Miscellaneous and Specialty Retail Stores,GPC
18/10/2018 to 19/11/2018,C&YPS-Non Delegated,Amzn Mktp Us*m853y0d01,11/11/2018,67.62,Other Transfer Payments - General,Book Stores,GPC
18/10/2018 to 19/11/2018,C&YPS-Non Delegated,Amzn Mktp Us*m877872u0,12/11/2018,20.02,Other Expenditure - General,Miscellaneous and Specialty Retail Stores,GPC
18/10/2018 to 19/11/2018,C&YPS-Non Delegated,Amzn Mktp Us*m87yv6590,05/11/2018,39.09,Other Transfer Payments - General,Miscellaneous and Specialty Retail Stores,GPC
18/10/2018 to 19/11/2018,C&YPS-Non Delegated,Anthony Peters Manufactu,12/11/2018,32.98,Other Equipment & Materials - General,"Hobby, Toy, and Game Shops",GPC
18/10/2018 to 19/11/2018,C&YPS-Non Delegated,Anthony Peters Manufactu,12/11/2018,4.17,Other Equipment & Materials - General,"Hobby, Toy, and Game Shops",GPC
18/10/2018 to 19/11/2018,C&YPS-Non Delegated,Ao Retail Limited,29/10/2018,161.67,Other Transfer Payments - Leaving Care Grants,Household Appliance Stores,GPC
18/10/2018 to 19/11/2018,C&YPS-Non Delegated,Argos Leic North (Inside,13/11/2018,24.99,Materials - General,Discount Stores,GPC
18/10/2018 to 19/11/2018,C&YPS-Non Delegated,Argos Ltd,24/10/2018,134.00,Other Transfer Payments - Leaving Care Grants,Discount Stores,GPC
18/10/2018 to 19/11/2018,C&YPS-Non Delegated,Argos Ltd,24/10/2018,208.94,Other Transfer Payments - Leaving Care Grants,Discount Stores,GPC
18/10/2018 to 19/11/2018,C&YPS-Non Delegated,Argos Ltd,25/10/2018,422.97,Other Transfer Payments - Leaving Care Grants,Discount Stores,GPC
18/10/2018 to 19/11/2018,C&YPS-Non Delegated,Argos Ltd,29/10/2018,89.99,Other Transfer Payments - Leaving Care Grants,Discount Stores,GPC
18/10/2018 to 19/11/2018,C&YPS-Non Delegated,Argos Ltd,06/11/2018,63.99,Other Transfer Payments - Leaving Care Grants,Discount Stores,GPC
18/10/2018 to 19/11/2018,C&YPS-Non Delegated,Argos Ltd,07/11/2018,99.99,Other Transfer Payments - Leaving Care Grants,Discount Stores,GPC
18/10/2018 to 19/11/2018,C&YPS-Non Delegated,Argos Ltd,09/11/2018,-89.99,Other Transfer Payments - Leaving Care Grants,Discount Stores,GPC
18/10/2018 to 19/11/2018,C&YPS-Non Delegated,Argos Ltd,12/11/2018,43.94,Other Transfer Payments - Leaving Care Grants,Discount Stores,GPC
18/10/2018 to 19/11/2018,C&YPS-Non Delegated,Arriva Mid Travel,25/10/2018,59.40,Other Transfer Payments - General,"Bus Lines, Charters, Tour Buses",GPC
18/10/2018 to 19/11/2018,C&YPS-Non Delegated,Arriva Mid Travel,14/11/2018,131.40,Other Transfer Payments - General,"Bus Lines, Charters, Tour Buses",GPC
18/10/2018 to 19/11/2018,C&YPS-Non Delegated,Arriva Mid Travel,24/10/2018,73.00,Other Transfer Payments - Section 24,"Bus Lines, Charters, Tour Buses",GPC
18/10/2018 to 19/11/2018,C&YPS-Non Delegated,Arriva Midlands,17/10/2018,-4.20,Other Transfer Payments - Education Costs,"Bus Lines, Charters, Tour Buses",GPC
18/10/2018 to 19/11/2018,C&YPS-Non Delegated,Arriva Midlands,22/10/2018,60.00,Other Transfer Payments - General,"Bus Lines, Charters, Tour Buses",GPC
18/10/2018 to 19/11/2018,C&YPS-Non Delegated,Arriva Midlands,14/11/2018,60.00,Other Transfer Payments - General,"Bus Lines, Charters, Tour Buses",GPC
18/10/2018 to 19/11/2018,C&YPS-Non Delegated,Asda George Com Leeds,26/10/2018,64.50,Other Transfer Payments - Leaving Care Grants,"Grocery Stores, Supermarkets",GPC
18/10/2018 to 19/11/2018,C&YPS-Non Delegated,Asda George Com Leeds,02/11/2018,-35.00,Other Transfer Payments - Leaving Care Grants,"Grocery Stores, Supermarkets",GPC
18/10/2018 to 19/11/2018,C&YPS-Non Delegated,Asda Max,22/10/2018,46.25,Other Expenditure - General,Photographic Studios,GPC
18/10/2018 to 19/11/2018,C&YPS-Non Delegated,Asda Superstore,24/10/2018,19.90,General Equipment - General,"Grocery Stores, Supermarkets",GPC
18/10/2018 to 19/11/2018,C&YPS-Non Delegated,Asda Superstore,10/11/2018,20.00,Materials - General,"Grocery Stores, Supermarkets",GPC
18/10/2018 to 19/11/2018,C&YPS-Non Delegated,Asda Superstore,22/10/2018,30.29,Other Expenditure - General,"Grocery Stores, Supermarkets",GPC
18/10/2018 to 19/11/2018,C&YPS-Non Delegated,Asda Superstore,12/11/2018,23.54,Other Transfer Payments - General,"Grocery Stores, Supermarkets",GPC
18/10/2018 to 19/11/2018,C&YPS-Non Delegated,Asda Superstore,12/11/2018,184.50,Other Transfer Payments - Leaving Care Grants,"Grocery Stores, Supermarkets",GPC
18/10/2018 to 19/11/2018,C&YPS-Non Delegated,B & Q 1012,22/10/2018,33.34,Other Transfer Payments - Leaving Care Grants,"Building Materials, Lumber Stores",GPC
18/10/2018 to 19/11/2018,C&YPS-Non Delegated,B M Retail,09/11/2018,20.00,Other Transfer Payments - Leaving Care Grants,Discount Stores,GPC
18/10/2018 to 19/11/2018,C&YPS-Non Delegated,B&m Retail,14/11/2018,32.02,Other Equipment & Materials - General,Discount Stores,GPC
18/10/2018 to 19/11/2018,C&YPS-Non Delegated,B&m Retail Ltd,06/11/2018,367.27,Other Transfer Payments - Leaving Care Grants,Discount Stores,GPC
18/10/2018 to 19/11/2018,C&YPS-Non Delegated,B&m Retail Ltd,08/11/2018,161.73,Other Transfer Payments - Leaving Care Grants,Discount Stores,GPC
18/10/2018 to 19/11/2018,C&YPS-Non Delegated,Baker Ross,26/10/2018,19.69,Books - General,"Artist Supply Stores, Craft Shops",GPC
18/10/2018 to 19/11/2018,C&YPS-Non Delegated,Baker Ross,16/11/2018,126.24,Materials - General,"Artist Supply Stores, Craft Shops",GPC
18/10/2018 to 19/11/2018,C&YPS-Non Delegated,Baker Ross,17/10/2018,11.98,Other Equipment & Materials - General,"Artist Supply Stores, Craft Shops",GPC
18/10/2018 to 19/11/2018,C&YPS-Non Delegated,Baker Ross,22/10/2018,41.27,Other Equipment & Materials - General,"Artist Supply Stores, Craft Shops",GPC
18/10/2018 to 19/11/2018,C&YPS-Non Delegated,Baker Ross,15/11/2018,61.73,Other Equipment & Materials - General,"Artist Supply Stores, Craft Shops",GPC
18/10/2018 to 19/11/2018,C&YPS-Non Delegated,Bardills Garden Centre,26/10/2018,13.54,Other Expenditure - General,"Lawn and Garden Supply Stores, Nurseries",GPC
18/10/2018 to 19/11/2018,C&YPS-Non Delegated,Barneys Playbarn,12/11/2018,5.00,Other Transfer Payments - General,"Amusement Parks, Circuses, Carnivals, Fortune Tell",GPC
18/10/2018 to 19/11/2018,C&YPS-Non Delegated,Bbcn Leicester Countes,15/11/2018,409.80,Other Transfer Payments - Section 17 - Daycare,Child Care Services,GPC
18/10/2018 to 19/11/2018,C&YPS-Non Delegated,Big Johns (Humberstone,14/11/2018,4.48,Subsistence - General,Fast-Food Restaurants (Quick Payment Service Pilot,GPC
18/10/2018 to 19/11/2018,C&YPS-Non Delegated,Bindas Superstore,26/10/2018,20.00,Other Transfer Payments - General,"Grocery Stores, Supermarkets",GPC
18/10/2018 to 19/11/2018,C&YPS-Non Delegated,Blaby Fitness Ltd,25/10/2018,35.00,Subscriptions - General,"Membership Clubs (Sports, Recreation, Athletic), C",GPC
18/10/2018 to 19/11/2018,C&YPS-Non Delegated,Blaby Fitness Ltd,08/11/2018,5.00,Subscriptions - General,"Membership Clubs (Sports, Recreation, Athletic), C",GPC
18/10/2018 to 19/11/2018,C&YPS-Non Delegated,Branting Hill 384,15/11/2018,6.68,General Equipment - General,Service Stations (with or without Ancillary Servic,GPC
18/10/2018 to 19/11/2018,C&YPS-Non Delegated,British Heart Foundati,08/11/2018,94.99,Other Transfer Payments - Leaving Care Grants,Charitable and Social Service Organizations,GPC
18/10/2018 to 19/11/2018,C&YPS-Non Delegated,Bt Bill Payment 2,29/10/2018,55.89,Telephones - General,Telecommunication Equipment Including Telephone Sa,GPC
18/10/2018 to 19/11/2018,C&YPS-Non Delegated,Bt Bill Payment 2,31/10/2018,56.17,Telephones - General,Telecommunication Equipment Including Telephone Sa,GPC
18/10/2018 to 19/11/2018,C&YPS-Non Delegated,Bt Bill Payment 2,07/11/2018,55.89,Telephones - General,Telecommunication Equipment Including Telephone Sa,GPC
18/10/2018 to 19/11/2018,C&YPS-Non Delegated,Bulls Head Ratby,23/10/2018,40.90,Other Transfer Payments - Birthday & Christmas Presents,"Drinking Places (Alcoholic Beverages)-Bars, Tavern",GPC
18/10/2018 to 19/11/2018,C&YPS-Non Delegated,Burger King,25/10/2018,3.57,Other Transfer Payments - Section 23 Grants,"Eating Places, Restaurants",GPC
18/10/2018 to 19/11/2018,C&YPS-Non Delegated,Burger King Barrierlin,09/11/2018,6.99,Other Equipment & Materials - General,Fast-Food Restaurants (Quick Payment Service Pilot,GPC
18/10/2018 to 19/11/2018,C&YPS-Non Delegated,Cafe Maromme,15/11/2018,12.80,Other Expenditure - General,Fast-Food Restaurants (Quick Payment Service Pilot,GPC
18/10/2018 to 19/11/2018,C&YPS-Non Delegated,Caffe Nero,29/10/2018,9.60,Other Expenditure - General,"Eating Places, Restaurants",GPC
18/10/2018 to 19/11/2018,C&YPS-Non Delegated,Carpetshire Ltd,16/11/2018,460.00,Other Transfer Payments - Leaving Care Grants,Floor Coverings   Stores,GPC
18/10/2018 to 19/11/2018,C&YPS-Non Delegated,Carters Cafe Lounge,15/11/2018,2.60,Other Transfer Payments - Section 24,"Eating Places, Restaurants",GPC
18/10/2018 to 19/11/2018,C&YPS-Non Delegated,Castle Restaurant,24/10/2018,1.50,Other Transfer Payments - Section 24,"Eating Places, Restaurants",GPC
18/10/2018 to 19/11/2018,C&YPS-Non Delegated,Central Eng Coop,01/11/2018,5.34,General Equipment - General,Department Stores,GPC
18/10/2018 to 19/11/2018,C&YPS-Non Delegated,Central Eng Coop,18/10/2018,11.00,Hospitality - General,Department Stores,GPC
18/10/2018 to 19/11/2018,C&YPS-Non Delegated,Central Eng Coop,19/10/2018,6.60,Hospitality - General,Department Stores,GPC
18/10/2018 to 19/11/2018,C&YPS-Non Delegated,Central Eng Coop,14/11/2018,10.78,Other Equipment & Materials - General,Department Stores,GPC
18/10/2018 to 19/11/2018,C&YPS-Non Delegated,Central Eng Coop,17/10/2018,27.40,Other Expenditure - General,Department Stores,GPC
18/10/2018 to 19/11/2018,C&YPS-Non Delegated,Central Eng Coop,18/10/2018,15.90,Other Expenditure - General,Department Stores,GPC
18/10/2018 to 19/11/2018,C&YPS-Non Delegated,Central Eng Coop,19/10/2018,16.95,Other Expenditure - General,Department Stores,GPC
18/10/2018 to 19/11/2018,C&YPS-Non Delegated,Charnwood Arms,19/10/2018,9.79,Other Transfer Payments - Section 24,"Drinking Places (Alcoholic Beverages)-Bars, Tavern",GPC
18/10/2018 to 19/11/2018,C&YPS-Non Delegated,Cherry Reds Cafe Bar,15/11/2018,5.30,Other Equipment & Materials - General,"Eating Places, Restaurants",GPC
18/10/2018 to 19/11/2018,C&YPS-Non Delegated,Cineworld Cinemas,18/10/2018,28.80,Other Transfer Payments - Section 23 Grants,"Theatrical Products (Except Motion Pictures), Tick",GPC
18/10/2018 to 19/11/2018,C&YPS-Non Delegated,City & County Of S,07/11/2018,21.00,Other Transfer Payments - Sector 17- Other,Government Services-Not Elsewhere Classified,GPC
18/10/2018 to 19/11/2018,C&YPS-Non Delegated,Ckkcomputers,30/10/2018,1.29,General Equipment - General,"Computer Maintenance, Repair, and Services Not Els",GPC
18/10/2018 to 19/11/2018,C&YPS-Non Delegated,Ckkcomputers,03/11/2018,-1.26,General Equipment - General,"Computer Maintenance, Repair, and Services Not Els",GPC
18/10/2018 to 19/11/2018,C&YPS-Non Delegated,Costa Coalville,19/10/2018,8.30,Other Expenditure - General,Fast-Food Restaurants (Quick Payment Service Pilot,GPC
18/10/2018 to 19/11/2018,C&YPS-Non Delegated,Costa Coffee 43036300,17/10/2018,5.80,Other Expenditure - General,Fast-Food Restaurants (Quick Payment Service Pilot,GPC
18/10/2018 to 19/11/2018,C&YPS-Non Delegated,Costa Coffee 43036735,31/10/2018,8.80,Other Expenditure - General,Fast-Food Restaurants (Quick Payment Service Pilot,GPC
18/10/2018 to 19/11/2018,C&YPS-Non Delegated,Costa Coffee Atherston,06/11/2018,5.71,Other Transfer Payments - General,Fast-Food Restaurants (Quick Payment Service Pilot,GPC
18/10/2018 to 19/11/2018,C&YPS-Non Delegated,Costa Syston,17/10/2018,8.80,Other Expenditure - General,Fast-Food Restaurants (Quick Payment Service Pilot,GPC
18/10/2018 to 19/11/2018,C&YPS-Non Delegated,Countesthorpe Born And Br,24/10/2018,45.00,Other Expenditure - General,Bakeries,GPC
18/10/2018 to 19/11/2018,C&YPS-Non Delegated,County Court,09/11/2018,170.00,Other Expenditure - General,Fines,GPC
18/10/2018 to 19/11/2018,C&YPS-Non Delegated,County Court,09/11/2018,170.00,Other Expenditure - General,Fines,GPC
18/10/2018 to 19/11/2018,C&YPS-Non Delegated,Currys S/s,06/11/2018,144.00,Other Transfer Payments - Leaving Care Grants,Household Appliance Stores,GPC
18/10/2018 to 19/11/2018,C&YPS-Non Delegated,Ddf Barrierline,09/11/2018,11.23,Other Equipment & Materials - General,Fast-Food Restaurants (Quick Payment Service Pilot,GPC
18/10/2018 to 19/11/2018,C&YPS-Non Delegated,Dwp Debt Management,25/10/2018,250.00,Other Transfer Payments - General,Government Services-Not Elsewhere Classified,GPC
18/10/2018 to 19/11/2018,C&YPS-Non Delegated,Dwp Debt Management,26/10/2018,250.00,Other Transfer Payments - General,Government Services-Not Elsewhere Classified,GPC
18/10/2018 to 19/11/2018,C&YPS-Non Delegated,East Midlands Trai,15/11/2018,59.85,Public Transport -  Staff - General,Passenger Railways,GPC
18/10/2018 to 19/11/2018,C&YPS-Non Delegated,East Midlands Trai,15/11/2018,19.95,Public Transport -  Staff - General,Passenger Railways,GPC
18/10/2018 to 19/11/2018,C&YPS-Non Delegated,Eb *asd And Sensory Is,01/11/2018,53.74,Other Equipment & Materials - General,Business Services-Not Elsewhere Classified,GPC
18/10/2018 to 19/11/2018,C&YPS-Non Delegated,Eb *atec 2019 Coventry,12/11/2018,110.50,Training Expenses - General,Business Services-Not Elsewhere Classified,GPC
18/10/2018 to 19/11/2018,C&YPS-Non Delegated,Eb *leicester Family J,24/10/2018,76.64,Other Equipment & Materials - General,Business Services-Not Elsewhere Classified,GPC
18/10/2018 to 19/11/2018,C&YPS-Non Delegated,Eb *leicester Family J,01/11/2018,38.32,Other Equipment & Materials - General,Business Services-Not Elsewhere Classified,GPC
18/10/2018 to 19/11/2018,C&YPS-Non Delegated,Eb *leicester Family J,23/10/2018,153.28,Other Expenditure - General,Business Services-Not Elsewhere Classified,GPC
18/10/2018 to 19/11/2018,C&YPS-Non Delegated,Eb *leicester Family J,23/10/2018,38.32,Other Transfer Payments - Section 23 Grants,Business Services-Not Elsewhere Classified,GPC
18/10/2018 to 19/11/2018,C&YPS-Non Delegated,Eb *refund To Buyer,22/10/2018,8.63,Other Recoverable Charges - General,Business Services-Not Elsewhere Classified,GPC
18/10/2018 to 19/11/2018,C&YPS-Non Delegated,Eb *refund To Buyer,22/10/2018,35.70,Other Recoverable Charges - General,Business Services-Not Elsewhere Classified,GPC
18/10/2018 to 19/11/2018,C&YPS-Non Delegated,Eb *refund To Buyer,23/10/2018,45.51,Other Recoverable Charges - General,Business Services-Not Elsewhere Classified,GPC
18/10/2018 to 19/11/2018,C&YPS-Non Delegated,Eb *refund To Buyer,23/10/2018,45.51,Other Recoverable Charges - General,Business Services-Not Elsewhere Classified,GPC
18/10/2018 to 19/11/2018,C&YPS-Non Delegated,Eb *refund To Buyer,23/10/2018,45.51,Other Recoverable Charges - General,Business Services-Not Elsewhere Classified,GPC
18/10/2018 to 19/11/2018,C&YPS-Non Delegated,Eb *refund To Buyer,16/11/2018,31.68,Other Recoverable Charges - General,Business Services-Not Elsewhere Classified,GPC
18/10/2018 to 19/11/2018,C&YPS-Non Delegated,Eb *refund To Buyer,16/11/2018,31.68,Other Recoverable Charges - General,Business Services-Not Elsewhere Classified,GPC
18/10/2018 to 19/11/2018,C&YPS-Non Delegated,Eb *refund To Buyer,16/11/2018,22.46,Other Recoverable Charges - General,Business Services-Not Elsewhere Classified,GPC
18/10/2018 to 19/11/2018,C&YPS-Non Delegated,Eb *refund To Buyer,16/11/2018,40.90,Other Recoverable Charges - General,Business Services-Not Elsewhere Classified,GPC
18/10/2018 to 19/11/2018,C&YPS-Non Delegated,Eb *safe Young Lives N,01/11/2018,120.83,Training Expenses - General,Business Services-Not Elsewhere Classified,GPC
18/10/2018 to 19/11/2018,C&YPS-Non Delegated,Euroflorist Ab,22/10/2018,24.49,Provisions - General,Florists,GPC
18/10/2018 to 19/11/2018,C&YPS-Non Delegated,Facebk Er8fnhweq2,31/10/2018,33.66,Other Equipment & Materials - General,Advertising Services,GPC
18/10/2018 to 19/11/2018,C&YPS-Non Delegated,Fast Key Services Limi,09/11/2018,6.05,Furniture - General,Business Services-Not Elsewhere Classified,GPC
18/10/2018 to 19/11/2018,C&YPS-Non Delegated,Fast Key Services Limi,26/10/2018,13.23,Other Expenditure - General,Business Services-Not Elsewhere Classified,GPC
18/10/2018 to 19/11/2018,C&YPS-Non Delegated,Fast Key Services Limi,14/11/2018,16.01,Other Expenditure - General,Business Services-Not Elsewhere Classified,GPC
18/10/2018 to 19/11/2018,C&YPS-Non Delegated,Frankie & Bennys 5166,19/10/2018,24.25,Other Expenditure - General,"Eating Places, Restaurants",GPC
18/10/2018 to 19/11/2018,C&YPS-Non Delegated,Funstation,17/10/2018,15.00,Other Transfer Payments - Section 23 Grants,Tourist Attractions and Exhibits,GPC
18/10/2018 to 19/11/2018,C&YPS-Non Delegated,Gillys Sandwich Bar Ltd,07/11/2018,10.80,Other Expenditure - General,"Eating Places, Restaurants",GPC
18/10/2018 to 19/11/2018,C&YPS-Non Delegated,Government Events,16/11/2018,322.15,Training Expenses - General,Computer Software Stores,GPC
18/10/2018 to 19/11/2018,C&YPS-Non Delegated,Gro Hm Passport Office,07/11/2018,23.40,Other Transfer Payments - Section 23 Grants,Government Services-Not Elsewhere Classified,GPC
18/10/2018 to 19/11/2018,C&YPS-Non Delegated,Gro Hm Passport Office,07/11/2018,23.40,Other Transfer Payments - Section 23 Grants,Government Services-Not Elsewhere Classified,GPC
18/10/2018 to 19/11/2018,C&YPS-Non Delegated,Gro Hm Passport Office,07/11/2018,-23.40,Other Transfer Payments - Section 23 Grants,Government Services-Not Elsewhere Classified,GPC
18/10/2018 to 19/11/2018,C&YPS-Non Delegated,Gro Hm Passport Office,07/11/2018,23.40,Other Transfer Payments - Section 23 Grants,Government Services-Not Elsewhere Classified,GPC
18/10/2018 to 19/11/2018,C&YPS-Non Delegated,Gro Hm Passport Office,07/11/2018,-23.40,Other Transfer Payments - Section 23 Grants,Government Services-Not Elsewhere Classified,GPC
18/10/2018 to 19/11/2018,C&YPS-Non Delegated,Gro Hm Passport Office,13/11/2018,9.25,Other Transfer Payments - Section 23 Grants,Government Services-Not Elsewhere Classified,GPC
18/10/2018 to 19/11/2018,C&YPS-Non Delegated,Gro Hm Passport Office,13/11/2018,9.25,Other Transfer Payments - Section 23 Grants,Government Services-Not Elsewhere Classified,GPC
18/10/2018 to 19/11/2018,C&YPS-Non Delegated,Gro Hm Passport Office,13/11/2018,23.40,Other Transfer Payments - Section 23 Grants,Government Services-Not Elsewhere Classified,GPC
18/10/2018 to 19/11/2018,C&YPS-Non Delegated,Gro Hm Passport Office,15/11/2018,9.25,Other Transfer Payments - Section 23 Grants,Government Services-Not Elsewhere Classified,GPC
18/10/2018 to 19/11/2018,C&YPS-Non Delegated,Gym 11 Limited,01/11/2018,66.00,Other Expenditure - General,Health and Beauty Spas,GPC
18/10/2018 to 19/11/2018,C&YPS-Non Delegated,H&bbc Internet,13/11/2018,334.00,Other Transfer Payments - Section 24,Government Services-Not Elsewhere Classified,GPC
18/10/2018 to 19/11/2018,C&YPS-Non Delegated,Halfords 0375,03/11/2018,8.33,Other Transfer Payments - Leaving Care Grants,Bicycle Shops-Sales and Service,GPC
18/10/2018 to 19/11/2018,C&YPS-Non Delegated,Halfords 0968,18/10/2018,12.50,Other Transfer Payments - Section 24,Bicycle Shops-Sales and Service,GPC
18/10/2018 to 19/11/2018,C&YPS-Non Delegated,Highstreet Vocuhers,12/11/2018,244.25,Other Equipment & Materials - General,"Civic, Social, and Fraternal Associations",GPC
18/10/2018 to 19/11/2018,C&YPS-Non Delegated,Highstreet Vocuhers,13/11/2018,244.25,Other Equipment & Materials - General,"Civic, Social, and Fraternal Associations",GPC
18/10/2018 to 19/11/2018,C&YPS-Non Delegated,Highstreet Vocuhers,15/11/2018,245.42,Other Equipment & Materials - General,"Civic, Social, and Fraternal Associations",GPC
18/10/2018 to 19/11/2018,C&YPS-Non Delegated,Hinckley & Distric,06/11/2018,476.00,Other Transfer Payments - Leaving Care Grants,Charitable and Social Service Organizations,GPC
18/10/2018 to 19/11/2018,C&YPS-Non Delegated,Hm Passport Office,13/11/2018,85.00,Other Transfer Payments - Section 23 Grants,Government Services-Not Elsewhere Classified,GPC
18/10/2018 to 19/11/2018,C&YPS-Non Delegated,Hmcourts-Service.G,25/10/2018,30.00,Other Transfer Payments - General,Fines,GPC
18/10/2018 to 19/11/2018,C&YPS-Non Delegated,Hmcourts-Service.G,01/11/2018,600.00,Other Transfer Payments - Section 24,Fines,GPC
18/10/2018 to 19/11/2018,C&YPS-Non Delegated,Home Bargains,31/10/2018,63.89,Other Equipment & Materials - General,Hardware Stores,GPC
18/10/2018 to 19/11/2018,C&YPS-Non Delegated,Hotel Ibis,21/10/2018,108.87,Subsistence - General,IBIS-SPHERE SA,GPC
18/10/2018 to 19/11/2018,C&YPS-Non Delegated,Hotels.Com153316467457,12/11/2018,108.00,General Equipment - General,Travel Agencies,GPC
18/10/2018 to 19/11/2018,C&YPS-Non Delegated,Itunes.Com/Bill,30/10/2018,34.03,IT Equipment - General,Record Shops,GPC
18/10/2018 to 19/11/2018,C&YPS-Non Delegated,Itunes.Com/Bill,03/11/2018,22.22,IT Equipment - General,Record Shops,GPC
18/10/2018 to 19/11/2018,C&YPS-Non Delegated,Itunes.Com/Bill,03/11/2018,22.22,IT Equipment - General,Record Shops,GPC
18/10/2018 to 19/11/2018,C&YPS-Non Delegated,Itunes.Com/Bill,03/11/2018,22.22,IT Equipment - General,Record Shops,GPC
18/10/2018 to 19/11/2018,C&YPS-Non Delegated,Itunes.Com/Bill,04/11/2018,-22.22,IT Equipment - General,Record Shops,GPC
18/10/2018 to 19/11/2018,C&YPS-Non Delegated,Itunes.Com/Bill,04/11/2018,-22.22,IT Equipment - General,Record Shops,GPC
18/10/2018 to 19/11/2018,C&YPS-Non Delegated,Itunes.Com/Bill,04/11/2018,-22.22,IT Equipment - General,Record Shops,GPC
18/10/2018 to 19/11/2018,C&YPS-Non Delegated,Itunes.Com/Bill,05/11/2018,22.22,IT Equipment - General,Record Shops,GPC
18/10/2018 to 19/11/2018,C&YPS-Non Delegated,Itunes.Com/Bill,05/11/2018,22.22,IT Equipment - General,Record Shops,GPC
18/10/2018 to 19/11/2018,C&YPS-Non Delegated,Itunes.Com/Bill,05/11/2018,22.22,IT Equipment - General,Record Shops,GPC
18/10/2018 to 19/11/2018,C&YPS-Non Delegated,Iz *bodyworx Gym M,02/11/2018,28.00,Subscriptions - General,Miscellaneous Personal Services-Not Elsewhere Clas,GPC
18/10/2018 to 19/11/2018,C&YPS-Non Delegated,J & L Sysonby Holdings L,30/10/2018,6.75,Other Transfer Payments - Section 23 Grants,"Lawn and Garden Supply Stores, Nurseries",GPC
18/10/2018 to 19/11/2018,C&YPS-Non Delegated,Kingsway Enterprises,26/10/2018,440.00,Other Transfer Payments - Leaving Care Grants,Household Appliance Stores,GPC
18/10/2018 to 19/11/2018,C&YPS-Non Delegated,Kingsway Enterprises,26/10/2018,315.00,Other Transfer Payments - Leaving Care Grants,Household Appliance Stores,GPC
18/10/2018 to 19/11/2018,C&YPS-Non Delegated,Kriss Morrison Cooper Ind,05/11/2018,250.00,Other Transfer Payments - Sector 17- Other,Funeral Service and Crematories,GPC
18/10/2018 to 19/11/2018,C&YPS-Non Delegated,Kriss Morrison Cooper Ind,05/11/2018,55.00,Other Transfer Payments - Sector 17- Other,Funeral Service and Crematories,GPC
18/10/2018 to 19/11/2018,C&YPS-Non Delegated,Lavender Road Dental Clin,06/11/2018,65.00,Other Transfer Payments - Section 24,"Dentists, Orthodontists",GPC
18/10/2018 to 19/11/2018,C&YPS-Non Delegated,Lcc Catering Services,15/11/2018,1.54,Hospitality - General,Government Services-Not Elsewhere Classified,GPC
18/10/2018 to 19/11/2018,C&YPS-Non Delegated,Lcc Catering Services,07/11/2018,14.35,Other Expenditure - General,Government Services-Not Elsewhere Classified,GPC
18/10/2018 to 19/11/2018,C&YPS-Non Delegated,Lcc Catering Services,13/11/2018,5.36,Stationery - General,Government Services-Not Elsewhere Classified,GPC
18/10/2018 to 19/11/2018,C&YPS-Non Delegated,Lcc Online,01/11/2018,21.00,Other Transfer Payments - Section 23 Grants,Government Services-Not Elsewhere Classified,GPC
18/10/2018 to 19/11/2018,C&YPS-Non Delegated,Leic City Council,06/11/2018,24.00,Other Expenditure - General,Government Services-Not Elsewhere Classified,GPC
18/10/2018 to 19/11/2018,C&YPS-Non Delegated,Leic City Council,25/10/2018,14.00,Other Transfer Payments - General,Government Services-Not Elsewhere Classified,GPC
18/10/2018 to 19/11/2018,C&YPS-Non Delegated,Leic City Council,26/10/2018,-10.00,Other Transfer Payments - General,Government Services-Not Elsewhere Classified,GPC
18/10/2018 to 19/11/2018,C&YPS-Non Delegated,Leic City Council,01/11/2018,14.00,Other Transfer Payments - General,Government Services-Not Elsewhere Classified,GPC
18/10/2018 to 19/11/2018,C&YPS-Non Delegated,Leic City Council,17/10/2018,24.00,Other Transfer Payments - Section 23 Grants,Government Services-Not Elsewhere Classified,GPC
18/10/2018 to 19/11/2018,C&YPS-Non Delegated,Leic City Council,18/10/2018,-6.00,Other Transfer Payments - Section 23 Grants,Government Services-Not Elsewhere Classified,GPC
18/10/2018 to 19/11/2018,C&YPS-Non Delegated,Leic City Council,30/10/2018,24.00,Other Transfer Payments - Section 23 Grants,Government Services-Not Elsewhere Classified,GPC
18/10/2018 to 19/11/2018,C&YPS-Non Delegated,Leic City Council,06/11/2018,14.00,Other Transfer Payments - Section 23 Grants,Government Services-Not Elsewhere Classified,GPC
18/10/2018 to 19/11/2018,C&YPS-Non Delegated,Leic City Council,06/11/2018,14.00,Other Transfer Payments - Section 23 Grants,Government Services-Not Elsewhere Classified,GPC
18/10/2018 to 19/11/2018,C&YPS-Non Delegated,Leic City Council,06/11/2018,24.00,Other Transfer Payments - Section 23 Grants,Government Services-Not Elsewhere Classified,GPC
18/10/2018 to 19/11/2018,C&YPS-Non Delegated,Leic City Council,07/11/2018,24.00,Other Transfer Payments - Section 23 Grants,Government Services-Not Elsewhere Classified,GPC
18/10/2018 to 19/11/2018,C&YPS-Non Delegated,Leic City Council,14/11/2018,24.00,Other Transfer Payments - Section 23 Grants,Government Services-Not Elsewhere Classified,GPC
18/10/2018 to 19/11/2018,C&YPS-Non Delegated,Leic City Council,17/10/2018,14.00,Other Transfer Payments - Section 24,Government Services-Not Elsewhere Classified,GPC
18/10/2018 to 19/11/2018,C&YPS-Non Delegated,Leic City Council,14/11/2018,24.00,Other Transfer Payments - Sector 17- Other,Government Services-Not Elsewhere Classified,GPC
18/10/2018 to 19/11/2018,C&YPS-Non Delegated,Leic City Council,16/10/2018,165.00,Subscriptions - General,Government Services-Not Elsewhere Classified,GPC
18/10/2018 to 19/11/2018,C&YPS-Non Delegated,Leicester City Council,19/10/2018,3.00,Other Transfer Payments - General,Government Services-Not Elsewhere Classified,GPC
18/10/2018 to 19/11/2018,C&YPS-Non Delegated,Leicester City Council,14/11/2018,3.00,Other Transfer Payments - General,Government Services-Not Elsewhere Classified,GPC
18/10/2018 to 19/11/2018,C&YPS-Non Delegated,Lidl UK Darlington,08/11/2018,3.33,Other Transfer Payments - Leaving Care Grants,"Grocery Stores, Supermarkets",GPC
18/10/2018 to 19/11/2018,C&YPS-Non Delegated,Lidl UK Darlington,08/11/2018,12.14,Other Transfer Payments - Section 24,"Grocery Stores, Supermarkets",GPC
18/10/2018 to 19/11/2018,C&YPS-Non Delegated,Lidl UK South Wigston,06/11/2018,27.65,Other Equipment & Materials - General,"Grocery Stores, Supermarkets",GPC
18/10/2018 to 19/11/2018,C&YPS-Non Delegated,Lidl UK South Wigston,06/11/2018,12.63,Provisions - General,"Grocery Stores, Supermarkets",GPC
18/10/2018 to 19/11/2018,C&YPS-Non Delegated,Loughborough 2,23/10/2018,4.00,Subscriptions - General,Photographic Studios,GPC
18/10/2018 to 19/11/2018,C&YPS-Non Delegated,Lul Ticket Machine,08/11/2018,17.10,Other Transport Costs - General,Passenger Railways,GPC
18/10/2018 to 19/11/2018,C&YPS-Non Delegated,Lul Ticket Machine,09/11/2018,17.10,Other Transport Costs - General,Passenger Railways,GPC
18/10/2018 to 19/11/2018,C&YPS-Non Delegated,McDonalds,23/10/2018,6.38,Other Expenditure - General,Fast-Food Restaurants (Quick Payment Service Pilot,GPC
18/10/2018 to 19/11/2018,C&YPS-Non Delegated,McDonalds,26/10/2018,10.60,Other Expenditure - General,"Eating Places, Restaurants",GPC
18/10/2018 to 19/11/2018,C&YPS-Non Delegated,McDonalds,07/11/2018,9.61,Other Expenditure - General,Fast-Food Restaurants (Quick Payment Service Pilot,GPC
18/10/2018 to 19/11/2018,C&YPS-Non Delegated,McDonalds,12/11/2018,8.66,Other Expenditure - General,Fast-Food Restaurants (Quick Payment Service Pilot,GPC
18/10/2018 to 19/11/2018,C&YPS-Non Delegated,McDonalds,19/10/2018,5.16,Other Transfer Payments - General,Fast-Food Restaurants (Quick Payment Service Pilot,GPC
18/10/2018 to 19/11/2018,C&YPS-Non Delegated,McDonalds,26/10/2018,3.83,Other Transfer Payments - General,Fast-Food Restaurants (Quick Payment Service Pilot,GPC
18/10/2018 to 19/11/2018,C&YPS-Non Delegated,McDonalds,31/10/2018,4.91,Other Transfer Payments - General,Fast-Food Restaurants (Quick Payment Service Pilot,GPC
18/10/2018 to 19/11/2018,C&YPS-Non Delegated,McDonalds,12/11/2018,5.08,Other Transfer Payments - General,"Eating Places, Restaurants",GPC
18/10/2018 to 19/11/2018,C&YPS-Non Delegated,McDonalds,19/10/2018,2.32,Other Transfer Payments - Section 23 Grants,Fast-Food Restaurants (Quick Payment Service Pilot,GPC
18/10/2018 to 19/11/2018,C&YPS-Non Delegated,McDonalds,25/10/2018,5.65,Other Transfer Payments - Section 23 Grants,"Eating Places, Restaurants",GPC
18/10/2018 to 19/11/2018,C&YPS-Non Delegated,McDonalds,18/10/2018,1.11,Subsistence - General,Fast-Food Restaurants (Quick Payment Service Pilot,GPC
18/10/2018 to 19/11/2018,C&YPS-Non Delegated,McDonalds,19/10/2018,3.89,Subsistence - General,"Eating Places, Restaurants",GPC
18/10/2018 to 19/11/2018,C&YPS-Non Delegated,McDonalds,23/10/2018,3.08,Subsistence - General,Fast-Food Restaurants (Quick Payment Service Pilot,GPC
18/10/2018 to 19/11/2018,C&YPS-Non Delegated,McDonalds,01/11/2018,3.10,Subsistence - General,Fast-Food Restaurants (Quick Payment Service Pilot,GPC
18/10/2018 to 19/11/2018,C&YPS-Non Delegated,McIndians,06/11/2018,7.45,Other Expenditure - General,"Eating Places, Restaurants",GPC
18/10/2018 to 19/11/2018,C&YPS-Non Delegated,Mercury News 63929/477,07/11/2018,40.00,Provisions - General,"Grocery Stores, Supermarkets",GPC
18/10/2018 to 19/11/2018,C&YPS-Non Delegated,Milk&more,30/10/2018,20.72,Provisions - General,Dairy Products Stores,GPC
18/10/2018 to 19/11/2018,C&YPS-Non Delegated,Mill On The Soar,17/10/2018,55.98,Subsistence - General,"Drinking Places (Alcoholic Beverages)-Bars, Tavern",GPC
18/10/2018 to 19/11/2018,C&YPS-Non Delegated,Mothercare Direct-E-Co,25/10/2018,44.95,Other Transfer Payments - Leaving Care Grants,Department Stores,GPC
18/10/2018 to 19/11/2018,C&YPS-Non Delegated,Mrc Community Action L,05/11/2018,75.00,Other Transfer Payments - Leaving Care Grants,Charitable and Social Service Organizations,GPC
18/10/2018 to 19/11/2018,C&YPS-Non Delegated,National Express Limited,16/11/2018,44.10,Other Transfer Payments - General,"Bus Lines, Charters, Tour Buses",GPC
18/10/2018 to 19/11/2018,C&YPS-Non Delegated,National Sealife Centr,15/11/2018,33.33,Other Equipment & Materials - General,Tourist Attractions and Exhibits,GPC
18/10/2018 to 19/11/2018,C&YPS-Non Delegated,Ncp Limited,14/11/2018,10.83,Other Transfer Payments - General,Automobile Parking Lots and Garages,GPC
18/10/2018 to 19/11/2018,C&YPS-Non Delegated,Ncp Ringo M Offst,23/10/2018,5.40,Other Transfer Payments - Leaving Care Grants,Automobile Parking Lots and Garages,GPC
18/10/2018 to 19/11/2018,C&YPS-Non Delegated,Net Buster Carp & Coar,06/11/2018,75.00,Materials - General,Sporting Goods Stores,GPC
18/10/2018 to 19/11/2018,C&YPS-Non Delegated,Party Projects,02/11/2018,15.96,Other Equipment & Materials - General,"Gift, Card, Novelty, and Souvenir Shops",GPC
18/10/2018 to 19/11/2018,C&YPS-Non Delegated,Paypal *aps Mandc,06/11/2018,132.00,Other Expenditure - General,Professional Services-Not Elsewhere Classified,GPC
18/10/2018 to 19/11/2018,C&YPS-Non Delegated,Paypal *aps Mandc,08/11/2018,66.00,Other Transfer Payments - Sector 17- Other,Professional Services-Not Elsewhere Classified,GPC
18/10/2018 to 19/11/2018,C&YPS-Non Delegated,Paypal *beds Uk,12/11/2018,215.83,Other Transfer Payments - Leaving Care Grants,"Furniture, Home Furnishings and Equipment Stores,",GPC
18/10/2018 to 19/11/2018,C&YPS-Non Delegated,Paypal *eshopingukl,29/10/2018,58.90,Other Transfer Payments - Leaving Care Grants,Variety Stores,GPC
18/10/2018 to 19/11/2018,C&YPS-Non Delegated,Paypal *home Treats,12/11/2018,22.78,Other Transfer Payments - Leaving Care Grants,Miscellaneous House Furnishing Specialty Shops,GPC
18/10/2018 to 19/11/2018,C&YPS-Non Delegated,Paypal *kevriu,01/11/2018,49.95,Other Transfer Payments - Sector 17- Other,Miscellaneous and Specialty Retail Stores,GPC
18/10/2018 to 19/11/2018,C&YPS-Non Delegated,Paypal *mothercareu,08/11/2018,43.94,Other Transfer Payments - Section 23 Grants,Children's and Infants' Wear Stores,GPC
18/10/2018 to 19/11/2018,C&YPS-Non Delegated,Playzone (Lincoln) Ltd,29/10/2018,2.90,Other Transfer Payments - Section 23 Grants,RECREATION SERVICES--NOT ELSEWHERE CLASSIFIED,GPC
18/10/2018 to 19/11/2018,C&YPS-Non Delegated,Porter And Woodman,08/11/2018,59.94,Other Equipment & Materials - General,"Gift, Card, Novelty, and Souvenir Shops",GPC
18/10/2018 to 19/11/2018,C&YPS-Non Delegated,Porter And Woodman,08/11/2018,49.95,Provisions - General,"Gift, Card, Novelty, and Souvenir Shops",GPC
18/10/2018 to 19/11/2018,C&YPS-Non Delegated,Post Office Counter,02/11/2018,120.00,Other Equipment & Materials - General,Postage Stamps,GPC
18/10/2018 to 19/11/2018,C&YPS-Non Delegated,Post Office Counter,02/11/2018,146.50,Other Transfer Payments - Section 23 Grants,Postage Stamps,GPC
18/10/2018 to 19/11/2018,C&YPS-Non Delegated,Post Office Counter,02/11/2018,219.75,Other Transfer Payments - Section 23 Grants,Postage Stamps,GPC
18/10/2018 to 19/11/2018,C&YPS-Non Delegated,Post Office Counter,01/11/2018,2.50,Other Transfer Payments - Sector 17- Other,Postage Stamps,GPC
18/10/2018 to 19/11/2018,C&YPS-Non Delegated,Poundland Ltd,13/11/2018,56.00,Other Equipment & Materials - General,Discount Stores,GPC
18/10/2018 to 19/11/2018,C&YPS-Non Delegated,Pp*kingschurchdarlingt,08/11/2018,118.00,Other Transfer Payments - Leaving Care Grants,Charitable and Social Service Organizations,GPC
18/10/2018 to 19/11/2018,C&YPS-Non Delegated,Pp*kingschurchdarlingt,09/11/2018,10.00,Other Transfer Payments - Leaving Care Grants,Charitable and Social Service Organizations,GPC
18/10/2018 to 19/11/2018,C&YPS-Non Delegated,Pp*kingschurchdarlingt,09/11/2018,45.00,Other Transfer Payments - Leaving Care Grants,Charitable and Social Service Organizations,GPC
18/10/2018 to 19/11/2018,C&YPS-Non Delegated,Premier Inn44011950,08/11/2018,79.13,Other Equipment & Materials - General,PREMIER TRAVEL,GPC
18/10/2018 to 19/11/2018,C&YPS-Non Delegated,Premier Inn44012235,08/11/2018,49.00,Other Transfer Payments - General,PREMIER TRAVEL,GPC
18/10/2018 to 19/11/2018,C&YPS-Non Delegated,Premier Inn44014915,27/10/2018,140.00,Subsistence - General,PREMIER TRAVEL,GPC
18/10/2018 to 19/11/2018,C&YPS-Non Delegated,Premier Inn44018550,24/10/2018,154.00,Subsistence - General,PREMIER TRAVEL,GPC
18/10/2018 to 19/11/2018,C&YPS-Non Delegated,Premiermeetings.Co.Uk,24/10/2018,183.60,Rent - General,Business Services-Not Elsewhere Classified,GPC
18/10/2018 to 19/11/2018,C&YPS-Non Delegated,Pret A Manger,15/11/2018,18.48,Other Equipment & Materials - General,"Eating Places, Restaurants",GPC
18/10/2018 to 19/11/2018,C&YPS-Non Delegated,Pricegate And Hensons Lim,15/11/2018,7.00,General Equipment - General,Hardware Equipment and Supplies,GPC
18/10/2018 to 19/11/2018,C&YPS-Non Delegated,Primark Stores Ltd,31/10/2018,127.30,Other Transfer Payments - Leaving Care Grants,Family Clothing Stores,GPC
18/10/2018 to 19/11/2018,C&YPS-Non Delegated,Rakki Rakkas,16/11/2018,8.50,Other Transfer Payments - General,"Eating Places, Restaurants",GPC
18/10/2018 to 19/11/2018,C&YPS-Non Delegated,Rideways,02/11/2018,137.44,Casual/Essential - General,Automobile Rental Agency,GPC
18/10/2018 to 19/11/2018,C&YPS-Non Delegated,Ringgo,15/11/2018,2.00,General Equipment - General,Automobile Parking Lots and Garages,GPC
18/10/2018 to 19/11/2018,C&YPS-Non Delegated,Ringgo,15/11/2018,3.00,General Equipment - General,Automobile Parking Lots and Garages,GPC
18/10/2018 to 19/11/2018,C&YPS-Non Delegated,Royal Marine Hotel,02/11/2018,303.67,Subsistence - General,"Lodging-Hotels, Motels, Resorts",GPC
18/10/2018 to 19/11/2018,C&YPS-Non Delegated,Royal Marine Hotel,02/11/2018,303.67,Subsistence - General,"Lodging-Hotels, Motels, Resorts",GPC
18/10/2018 to 19/11/2018,C&YPS-Non Delegated,Royal Marine Hotel,02/11/2018,303.67,Subsistence - General,"Lodging-Hotels, Motels, Resorts",GPC
18/10/2018 to 19/11/2018,C&YPS-Non Delegated,Royal Marine Hotel,02/11/2018,303.67,Subsistence - General,"Lodging-Hotels, Motels, Resorts",GPC
18/10/2018 to 19/11/2018,C&YPS-Non Delegated,Royal Marine Hotel,02/11/2018,303.67,Subsistence - General,"Lodging-Hotels, Motels, Resorts",GPC
18/10/2018 to 19/11/2018,C&YPS-Non Delegated,Sainsburys Petrol,14/11/2018,2.30,Other Equipment & Materials - General,Service Stations (with or without Ancillary Servic,GPC
18/10/2018 to 19/11/2018,C&YPS-Non Delegated,Sainsburys S/mkt,29/10/2018,25.95,General Equipment - General,"Grocery Stores, Supermarkets",GPC
18/10/2018 to 19/11/2018,C&YPS-Non Delegated,Sainsburys S/mkt,30/10/2018,5.55,General Equipment - General,"Grocery Stores, Supermarkets",GPC
18/10/2018 to 19/11/2018,C&YPS-Non Delegated,Sainsburys S/mkt,09/11/2018,4.05,General Equipment - General,"Grocery Stores, Supermarkets",GPC
18/10/2018 to 19/11/2018,C&YPS-Non Delegated,Sainsburys S/mkt,25/10/2018,8.75,Subsistence - General,"Grocery Stores, Supermarkets",GPC
18/10/2018 to 19/11/2018,C&YPS-Non Delegated,Sainsburys S/mkts,25/10/2018,8.45,General Equipment - General,"Grocery Stores, Supermarkets",GPC
18/10/2018 to 19/11/2018,C&YPS-Non Delegated,Sainsburys S/mkts,06/11/2018,6.85,General Equipment - General,"Grocery Stores, Supermarkets",GPC
18/10/2018 to 19/11/2018,C&YPS-Non Delegated,Sainsburys S/mkts,09/11/2018,8.85,General Equipment - General,"Grocery Stores, Supermarkets",GPC
18/10/2018 to 19/11/2018,C&YPS-Non Delegated,Sainsburys S/mkts,14/11/2018,19.33,General Equipment - General,"Grocery Stores, Supermarkets",GPC
18/10/2018 to 19/11/2018,C&YPS-Non Delegated,Sainsburys S/mkts,15/11/2018,7.30,General Equipment - General,"Grocery Stores, Supermarkets",GPC
18/10/2018 to 19/11/2018,C&YPS-Non Delegated,Sainsburys S/mkts,17/10/2018,1.40,Other Equipment & Materials - General,"Grocery Stores, Supermarkets",GPC
18/10/2018 to 19/11/2018,C&YPS-Non Delegated,Sainsburys S/mkts,30/10/2018,17.00,Other Equipment & Materials - General,"Grocery Stores, Supermarkets",GPC
18/10/2018 to 19/11/2018,C&YPS-Non Delegated,Sainsburys S/mkts,06/11/2018,32.10,Other Equipment & Materials - General,"Grocery Stores, Supermarkets",GPC
18/10/2018 to 19/11/2018,C&YPS-Non Delegated,Sainsburys S/mkts,17/10/2018,3.08,Other Expenditure - General,"Grocery Stores, Supermarkets",GPC
18/10/2018 to 19/11/2018,C&YPS-Non Delegated,Sainsburys S/mkts,24/10/2018,2.10,Other Transfer Payments - Section 24,"Grocery Stores, Supermarkets",GPC
18/10/2018 to 19/11/2018,C&YPS-Non Delegated,Sainsburys S/mkts,17/10/2018,8.00,Other Transfer Payments - Sector 17- Other,"Grocery Stores, Supermarkets",GPC
18/10/2018 to 19/11/2018,C&YPS-Non Delegated,Sainsburys S/mkts,24/10/2018,34.85,Provisions - General,"Grocery Stores, Supermarkets",GPC
18/10/2018 to 19/11/2018,C&YPS-Non Delegated,Sainsburys S/mkts,30/10/2018,16.25,Stationery - General,"Grocery Stores, Supermarkets",GPC
18/10/2018 to 19/11/2018,C&YPS-Non Delegated,Sainsburys S/mkts,01/11/2018,7.00,Stationery - General,"Grocery Stores, Supermarkets",GPC
18/10/2018 to 19/11/2018,C&YPS-Non Delegated,Screwfix Coalville,15/11/2018,39.99,Other Transfer Payments - General,"Building Materials, Lumber Stores",GPC
18/10/2018 to 19/11/2018,C&YPS-Non Delegated,Sportsdirect 125,18/10/2018,109.94,Materials - General,Sporting Goods Stores,GPC
18/10/2018 to 19/11/2018,C&YPS-Non Delegated,Sportsdirect 274,13/11/2018,40.51,Materials - General,Sporting Goods Stores,GPC
18/10/2018 to 19/11/2018,C&YPS-Non Delegated,Sportsdirect 371,31/10/2018,16.00,Other Transfer Payments - Leaving Care Grants,Sporting Goods Stores,GPC
18/10/2018 to 19/11/2018,C&YPS-Non Delegated,Star Carpets,18/10/2018,537.00,Other Transfer Payments - Leaving Care Grants,Floor Coverings   Stores,GPC
18/10/2018 to 19/11/2018,C&YPS-Non Delegated,Starbucks,02/11/2018,8.79,Other Expenditure - General,Fast-Food Restaurants (Quick Payment Service Pilot,GPC
18/10/2018 to 19/11/2018,C&YPS-Non Delegated,Subway,01/11/2018,5.50,Other Transfer Payments - Section 23 Grants,"Eating Places, Restaurants",GPC
18/10/2018 to 19/11/2018,C&YPS-Non Delegated,Subway,01/11/2018,3.33,Other Transfer Payments - Section 24,"Eating Places, Restaurants",GPC
18/10/2018 to 19/11/2018,C&YPS-Non Delegated,Superdrug Stores Plc,06/11/2018,4.99,Other Transfer Payments - General,"Drug Stores, Pharmacies",GPC
18/10/2018 to 19/11/2018,C&YPS-Non Delegated,Teaspoon Tea Company,30/10/2018,4.58,Other Transfer Payments - Section 23 Grants,"Eating Places, Restaurants",GPC
18/10/2018 to 19/11/2018,C&YPS-Non Delegated,Tesco Store 2846,27/10/2018,77.88,Materials - General,"Grocery Stores, Supermarkets",GPC
18/10/2018 to 19/11/2018,C&YPS-Non Delegated,Tesco Store 2846,03/11/2018,74.09,Materials - General,"Grocery Stores, Supermarkets",GPC
18/10/2018 to 19/11/2018,C&YPS-Non Delegated,Tesco Store 2849,22/10/2018,70.66,Materials - General,"Grocery Stores, Supermarkets",GPC
18/10/2018 to 19/11/2018,C&YPS-Non Delegated,Tesco Store 2849,31/10/2018,-10.00,Other Equipment & Materials - General,"Grocery Stores, Supermarkets",GPC
18/10/2018 to 19/11/2018,C&YPS-Non Delegated,Tesco Store 2849,01/11/2018,38.89,Other Equipment & Materials - General,"Grocery Stores, Supermarkets",GPC
18/10/2018 to 19/11/2018,C&YPS-Non Delegated,Tesco Store 2849,01/11/2018,13.97,Other Equipment & Materials - General,"Grocery Stores, Supermarkets",GPC
18/10/2018 to 19/11/2018,C&YPS-Non Delegated,Tesco Store 2849,12/11/2018,3.51,Other Equipment & Materials - General,"Grocery Stores, Supermarkets",GPC
18/10/2018 to 19/11/2018,C&YPS-Non Delegated,Tesco Store 2849,24/10/2018,14.99,Other Expenditure - General,"Grocery Stores, Supermarkets",GPC
18/10/2018 to 19/11/2018,C&YPS-Non Delegated,Tesco Stores 2044,29/10/2018,4.60,Other Transfer Payments - Section 23 Grants,"Grocery Stores, Supermarkets",GPC
18/10/2018 to 19/11/2018,C&YPS-Non Delegated,Tesco Stores 2849,29/10/2018,10.00,Other Equipment & Materials - General,"Grocery Stores, Supermarkets",GPC
18/10/2018 to 19/11/2018,C&YPS-Non Delegated,Tesco Stores 2849,28/10/2018,6.00,Training Expenses - General,"Grocery Stores, Supermarkets",GPC
18/10/2018 to 19/11/2018,C&YPS-Non Delegated,Tesco Stores 5182,06/11/2018,12.21,Other Equipment & Materials - General,"Grocery Stores, Supermarkets",GPC
18/10/2018 to 19/11/2018,C&YPS-Non Delegated,Tesco Stores 5182,23/10/2018,23.25,Other Expenditure - General,"Grocery Stores, Supermarkets",GPC
18/10/2018 to 19/11/2018,C&YPS-Non Delegated,Tesco Stores 5182,24/10/2018,9.45,Provisions - General,"Grocery Stores, Supermarkets",GPC
18/10/2018 to 19/11/2018,C&YPS-Non Delegated,Tesco Stores 5182,30/10/2018,7.99,Provisions - General,"Grocery Stores, Supermarkets",GPC
18/10/2018 to 19/11/2018,C&YPS-Non Delegated,Tesco Stores 5182,13/11/2018,11.34,Provisions - General,"Grocery Stores, Supermarkets",GPC
18/10/2018 to 19/11/2018,C&YPS-Non Delegated,The Book People,22/10/2018,15.99,Books - General,Book Stores,GPC
18/10/2018 to 19/11/2018,C&YPS-Non Delegated,The Book People,22/10/2018,17.57,Books - General,Book Stores,GPC
18/10/2018 to 19/11/2018,C&YPS-Non Delegated,The Book People,07/11/2018,103.90,Books - General,Book Stores,GPC
18/10/2018 to 19/11/2018,C&YPS-Non Delegated,The Book People,15/11/2018,64.90,Books - General,Book Stores,GPC
18/10/2018 to 19/11/2018,C&YPS-Non Delegated,The Home Office,19/10/2018,3.00,Other Expenditure - General,Government Services-Not Elsewhere Classified,GPC
18/10/2018 to 19/11/2018,C&YPS-Non Delegated,The Hub,05/11/2018,192.00,Other Transfer Payments - Education Costs,Schools and Educational Services-Not Elsewhere Cla,GPC
18/10/2018 to 19/11/2018,C&YPS-Non Delegated,The Old Red Lion,09/11/2018,34.13,Other Expenditure - General,"Eating Places, Restaurants",GPC
18/10/2018 to 19/11/2018,C&YPS-Non Delegated,The Post Office,01/11/2018,6.50,Other Transfer Payments - General,Postage Stamps,GPC
18/10/2018 to 19/11/2018,C&YPS-Non Delegated,The Post Office,09/11/2018,6.50,Other Transfer Payments - Section 23 Grants,Postage Stamps,GPC
18/10/2018 to 19/11/2018,C&YPS-Non Delegated,The Post Office,22/10/2018,27.84,Stationery - General,Postage Stamps,GPC
18/10/2018 to 19/11/2018,C&YPS-Non Delegated,The Range,17/10/2018,7.49,Other Transfer Payments - Section 23 Grants,Department Stores,GPC
18/10/2018 to 19/11/2018,C&YPS-Non Delegated,The Range,25/10/2018,21.96,Other Transfer Payments - Section 23 Grants,Department Stores,GPC
18/10/2018 to 19/11/2018,C&YPS-Non Delegated,The Store Room,26/10/2018,116.00,Other Transfer Payments - Section 24,"Motor Freight Carriers, and Trucking",GPC
18/10/2018 to 19/11/2018,C&YPS-Non Delegated,Trainline,24/10/2018,31.75,Training Expenses - General,Passenger Railways,GPC
18/10/2018 to 19/11/2018,C&YPS-Non Delegated,Travelodge Gb0000,02/11/2018,454.75,Other Transfer Payments - Sector 17- Other,Travelodge,GPC
18/10/2018 to 19/11/2018,C&YPS-Non Delegated,Travelodge Gb0000,09/11/2018,389.79,Other Transfer Payments - Sector 17- Other,Travelodge,GPC
18/10/2018 to 19/11/2018,C&YPS-Non Delegated,Travelodge Gb0000,16/11/2018,397.29,Other Transfer Payments - Sector 17- Other,Travelodge,GPC
18/10/2018 to 19/11/2018,C&YPS-Non Delegated,Tv Licensing,09/11/2018,150.50,Other Transfer Payments - Leaving Care Grants,"Management, Consulting and Public Relations Servic",GPC
18/10/2018 to 19/11/2018,C&YPS-Non Delegated,Tvlicensing.Co.Uk,24/10/2018,150.50,Other Premises Expenses - General,"Management, Consulting and Public Relations Servic",GPC
18/10/2018 to 19/11/2018,C&YPS-Non Delegated,University Hospitals Of L,24/10/2018,3.30,Other Transfer Payments - Section 24,Automobile Parking Lots and Garages,GPC
18/10/2018 to 19/11/2018,C&YPS-Non Delegated,University Hospitals Of L,09/11/2018,1.70,Other Transfer Payments - Section 24,Automobile Parking Lots and Garages,GPC
18/10/2018 to 19/11/2018,C&YPS-Non Delegated,Upper Crust-12941713,15/11/2018,7.33,Books - General,Fast-Food Restaurants (Quick Payment Service Pilot,GPC
18/10/2018 to 19/11/2018,C&YPS-Non Delegated,Upt - Nottinghamcity Cou,22/10/2018,4.00,Other Transfer Payments - General,Automobile Parking Lots and Garages,GPC
18/10/2018 to 19/11/2018,C&YPS-Non Delegated,W Boyes & Co Ltd Coalv,12/11/2018,5.16,Stationery - General,Discount Stores,GPC
18/10/2018 to 19/11/2018,C&YPS-Non Delegated,Waitrose 141,22/10/2018,15.00,Other Equipment & Materials - General,"Grocery Stores, Supermarkets",GPC
18/10/2018 to 19/11/2018,C&YPS-Non Delegated,Wayfair #2595849548,25/10/2018,209.99,Other Transfer Payments - Leaving Care Grants,CombinationMail/Phones and Retail Merchants,GPC
18/10/2018 to 19/11/2018,C&YPS-Non Delegated,West Coast Trains,13/11/2018,9.00,General Equipment - General,Automobile Parking Lots and Garages,GPC
18/10/2018 to 19/11/2018,C&YPS-Non Delegated,White Ribbon Uk,09/11/2018,205.00,Provisions - General,Men's And Women's Clothing Stores,GPC
18/10/2018 to 19/11/2018,C&YPS-Non Delegated,Wilko Retail Limit,26/10/2018,3.50,Other Equipment & Materials - General,Household Appliance Stores,GPC
18/10/2018 to 19/11/2018,C&YPS-Non Delegated,Wilko Retail Limit,13/11/2018,27.15,Other Equipment & Materials - General,Household Appliance Stores,GPC
18/10/2018 to 19/11/2018,C&YPS-Non Delegated,Wilko Retail Limit,25/10/2018,56.05,Other Expenditure - General,Household Appliance Stores,GPC
18/10/2018 to 19/11/2018,C&YPS-Non Delegated,Wilko Retail Limit,24/10/2018,8.00,Other Transfer Payments - Leaving Care Grants,Household Appliance Stores,GPC
18/10/2018 to 19/11/2018,C&YPS-Non Delegated,Wilko Retail Limit,26/10/2018,20.55,Other Transfer Payments - Leaving Care Grants,Household Appliance Stores,GPC
18/10/2018 to 19/11/2018,C&YPS-Non Delegated,Wilko Retail Limit,29/10/2018,7.75,Provisions - General,Household Appliance Stores,GPC
18/10/2018 to 19/11/2018,C&YPS-Non Delegated,Wilko.Com,31/10/2018,10.00,Other Transfer Payments - Leaving Care Grants,Miscellaneous General Merchandise Stores,GPC
18/10/2018 to 19/11/2018,C&YPS-Non Delegated,Wistow Cafe Bistro,24/10/2018,9.10,Other Expenditure - General,"Eating Places, Restaurants",GPC
18/10/2018 to 19/11/2018,C&YPS-Non Delegated,Wm Morrisons Store,17/10/2018,17.60,Other Transfer Payments - General,"Grocery Stores, Supermarkets",GPC
18/10/2018 to 19/11/2018,C&YPS-Non Delegated,Wm Morrisons Store,17/10/2018,9.50,Other Transfer Payments - General,"Grocery Stores, Supermarkets",GPC
18/10/2018 to 19/11/2018,C&YPS-Non Delegated,Wm Morrisons Store,18/10/2018,40.35,Other Transfer Payments - Section 24,"Grocery Stores, Supermarkets",GPC
18/10/2018 to 19/11/2018,C&YPS-Non Delegated,Wm Morrisons Store,25/10/2018,10.00,Other Transfer Payments - Section 24,"Grocery Stores, Supermarkets",GPC
18/10/2018 to 19/11/2018,C&YPS-Non Delegated,Wm Morrisons Store,22/10/2018,5.32,Provisions - General,"Grocery Stores, Supermarkets",GPC
18/10/2018 to 19/11/2018,C&YPS-Non Delegated,Wm Morrisons Store,18/10/2018,8.90,Subsistence - General,"Grocery Stores, Supermarkets",GPC
18/10/2018 to 19/11/2018,C&YPS-Non Delegated,Wm Morrisons Store,31/10/2018,6.20,Subsistence - General,"Grocery Stores, Supermarkets",GPC
18/10/2018 to 19/11/2018,C&YPS-Non Delegated,Wm Morrisons Store,06/11/2018,3.35,Subsistence - General,"Grocery Stores, Supermarkets",GPC
18/10/2018 to 19/11/2018,C&YPS-Non Delegated,Wm Morrisons Store,14/11/2018,4.70,Subsistence - General,"Grocery Stores, Supermarkets",GPC
18/10/2018 to 19/11/2018,C&YPS-Non Delegated,Wm Morrisons Store,14/11/2018,3.70,Subsistence - General,"Grocery Stores, Supermarkets",GPC
18/10/2018 to 19/11/2018,C&YPS-Non Delegated,Wp-Warwickshire Co,02/11/2018,10.67,Other Transfer Payments - Section 23 Grants,Government Services-Not Elsewhere Classified,GPC
18/10/2018 to 19/11/2018,C&YPS-Non Delegated,Www.Argos.Co.Uk,23/10/2018,274.96,Fixtures & Fittings - General,Discount Stores,GPC
18/10/2018 to 19/11/2018,C&YPS-Non Delegated,Www.Argos.Co.Uk,14/11/2018,45.00,Materials - General,Discount Stores,GPC
18/10/2018 to 19/11/2018,C&YPS-Non Delegated,Www.Argos.Co.Uk,31/10/2018,68.94,Other Equipment & Materials - General,Discount Stores,GPC
18/10/2018 to 19/11/2018,C&YPS-Non Delegated,Www.Argos.Co.Uk,07/11/2018,163.85,Other Equipment & Materials - General,Discount Stores,GPC
18/10/2018 to 19/11/2018,C&YPS-Non Delegated,Www.Argos.Co.Uk,24/10/2018,141.94,Other Transfer Payments - Leaving Care Grants,Discount Stores,GPC
18/10/2018 to 19/11/2018,C&YPS-Non Delegated,Www.Argos.Co.Uk,24/10/2018,53.97,Other Transfer Payments - Leaving Care Grants,Discount Stores,GPC
18/10/2018 to 19/11/2018,C&YPS-Non Delegated,Www.Argos.Co.Uk,26/10/2018,63.94,Other Transfer Payments - Leaving Care Grants,Discount Stores,GPC
18/10/2018 to 19/11/2018,C&YPS-Non Delegated,Www.Argos.Co.Uk,29/10/2018,-214.99,Other Transfer Payments - Leaving Care Grants,Discount Stores,GPC
18/10/2018 to 19/11/2018,C&YPS-Non Delegated,Www.Argos.Co.Uk,22/10/2018,48.95,Provisions - General,Discount Stores,GPC
18/10/2018 to 19/11/2018,C&YPS-Non Delegated,Www.Argos.Co.Uk,23/10/2018,233.94,Provisions - General,Discount Stores,GPC
18/10/2018 to 19/11/2018,C&YPS-Non Delegated,Www.Argos.Co.Uk,23/10/2018,56.94,Provisions - General,Discount Stores,GPC
18/10/2018 to 19/11/2018,C&YPS-Non Delegated,Www.Bristowsutor.C,01/11/2018,-423.00,Other Transfer Payments - General,Government Services-Not Elsewhere Classified,GPC
18/10/2018 to 19/11/2018,C&YPS-Non Delegated,Www.Brooksbymelton.Ac.,15/11/2018,93.50,Other Equipment & Materials - General,"Theatrical Products (Except Motion Pictures), Tick",GPC
18/10/2018 to 19/11/2018,C&YPS-Non Delegated,Www.Just-Schoolwear.Co,23/10/2018,18.95,Other Transfer Payments - Section 23 Grants,Children's and Infants' Wear Stores,GPC
18/10/2018 to 19/11/2018,C&YPS-Non Delegated,Www.Kinchbus.Co.Uk,26/10/2018,24.00,Other Transfer Payments - General,"Bus Lines, Charters, Tour Buses",GPC
18/10/2018 to 19/11/2018,C&YPS-Non Delegated,Www.Kinchbus.Co.Uk,01/11/2018,24.00,Other Transfer Payments - General,"Bus Lines, Charters, Tour Buses",GPC
18/10/2018 to 19/11/2018,C&YPS-Non Delegated,Www.Nonstopkids.Co.Uk,07/11/2018,199.00,Public Transport -  Staff - General,"Bands, Orchestras, Entertainers",GPC
18/10/2018 to 19/11/2018,C&YPS-Non Delegated,Www.Pmgltd.Co.Uk,17/10/2018,-355.50,Training Expenses - General,Business Services-Not Elsewhere Classified,GPC
18/10/2018 to 19/11/2018,C&YPS-Non Delegated,Www.Puregym.Com,18/10/2018,166.99,Other Expenditure - General,"Membership Clubs (Sports, Recreation, Athletic), C",GPC
18/10/2018 to 19/11/2018,C&YPS-Non Delegated,Www.Treasuretrails.Co.,01/11/2018,6.99,Other Equipment & Materials - General,"Hobby, Toy, and Game Shops",GPC
18/10/2018 to 19/11/2018,C&YPS-Non Delegated,Www.Tts-Groups.Co.Uk,22/10/2018,95.85,Other Equipment & Materials - General,"Stationery, Office, and School Supply Stores",GPC
18/10/2018 to 19/11/2018,C&YPS-Non Delegated,Www.Txtlocal.Com,19/10/2018,49.00,Telephones - General,"Management, Consulting and Public Relations Servic",GPC
18/10/2018 to 19/11/2018,C&YPS-Non Delegated,Information not known,31/10/2018,0.04,General Equipment - General,Misc-Unknown,GPC
18/10/2018 to 19/11/2018,C&YPS-Non Delegated,Information not known,05/11/2018,-0.03,General Equipment - General,Misc-Unknown,GPC
18/10/2018 to 19/11/2018,C&YPS-Non Delegated,Information not known,12/11/2018,2.08,Other Transfer Payments - General,Misc-Unknown,GPC
18/10/2018 to 19/11/2018,C&YPS-Non Delegated,Information not known,05/11/2018,8.35,Subsistence - General,Misc-Unknown,GPC
18/10/2018 to 19/11/2018,C&YPS-Non Delegated,Information not known,05/11/2018,8.35,Subsistence - General,Misc-Unknown,GPC
18/10/2018 to 19/11/2018,C&YPS-Non Delegated,Information not known,05/11/2018,8.35,Subsistence - General,Misc-Unknown,GPC
18/10/2018 to 19/11/2018,C&YPS-Non Delegated,Information not known,05/11/2018,8.35,Subsistence - General,Misc-Unknown,GPC
18/10/2018 to 19/11/2018,C&YPS-Non Delegated,Information not known,05/11/2018,8.35,Subsistence - General,Misc-Unknown,GPC
18/10/2018 to 19/11/2018,C&YPS-Schools,Aldi 16 772,22/10/2018,8.45,Materials - General,"Grocery Stores, Supermarkets",GPC
18/10/2018 to 19/11/2018,C&YPS-Schools,Aldi 16 772,24/10/2018,37.45,Materials - General,"Grocery Stores, Supermarkets",GPC
18/10/2018 to 19/11/2018,C&YPS-Schools,Aldi 16 772,29/10/2018,5.92,Materials - General,"Grocery Stores, Supermarkets",GPC
18/10/2018 to 19/11/2018,C&YPS-Schools,Aldi 16 772,01/11/2018,6.54,Materials - General,"Grocery Stores, Supermarkets",GPC
18/10/2018 to 19/11/2018,C&YPS-Schools,Aldi 16 772,14/11/2018,24.41,Materials - General,"Grocery Stores, Supermarkets",GPC
18/10/2018 to 19/11/2018,C&YPS-Schools,Aldi 16 772,16/11/2018,3.73,Materials - General,"Grocery Stores, Supermarkets",GPC
18/10/2018 to 19/11/2018,C&YPS-Schools,Aldi 33 772,30/10/2018,5.83,Materials - General,"Grocery Stores, Supermarkets",GPC
18/10/2018 to 19/11/2018,C&YPS-Schools,B & Q 1043,15/11/2018,5.80,R & M of Buildings - General,"Building Materials, Lumber Stores",GPC
18/10/2018 to 19/11/2018,C&YPS-Schools,Espo,01/11/2018,16.54,Other Expenditure - General,Government Services-Not Elsewhere Classified,GPC
18/10/2018 to 19/11/2018,C&YPS-Schools,Espo,12/11/2018,109.82,Other Expenditure - General,Government Services-Not Elsewhere Classified,GPC
18/10/2018 to 19/11/2018,C&YPS-Schools,Homebase Ltd 041,01/11/2018,18.88,R & M of Buildings - General,"Building Materials, Lumber Stores",GPC
18/10/2018 to 19/11/2018,C&YPS-Schools,Lidl UK South Wigston,12/11/2018,5.45,Materials - General,"Grocery Stores, Supermarkets",GPC
18/10/2018 to 19/11/2018,C&YPS-Schools,Paperstone Limited,16/11/2018,11.92,Stationery - General,"Stationery, Office, and School Supply Stores",GPC
18/10/2018 to 19/11/2018,C&YPS-Schools,Sainsburys S/Mkts,11/11/2018,10.30,Materials - General,"Grocery Stores, Supermarkets",GPC
18/10/2018 to 19/11/2018,C&YPS-Schools,Sdenterprises,12/11/2018,40.35,R&M of Vehicles-Non Contract - General,"Automotive Parts, Accessories Stores",GPC
18/10/2018 to 19/11/2018,C&YPS-Schools,Tesco Stores 5182,23/10/2018,7.99,Materials - General,"Grocery Stores, Supermarkets",GPC
18/10/2018 to 19/11/2018,C&YPS-Schools,Tesco Stores 5182,24/10/2018,21.73,Materials - General,"Grocery Stores, Supermarkets",GPC
18/10/2018 to 19/11/2018,C&YPS-Schools,Tesco Stores 5182,24/10/2018,9.60,Materials - General,"Grocery Stores, Supermarkets",GPC
18/10/2018 to 19/11/2018,C&YPS-Schools,Tesco Stores 5182,15/11/2018,7.36,Materials - General,"Grocery Stores, Supermarkets",GPC
18/10/2018 to 19/11/2018,C&YPS-Schools,Waitrose 141,16/11/2018,1.80,Materials - General,"Grocery Stores, Supermarkets",GPC
18/10/2018 to 19/11/2018,C&YPS-Schools,Wm Morrisons Store,01/11/2018,20.66,Materials - General,"Grocery Stores, Supermarkets",GPC
18/10/2018 to 19/11/2018,C&YPS-Schools,Wm Morrisons Store,05/11/2018,34.44,Materials - General,"Grocery Stores, Supermarkets",GPC
18/10/2018 to 19/11/2018,Chief Executive,2co.Com*httpdebug,29/10/2018,54.26,IT Equipment - General,Digital Goods,GPC
18/10/2018 to 19/11/2018,Chief Executive,Acg,18/10/2018,150.00,Training Expenses - General,Business Services-Not Elsewhere Classified,GPC
18/10/2018 to 19/11/2018,Chief Executive,Amazon.Co.Uk*m82y41lm4 Am,11/11/2018,11.89,Stationery - General,Miscellaneous and Specialty Retail Stores,GPC
18/10/2018 to 19/11/2018,Chief Executive,Amazon.Co.Uk*m888o4xb4 Am,18/11/2018,54.14,Materials - General,Miscellaneous and Specialty Retail Stores,GPC
18/10/2018 to 19/11/2018,Chief Executive,Amazon.Co.Uk*mt75f81r4,23/10/2018,16.71,Other Expenditure - General,Direct Marketers - Other,GPC
18/10/2018 to 19/11/2018,Chief Executive,Amazon.Co.Uk*mt9io2rd4 Am,06/11/2018,78.54,Materials - General,Miscellaneous and Specialty Retail Stores,GPC
18/10/2018 to 19/11/2018,Chief Executive,Amazon.Co.Uk*mt9tu9bc4 Am,29/10/2018,28.16,Stationery - General,Miscellaneous and Specialty Retail Stores,GPC
18/10/2018 to 19/11/2018,Chief Executive,Amzn Mktp Uk*m89676ly4 Am,11/11/2018,17.06,Other Expenditure - General,Book Stores,GPC
18/10/2018 to 19/11/2018,Chief Executive,Amzn Mktp Uk*mt0cb9uc4 Am,05/11/2018,18.28,Other Expenditure - General,Book Stores,GPC
18/10/2018 to 19/11/2018,Chief Executive,Amzn Mktp Uk*mt1x791l4,24/10/2018,137.45,Books - General,Book Stores,GPC
18/10/2018 to 19/11/2018,Chief Executive,Amzn Mktp Uk*mt5o02wj4 Am,07/11/2018,9.22,Books - General,Book Stores,GPC
18/10/2018 to 19/11/2018,Chief Executive,Amzn Mktp Uk*mt6m106u4,31/10/2018,13.70,Books - General,Book Stores,GPC
18/10/2018 to 19/11/2018,Chief Executive,Amzn Mktp Uk*mt8k81ps4 Am,25/10/2018,51.86,Other Expenditure - General,Book Stores,GPC
18/10/2018 to 19/11/2018,Chief Executive,Argos Ltd,26/10/2018,19.99,Materials - General,Discount Stores,GPC
18/10/2018 to 19/11/2018,Chief Executive,B & Q 1012,10/11/2018,26.96,Other Expenditure - General,"Building Materials, Lumber Stores",GPC
18/10/2018 to 19/11/2018,Chief Executive,Brooksby Enterprises L,01/11/2018,216.67,Other Expenditure - General,Schools and Educational Services-Not Elsewhere Cla,GPC
18/10/2018 to 19/11/2018,Chief Executive,Charnwood Borough Council,13/11/2018,1.60,Casual/Essential - General,Automobile Parking Lots and Garages,GPC
18/10/2018 to 19/11/2018,Chief Executive,Companies House,07/11/2018,13.00,Other Expenditure - General,Government Services-Not Elsewhere Classified,GPC
18/10/2018 to 19/11/2018,Chief Executive,East Midlands Trai,18/10/2018,53.33,Public Transport -  Staff - General,Passenger Railways,GPC
18/10/2018 to 19/11/2018,Chief Executive,East Midlands Trains Ltd,14/11/2018,10.00,Casual/Essential - General,Automobile Parking Lots and Garages,GPC
18/10/2018 to 19/11/2018,Chief Executive,Eh Ford,02/11/2018,336.07,R&M of Vehicles-Non Contract - General,Automotive Repair Shops (non-dealer),GPC
18/10/2018 to 19/11/2018,Chief Executive,Fsprg.Uk,16/11/2018,830.00,Conference - General,#N/A,GPC
18/10/2018 to 19/11/2018,Chief Executive,Hilton Hotels,18/10/2018,175.58,Conference - General,Hilton Hotels,GPC
18/10/2018 to 19/11/2018,Chief Executive,Lcc Catering Services,19/10/2018,9.63,Other Expenditure - General,Government Services-Not Elsewhere Classified,GPC
18/10/2018 to 19/11/2018,Chief Executive,Man.Airport Revenue Of,08/11/2018,68.80,Other Agency & Cont Services - General,"Airports, Airport Terminals, Flying Fields",GPC
18/10/2018 to 19/11/2018,Chief Executive,Morplan Ltd,07/11/2018,70.85,Other Equipment & Materials - General,"Stationery, Office, and School Supply Stores",GPC
18/10/2018 to 19/11/2018,Chief Executive,Nalc,22/10/2018,295.00,Conference - General,Business Services-Not Elsewhere Classified,GPC
18/10/2018 to 19/11/2018,Chief Executive,Ncp Limited,18/10/2018,10.83,Casual/Essential - General,Automobile Parking Lots and Garages,GPC
18/10/2018 to 19/11/2018,Chief Executive,Paypal *homemade B,31/10/2018,103.50,Other Expenditure - General,"Package Stores, Beer, Wine, Liquor",GPC
18/10/2018 to 19/11/2018,Chief Executive,Post Office Counter,19/10/2018,20.10,Postal Services - General,Postage Stamps,GPC
18/10/2018 to 19/11/2018,Chief Executive,Premier Inn 44537570,24/10/2018,84.17,Conference - General,PREMIER TRAVEL,GPC
18/10/2018 to 19/11/2018,Chief Executive,Premier Inn44514000,08/11/2018,55.42,Training Expenses - General,PREMIER TRAVEL,GPC
18/10/2018 to 19/11/2018,Chief Executive,Ramada Plaza Hotel,17/10/2018,63.33,Subsistence - General,"Lodging-Hotels, Motels, Resorts",GPC
18/10/2018 to 19/11/2018,Chief Executive,Royal Mail,05/11/2018,58.00,Postal Services - General,Postage Stamps,GPC
18/10/2018 to 19/11/2018,Chief Executive,Royal Mail,07/11/2018,183.00,Postal Services - General,Postage Stamps,GPC
18/10/2018 to 19/11/2018,Chief Executive,Tesco Store 2846,17/10/2018,31.25,Other Expenditure - General,"Grocery Stores, Supermarkets",GPC
18/10/2018 to 19/11/2018,Chief Executive,Tesco Store 2846,10/11/2018,73.63,Other Expenditure - General,"Grocery Stores, Supermarkets",GPC
18/10/2018 to 19/11/2018,Chief Executive,Tonys Textiles Online,23/10/2018,9.54,Other Expenditure - General,Miscellaneous House Furnishing Specialty Shops,GPC
18/10/2018 to 19/11/2018,Chief Executive,Tramlink Nottingham Limit,30/10/2018,4.00,Casual/Essential - General,Local and Suburban Commuter Pass Trans,GPC
18/10/2018 to 19/11/2018,Chief Executive,Tramlink Nottingham Limit,07/11/2018,4.00,Casual/Essential - General,Local and Suburban Commuter Pass Trans,GPC
18/10/2018 to 19/11/2018,Chief Executive,Travelodge Gb0000,16/11/2018,102.46,Training Expenses - General,Travelodge,GPC
18/10/2018 to 19/11/2018,Chief Executive,Vodafone Ps,17/10/2018,60.00,Telephones - General,Telecommunication Service Including Local and Long,GPC
18/10/2018 to 19/11/2018,Chief Executive,Vodafone Ps,07/11/2018,60.00,Telephones - General,Telecommunication Service Including Local and Long,GPC
18/10/2018 to 19/11/2018,Chief Executive,Westminster Forum,25/10/2018,230.00,Conference - General,"Management, Consulting and Public Relations Servic",GPC
18/10/2018 to 19/11/2018,Chief Executive,Wilko Retail Limit,17/10/2018,54.25,Other Expenditure - General,Household Appliance Stores,GPC
18/10/2018 to 19/11/2018,Chief Executive,Www.Neopost.Co.Uk,22/10/2018,500.00,Stationery - General,"Stationary, Office Supplies, Printing and Writing",GPC
18/10/2018 to 19/11/2018,Chief Executive,Www.Pcwb.Com,22/10/2018,106.60,IT Equipment - General,Computer Software Stores,GPC
18/10/2018 to 19/11/2018,Chief Executive,Www.Preservationequipm,23/10/2018,116.94,Other Expenditure - General,Public Warehousing,GPC
18/10/2018 to 19/11/2018,Chief Executive,Www.Theworks.Co.Uk,05/11/2018,36.00,Stationery - General,Discount Stores,GPC
18/10/2018 to 19/11/2018,Chief Executive,Information not known,30/10/2018,1.49,IT Equipment - General,Misc-Unknown,GPC
18/10/2018 to 19/11/2018,Corporate Resources,123 Hire Ltd,17/10/2018,-24.00,Other Expenditure - General,"Equipment Rental and Leasing Services, Tool Rental",GPC
18/10/2018 to 19/11/2018,Corporate Resources,Aldi 19 772,12/11/2018,9.95,Materials - General,"Grocery Stores, Supermarkets",GPC
18/10/2018 to 19/11/2018,Corporate Resources,Aldi 19 772,05/11/2018,2.37,Other Expenditure - General,"Grocery Stores, Supermarkets",GPC
18/10/2018 to 19/11/2018,Corporate Resources,Aldi 56 772,16/11/2018,1.99,Materials - General,"Grocery Stores, Supermarkets",GPC
18/10/2018 to 19/11/2018,Corporate Resources,Aldi Stores Ltd,12/11/2018,1.99,Materials - General,"Grocery Stores, Supermarkets",GPC
18/10/2018 to 19/11/2018,Corporate Resources,Amazon Prime*mt8z13tr4,19/10/2018,6.66,Other Expenditure - General,Continuity/Subscription Merchants,GPC
18/10/2018 to 19/11/2018,Corporate Resources,Amazon.Co.Uk Amazon.Co.Uk,17/10/2018,22.64,IT Equipment - Purchase - Hardware,Miscellaneous and Specialty Retail Stores,GPC
18/10/2018 to 19/11/2018,Corporate Resources,Amazon.Co.Uk Amazon.Co.Uk,17/10/2018,15.15,IT Equipment - Purchase - Hardware,Miscellaneous and Specialty Retail Stores,GPC
18/10/2018 to 19/11/2018,Corporate Resources,Amazon.Co.Uk Amazon.Co.Uk,17/10/2018,7.46,Other Equipment & Materials - General,Miscellaneous and Specialty Retail Stores,GPC
18/10/2018 to 19/11/2018,Corporate Resources,Amazon.Co.Uk*m80ct5e14 Am,14/11/2018,20.40,Materials - General,Miscellaneous and Specialty Retail Stores,GPC
18/10/2018 to 19/11/2018,Corporate Resources,Amazon.Co.Uk*m82958p94 Am,16/11/2018,18.42,Materials - General,Miscellaneous and Specialty Retail Stores,GPC
18/10/2018 to 19/11/2018,Corporate Resources,Amazon.Co.Uk*m82lv90y4 Am,15/11/2018,50.54,Operational Equipment - General,Miscellaneous and Specialty Retail Stores,GPC
18/10/2018 to 19/11/2018,Corporate Resources,Amazon.Co.Uk*m841x30e4 Am,15/11/2018,60.06,Materials - General,Miscellaneous and Specialty Retail Stores,GPC
18/10/2018 to 19/11/2018,Corporate Resources,Amazon.Co.Uk*m84us9024,15/11/2018,5.81,Other Equipment & Materials - General,Direct Marketers - Other,GPC
18/10/2018 to 19/11/2018,Corporate Resources,Amazon.Co.Uk*m856i2vz4 Am,18/11/2018,47.03,IT Equipment - Repairs,Miscellaneous and Specialty Retail Stores,GPC
18/10/2018 to 19/11/2018,Corporate Resources,Amazon.Co.Uk*m85bw1eo4 Am,15/11/2018,13.69,Materials - General,Miscellaneous and Specialty Retail Stores,GPC
18/10/2018 to 19/11/2018,Corporate Resources,Amazon.Co.Uk*m87lr6ei4 Am,14/11/2018,17.72,Materials - General,Miscellaneous and Specialty Retail Stores,GPC
18/10/2018 to 19/11/2018,Corporate Resources,Amazon.Co.Uk*m897v8zv4,12/11/2018,46.00,Training Expenses - General,Direct Marketers - Other,GPC
18/10/2018 to 19/11/2018,Corporate Resources,Amazon.Co.Uk*mt0b36a84,21/10/2018,8.32,Other Expenditure - General,Direct Marketers - Other,GPC
18/10/2018 to 19/11/2018,Corporate Resources,Amazon.Co.Uk*mt0j46uq4 Am,05/11/2018,34.19,Training Expenses - General,Miscellaneous and Specialty Retail Stores,GPC
18/10/2018 to 19/11/2018,Corporate Resources,Amazon.Co.Uk*mt0o52am4 Am,21/10/2018,16.31,Stationery - General,Miscellaneous and Specialty Retail Stores,GPC
18/10/2018 to 19/11/2018,Corporate Resources,Amazon.Co.Uk*mt0up2y14 Am,07/11/2018,67.48,Materials - General,Miscellaneous and Specialty Retail Stores,GPC
18/10/2018 to 19/11/2018,Corporate Resources,Amazon.Co.Uk*mt1372rh4 Am,06/11/2018,26.60,Training Expenses - General,Miscellaneous and Specialty Retail Stores,GPC
18/10/2018 to 19/11/2018,Corporate Resources,Amazon.Co.Uk*mt1395rf4 Am,06/11/2018,26.60,Training Expenses - General,Miscellaneous and Specialty Retail Stores,GPC
18/10/2018 to 19/11/2018,Corporate Resources,Amazon.Co.Uk*mt2if9at4,21/10/2018,84.38,IT Equipment - Repairs,Direct Marketers - Other,GPC
18/10/2018 to 19/11/2018,Corporate Resources,Amazon.Co.Uk*mt3oe3sv4 Am,01/11/2018,10.22,Materials - General,Miscellaneous and Specialty Retail Stores,GPC
18/10/2018 to 19/11/2018,Corporate Resources,Amazon.Co.Uk*mt4yf7rz4 Am,06/11/2018,26.60,Training Expenses - General,Miscellaneous and Specialty Retail Stores,GPC
18/10/2018 to 19/11/2018,Corporate Resources,Amazon.Co.Uk*mt50p9n34,19/10/2018,93.24,Stationery - General,Direct Marketers - Other,GPC
18/10/2018 to 19/11/2018,Corporate Resources,Amazon.Co.Uk*mt63z2ev4 Am,22/10/2018,23.35,Other Equipment & Materials - General,Miscellaneous and Specialty Retail Stores,GPC
18/10/2018 to 19/11/2018,Corporate Resources,Amazon.Co.Uk*mt6tw7wy4 Am,07/11/2018,7.77,Materials - General,Miscellaneous and Specialty Retail Stores,GPC
18/10/2018 to 19/11/2018,Corporate Resources,Amazon.Co.Uk*mt6x87wq4 Am,07/11/2018,18.60,Materials - General,Miscellaneous and Specialty Retail Stores,GPC
18/10/2018 to 19/11/2018,Corporate Resources,Amazon.Co.Uk*mt7f65lb4,17/10/2018,2.62,Other Expenditure - General,Direct Marketers - Other,GPC
18/10/2018 to 19/11/2018,Corporate Resources,Amazon.Co.Uk*mt7g31m44,27/10/2018,14.80,Other Expenditure - General,Direct Marketers - Other,GPC
18/10/2018 to 19/11/2018,Corporate Resources,Amazon.Co.Uk*mt7x95wh4 Am,07/11/2018,7.77,Materials - General,Miscellaneous and Specialty Retail Stores,GPC
18/10/2018 to 19/11/2018,Corporate Resources,Amz*frienda Direct,13/11/2018,-39.27,Stationery - General,Miscellaneous and Specialty Retail Stores,GPC
18/10/2018 to 19/11/2018,Corporate Resources,Amz*tecunite Eu,13/11/2018,-59.90,Other Equipment & Materials - General,Miscellaneous and Specialty Retail Stores,GPC
18/10/2018 to 19/11/2018,Corporate Resources,Amzn Mktp Uk,17/10/2018,11.34,Other Equipment & Materials - General,Book Stores,GPC
18/10/2018 to 19/11/2018,Corporate Resources,Amzn Mktp Uk*m81m51zu4 Am,12/11/2018,1.89,Books - General,Book Stores,GPC
18/10/2018 to 19/11/2018,Corporate Resources,Amzn Mktp Uk*m81ud6fq4 Am,09/11/2018,12.74,Books - General,Book Stores,GPC
18/10/2018 to 19/11/2018,Corporate Resources,Amzn Mktp Uk*m823931i4 Am,16/11/2018,3.88,Books - General,Book Stores,GPC
18/10/2018 to 19/11/2018,Corporate Resources,Amzn Mktp Uk*m82aj7l04 Am,11/11/2018,5.14,Operational Equipment - General,Book Stores,GPC
18/10/2018 to 19/11/2018,Corporate Resources,Amzn Mktp Uk*m82aj7l04 Am,11/11/2018,25.84,Protective Clothing & Uniforms - General,Book Stores,GPC
18/10/2018 to 19/11/2018,Corporate Resources,Amzn Mktp Uk*m82dq9014 Am,15/11/2018,31.98,Publicity/Marketing - General,Book Stores,GPC
18/10/2018 to 19/11/2018,Corporate Resources,Amzn Mktp Uk*m82q82ee4 Am,15/11/2018,262.84,IT Equipment - Repairs,Book Stores,GPC
18/10/2018 to 19/11/2018,Corporate Resources,Amzn Mktp Uk*m82wt80z4 Am,15/11/2018,1.70,Books - General,Book Stores,GPC
18/10/2018 to 19/11/2018,Corporate Resources,Amzn Mktp Uk*m82xg7e24 Am,15/11/2018,19.15,Other Services - General,Book Stores,GPC
18/10/2018 to 19/11/2018,Corporate Resources,Amzn Mktp Uk*m82y123s4 Am,13/11/2018,20.00,Other Equipment & Materials - General,Book Stores,GPC
18/10/2018 to 19/11/2018,Corporate Resources,Amzn Mktp Uk*m83ld8x84 Am,17/11/2018,13.73,Books - General,Book Stores,GPC
18/10/2018 to 19/11/2018,Corporate Resources,Amzn Mktp Uk*m83ye03q4 Am,13/11/2018,1.52,Books - General,Book Stores,GPC
18/10/2018 to 19/11/2018,Corporate Resources,Amzn Mktp Uk*m848l3104 Am,16/11/2018,15.42,Books - General,Book Stores,GPC
18/10/2018 to 19/11/2018,Corporate Resources,Amzn Mktp Uk*m85c83lc4 Am,11/11/2018,10.86,Books - General,Book Stores,GPC
18/10/2018 to 19/11/2018,Corporate Resources,Amzn Mktp Uk*m86ct93j4 Am,13/11/2018,7.04,Public Transport -  Staff - General,Book Stores,GPC
18/10/2018 to 19/11/2018,Corporate Resources,Amzn Mktp Uk*m87a09p84 Am,16/11/2018,1.96,Books - General,Book Stores,GPC
18/10/2018 to 19/11/2018,Corporate Resources,Amzn Mktp Uk*m87zp9lu4 Am,11/11/2018,1.21,Books - General,Book Stores,GPC
18/10/2018 to 19/11/2018,Corporate Resources,Amzn Mktp Uk*m88jz73c4 Am,13/11/2018,16.62,Training Expenses - General,Book Stores,GPC
18/10/2018 to 19/11/2018,Corporate Resources,Amzn Mktp Uk*m89wl3vw4 Am,18/11/2018,74.58,IT Equipment - Purchase - Hardware,Book Stores,GPC
18/10/2018 to 19/11/2018,Corporate Resources,Amzn Mktp Uk*m89wn2zy4 Am,12/11/2018,1.42,Books - General,Book Stores,GPC
18/10/2018 to 19/11/2018,Corporate Resources,Amzn Mktp Uk*mt0b610n4,23/10/2018,3.74,Books - General,Book Stores,GPC
18/10/2018 to 19/11/2018,Corporate Resources,Amzn Mktp Uk*mt0ga8wc4 Am,07/11/2018,12.96,Other Equipment & Materials - General,Book Stores,GPC
18/10/2018 to 19/11/2018,Corporate Resources,Amzn Mktp Uk*mt0q64yr4 Am,08/11/2018,26.91,Other Equipment & Materials - General,Book Stores,GPC
18/10/2018 to 19/11/2018,Corporate Resources,Amzn Mktp Uk*mt0uv3lv4 Am,17/10/2018,12.06,Books - General,Book Stores,GPC
18/10/2018 to 19/11/2018,Corporate Resources,Amzn Mktp Uk*mt1dk9644 Am,31/10/2018,5.97,Books - General,Book Stores,GPC
18/10/2018 to 19/11/2018,Corporate Resources,Amzn Mktp Uk*mt1gn4nv4 Am,18/10/2018,324.21,IT Equipment - General,Book Stores,GPC
18/10/2018 to 19/11/2018,Corporate Resources,Amzn Mktp Uk*mt1sz4il4 Am,06/11/2018,29.68,Training Expenses - General,Book Stores,GPC
18/10/2018 to 19/11/2018,Corporate Resources,Amzn Mktp Uk*mt1um5yg4 Am,07/11/2018,10.48,Other Equipment & Materials - General,Book Stores,GPC
18/10/2018 to 19/11/2018,Corporate Resources,Amzn Mktp Uk*mt1w13sc4,01/11/2018,8.52,Stationery - General,Book Stores,GPC
18/10/2018 to 19/11/2018,Corporate Resources,Amzn Mktp Uk*mt27k0i94,06/11/2018,71.86,Other Expenditure - General,Book Stores,GPC
18/10/2018 to 19/11/2018,Corporate Resources,Amzn Mktp Uk*mt28e7gl4 Am,25/10/2018,8.99,Books - General,Book Stores,GPC
18/10/2018 to 19/11/2018,Corporate Resources,Amzn Mktp Uk*mt2eu01j4 Am,24/10/2018,53.94,Books - General,Book Stores,GPC
18/10/2018 to 19/11/2018,Corporate Resources,Amzn Mktp Uk*mt2fl1qb4,30/10/2018,44.35,IT Equipment - Purchase - Hardware,Book Stores,GPC
18/10/2018 to 19/11/2018,Corporate Resources,Amzn Mktp Uk*mt2hq82w4 Am,03/11/2018,17.34,Other Equipment & Materials - General,Book Stores,GPC
18/10/2018 to 19/11/2018,Corporate Resources,Amzn Mktp Uk*mt2lj70e4,23/10/2018,7.55,Other Equipment & Materials - General,Book Stores,GPC
18/10/2018 to 19/11/2018,Corporate Resources,Amzn Mktp Uk*mt2zk0wr4 Am,07/11/2018,19.90,Training Expenses - General,Book Stores,GPC
18/10/2018 to 19/11/2018,Corporate Resources,Amzn Mktp Uk*mt33y1g74 Am,25/10/2018,44.95,Books - General,Book Stores,GPC
18/10/2018 to 19/11/2018,Corporate Resources,Amzn Mktp Uk*mt37o86z4,31/10/2018,31.66,Books - General,Book Stores,GPC
18/10/2018 to 19/11/2018,Corporate Resources,Amzn Mktp Uk*mt37p0qt4,30/10/2018,11.80,Publicity/Marketing - General,Book Stores,GPC
18/10/2018 to 19/11/2018,Corporate Resources,Amzn Mktp Uk*mt3at4jt4,25/10/2018,59.90,Other Equipment & Materials - General,Book Stores,GPC
18/10/2018 to 19/11/2018,Corporate Resources,Amzn Mktp Uk*mt3by3u24,05/11/2018,83.32,Other Equipment & Materials - General,Book Stores,GPC
18/10/2018 to 19/11/2018,Corporate Resources,Amzn Mktp Uk*mt3ec0184 Am,24/10/2018,53.94,Books - General,Book Stores,GPC
18/10/2018 to 19/11/2018,Corporate Resources,Amzn Mktp Uk*mt3ju1ui4,05/11/2018,24.12,Stationery - General,Book Stores,GPC
18/10/2018 to 19/11/2018,Corporate Resources,Amzn Mktp Uk*mt3p960t4,23/10/2018,2.90,Other Equipment & Materials - General,Book Stores,GPC
18/10/2018 to 19/11/2018,Corporate Resources,Amzn Mktp Uk*mt3z09gj4,25/10/2018,1.92,Books - General,Book Stores,GPC
18/10/2018 to 19/11/2018,Corporate Resources,Amzn Mktp Uk*mt4651zg4 Am,18/10/2018,2.07,Books - General,Book Stores,GPC
18/10/2018 to 19/11/2018,Corporate Resources,Amzn Mktp Uk*mt4l886d4,31/10/2018,9.21,Training Expenses - General,Book Stores,GPC
18/10/2018 to 19/11/2018,Corporate Resources,Amzn Mktp Uk*mt4p539z4,05/11/2018,367.09,IT Equipment - Repairs,Book Stores,GPC
18/10/2018 to 19/11/2018,Corporate Resources,Amzn Mktp Uk*mt4s34ij4,06/11/2018,21.68,Books - General,Book Stores,GPC
18/10/2018 to 19/11/2018,Corporate Resources,Amzn Mktp Uk*mt50x4xf4,26/10/2018,16.94,Other Equipment & Materials - General,Book Stores,GPC
18/10/2018 to 19/11/2018,Corporate Resources,Amzn Mktp Uk*mt51k80f4,23/10/2018,219.80,Training Expenses - General,Book Stores,GPC
18/10/2018 to 19/11/2018,Corporate Resources,Amzn Mktp Uk*mt56f4yo4 Am,07/11/2018,44.93,IT Equipment - Purchase - Hardware,Book Stores,GPC
18/10/2018 to 19/11/2018,Corporate Resources,Amzn Mktp Uk*mt5972u64 Am,05/11/2018,14.99,Books - General,Book Stores,GPC
18/10/2018 to 19/11/2018,Corporate Resources,Amzn Mktp Uk*mt5gk40k4,23/10/2018,28.29,Other Equipment & Materials - General,Book Stores,GPC
18/10/2018 to 19/11/2018,Corporate Resources,Amzn Mktp Uk*mt5rd57k4 Am,04/11/2018,25.43,Other Equipment & Materials - General,Book Stores,GPC
18/10/2018 to 19/11/2018,Corporate Resources,Amzn Mktp Uk*mt5sj1z04 Am,18/10/2018,14.49,Books - General,Book Stores,GPC
18/10/2018 to 19/11/2018,Corporate Resources,Amzn Mktp Uk*mt5sz7io4,06/11/2018,9.99,Books - General,Book Stores,GPC
18/10/2018 to 19/11/2018,Corporate Resources,Amzn Mktp Uk*mt5t39ec4,22/10/2018,22.49,Other Equipment & Materials - General,Book Stores,GPC
18/10/2018 to 19/11/2018,Corporate Resources,Amzn Mktp Uk*mt6363xd4 Am,26/10/2018,8.00,Books - General,Book Stores,GPC
18/10/2018 to 19/11/2018,Corporate Resources,Amzn Mktp Uk*mt66l02x4 Am,02/11/2018,5.84,Other Equipment & Materials - General,Book Stores,GPC
18/10/2018 to 19/11/2018,Corporate Resources,Amzn Mktp Uk*mt68a8174,24/10/2018,6.58,Books - General,Book Stores,GPC
18/10/2018 to 19/11/2018,Corporate Resources,Amzn Mktp Uk*mt6hn33s4 Am,24/10/2018,5.79,Books - General,Book Stores,GPC
18/10/2018 to 19/11/2018,Corporate Resources,Amzn Mktp Uk*mt7cr1e34,22/10/2018,2.37,Books - General,Book Stores,GPC
18/10/2018 to 19/11/2018,Corporate Resources,Amzn Mktp Uk*mt7fx2gw4,25/10/2018,9.72,Other Equipment & Materials - General,Book Stores,GPC
18/10/2018 to 19/11/2018,Corporate Resources,Amzn Mktp Uk*mt8ai3s54,01/11/2018,212.48,IT Equipment - Purchase - Hardware,Book Stores,GPC
18/10/2018 to 19/11/2018,Corporate Resources,Amzn Mktp Uk*mt8fl4iy4 Am,05/11/2018,2.95,Books - General,Book Stores,GPC
18/10/2018 to 19/11/2018,Corporate Resources,Amzn Mktp Uk*mt8m65p74 Am,24/10/2018,17.98,Books - General,Book Stores,GPC
18/10/2018 to 19/11/2018,Corporate Resources,Amzn Mktp Uk*mt8rl9re4,06/11/2018,3.37,Other Equipment & Materials - General,Book Stores,GPC
18/10/2018 to 19/11/2018,Corporate Resources,Amzn Mktp Uk*mt8uj0y14 Am,07/11/2018,16.99,Publicity/Marketing - General,Book Stores,GPC
18/10/2018 to 19/11/2018,Corporate Resources,Amzn Mktp Uk*mt8yo9pr4,25/10/2018,39.27,Stationery - General,Book Stores,GPC
18/10/2018 to 19/11/2018,Corporate Resources,Amzn Mktp Uk*mt93k2gj4 Am,25/10/2018,34.48,IT Equipment - General,Book Stores,GPC
18/10/2018 to 19/11/2018,Corporate Resources,Amzn Mktp Uk*mt97q6wr4 Am,07/11/2018,32.90,Other Equipment & Materials - General,Book Stores,GPC
18/10/2018 to 19/11/2018,Corporate Resources,Amzn Mktp Uk*mt9ig4374 Am,23/10/2018,8.99,Stationery - General,Book Stores,GPC
18/10/2018 to 19/11/2018,Corporate Resources,Amzn Mktp Uk*mt9q892t4 Am,02/11/2018,3.16,Other Equipment & Materials - General,Book Stores,GPC
18/10/2018 to 19/11/2018,Corporate Resources,Amzn Mktp Uk*mt9r189y4 Am,05/11/2018,8.90,Books - General,Book Stores,GPC
18/10/2018 to 19/11/2018,Corporate Resources,Amzn Mktp Uk*mt9tv3om4 Am,17/10/2018,2.52,Books - General,Book Stores,GPC
18/10/2018 to 19/11/2018,Corporate Resources,Asda Stores,17/11/2018,8.00,Other Services - General,"Grocery Stores, Supermarkets",GPC
18/10/2018 to 19/11/2018,Corporate Resources,Asda Stores 4477,10/11/2018,5.35,Materials - General,"Grocery Stores, Supermarkets",GPC
18/10/2018 to 19/11/2018,Corporate Resources,Asda Stores 4477,24/10/2018,1.09,Other Expenditure - General,"Grocery Stores, Supermarkets",GPC
18/10/2018 to 19/11/2018,Corporate Resources,Asda Stores 4477,24/10/2018,12.12,Other Expenditure - General,"Grocery Stores, Supermarkets",GPC
18/10/2018 to 19/11/2018,Corporate Resources,Asda Stores 4477,07/11/2018,10.37,Other Expenditure - General,"Grocery Stores, Supermarkets",GPC
18/10/2018 to 19/11/2018,Corporate Resources,Asda Stores 4477,07/11/2018,4.22,Other Expenditure - General,"Grocery Stores, Supermarkets",GPC
18/10/2018 to 19/11/2018,Corporate Resources,Asda Stores 4477,14/11/2018,1.09,Other Expenditure - General,"Grocery Stores, Supermarkets",GPC
18/10/2018 to 19/11/2018,Corporate Resources,Asda Stores 4798,26/10/2018,9.49,Other Expenditure - General,"Grocery Stores, Supermarkets",GPC
18/10/2018 to 19/11/2018,Corporate Resources,Asda Stores 4880,12/11/2018,9.17,Materials - General,"Grocery Stores, Supermarkets",GPC
18/10/2018 to 19/11/2018,Corporate Resources,Asda Superstore,06/11/2018,27.66,Materials - General,"Grocery Stores, Supermarkets",GPC
18/10/2018 to 19/11/2018,Corporate Resources,Asda Superstore,18/10/2018,10.00,Other Equipment & Materials - General,"Grocery Stores, Supermarkets",GPC
18/10/2018 to 19/11/2018,Corporate Resources,Asda Superstore,19/10/2018,40.05,Provisions - General,"Grocery Stores, Supermarkets",GPC
18/10/2018 to 19/11/2018,Corporate Resources,Awardsinter,19/10/2018,238.80,Newspapers & Periodicals - General,"Management, Consulting and Public Relations Servic",GPC
18/10/2018 to 19/11/2018,Corporate Resources,B & Q 1052,05/11/2018,8.28,Other Services - General,"Building Materials, Lumber Stores",GPC
18/10/2018 to 19/11/2018,Corporate Resources,B&c Fruit & Veg,04/11/2018,25.00,Provisions - General,"Miscellaneous Food Stores-Convenience Stores, Mark",GPC
18/10/2018 to 19/11/2018,Corporate Resources,Bermick Motor Accessories,05/11/2018,15.00,Materials - General,"Automotive Parts, Accessories Stores",GPC
18/10/2018 to 19/11/2018,Corporate Resources,Blaby District Council,23/10/2018,23.00,Materials - General,Government Services-Not Elsewhere Classified,GPC
18/10/2018 to 19/11/2018,Corporate Resources,Cake Boxes Direct,14/11/2018,110.40,Materials - General,Miscellaneous and Specialty Retail Stores,GPC
18/10/2018 to 19/11/2018,Corporate Resources,Cooks Farm Shop,02/11/2018,29.60,Other Expenditure - Public Enquiry fees,"Lawn and Garden Supply Stores, Nurseries",GPC
18/10/2018 to 19/11/2018,Corporate Resources,Co-Op Group 070412,30/10/2018,19.17,Other Expenditure - General,"Grocery Stores, Supermarkets",GPC
18/10/2018 to 19/11/2018,Corporate Resources,Costcutter,10/11/2018,6.09,Other Expenditure - General,"Grocery Stores, Supermarkets",GPC
18/10/2018 to 19/11/2018,Corporate Resources,Cross Country Trains,01/11/2018,52.60,Training Expenses - General,Passenger Railways,GPC
18/10/2018 to 19/11/2018,Corporate Resources,Currys Online,13/11/2018,199.17,Other Expenditure - General,"RADIO, TELEVISION, AND STEREO STORES (ELECTRONIC STORES)",GPC
18/10/2018 to 19/11/2018,Corporate Resources,Dvla Vehicle Tax,13/11/2018,252.50,Road Licences - General,Government Services-Not Elsewhere Classified,GPC
18/10/2018 to 19/11/2018,Corporate Resources,Dvla Vehicle Tax,13/11/2018,167.50,Road Licences - General,Government Services-Not Elsewhere Classified,GPC
18/10/2018 to 19/11/2018,Corporate Resources,Dvla Vehicle Tax,13/11/2018,252.50,Road Licences - General,Government Services-Not Elsewhere Classified,GPC
18/10/2018 to 19/11/2018,Corporate Resources,Dvla Vehicle Tax,13/11/2018,252.50,Road Licences - General,Government Services-Not Elsewhere Classified,GPC
18/10/2018 to 19/11/2018,Corporate Resources,Dvla Vehicle Tax,13/11/2018,252.50,Road Licences - General,Government Services-Not Elsewhere Classified,GPC
18/10/2018 to 19/11/2018,Corporate Resources,East Midlands Trains,05/11/2018,-39.80,Casual/Essential - General,Passenger Railways,GPC
18/10/2018 to 19/11/2018,Corporate Resources,Eb *social Media Maste,08/11/2018,39.00,Conference - General,Business Services-Not Elsewhere Classified,GPC
18/10/2018 to 19/11/2018,Corporate Resources,Eb *teg Tactile Access,19/10/2018,81.44,Training Expenses - General,Business Services-Not Elsewhere Classified,GPC
18/10/2018 to 19/11/2018,Corporate Resources,Eclipse Networking Lim,23/10/2018,10.79,Other Expenditure - General,Continuity/Subscription Merchants,GPC
18/10/2018 to 19/11/2018,Corporate Resources,Facebk *hsz6cjste2,31/10/2018,192.00,Publicity/Marketing - General,Advertising Services,GPC
18/10/2018 to 19/11/2018,Corporate Resources,Facebk Dm2rmg2l52,31/10/2018,409.04,Publicity/Marketing - General,Advertising Services,GPC
18/10/2018 to 19/11/2018,Corporate Resources,Facebk Lhl9sgjl52,16/11/2018,600.00,Publicity/Marketing - General,Advertising Services,GPC
18/10/2018 to 19/11/2018,Corporate Resources,Facebk N947ejw3k2,31/10/2018,17.31,Publicity/Marketing - General,Advertising Services,GPC
18/10/2018 to 19/11/2018,Corporate Resources,Facebk Ulvlanal52,20/10/2018,600.00,Publicity/Marketing - General,Advertising Services,GPC
18/10/2018 to 19/11/2018,Corporate Resources,Fast Key Services Limi,19/10/2018,7.26,Other Equipment & Materials - General,Business Services-Not Elsewhere Classified,GPC
18/10/2018 to 19/11/2018,Corporate Resources,Google *ads3070599614,03/11/2018,445.03,Advertising - General,Continuity/Subscription Merchants,GPC
18/10/2018 to 19/11/2018,Corporate Resources,Government Events,23/10/2018,322.15,Training Expenses - General,Computer Software Stores,GPC
18/10/2018 to 19/11/2018,Corporate Resources,Guardian News & Media,30/10/2018,900.00,Recruitment Advertising - General,Miscellaneous Publishing and  Printing,GPC
18/10/2018 to 19/11/2018,Corporate Resources,Halfords 0428,11/11/2018,19.16,Other Services - General,Bicycle Shops-Sales and Service,GPC
18/10/2018 to 19/11/2018,Corporate Resources,Health&safety Lab,19/10/2018,495.00,Training Expenses - General,Government Services-Not Elsewhere Classified,GPC
18/10/2018 to 19/11/2018,Corporate Resources,Himan & Company,12/11/2018,48.00,R & M of Buildings - General,Business Services-Not Elsewhere Classified,GPC
18/10/2018 to 19/11/2018,Corporate Resources,Hinckley Club For Youn,15/11/2018,200.00,Training Expenses - General,Charitable and Social Service Organizations,GPC
18/10/2018 to 19/11/2018,Corporate Resources,Hoo*hootsuite Inc,23/10/2018,90.95,Publicity/Marketing - General,Business Services-Not Elsewhere Classified,GPC
18/10/2018 to 19/11/2018,Corporate Resources,Hoo*hootsuite Inc,30/10/2018,8.81,Publicity/Marketing - General,Business Services-Not Elsewhere Classified,GPC
18/10/2018 to 19/11/2018,Corporate Resources,Hothorpe Hall,14/11/2018,168.00,Subsistence - General,"Lodging-Hotels, Motels, Resorts",GPC
18/10/2018 to 19/11/2018,Corporate Resources,Ikea Limited,17/11/2018,7.38,Other Expenditure - General,"Furniture, Home Furnishings and Equipment Stores,",GPC
18/10/2018 to 19/11/2018,Corporate Resources,Imagin Products Ltd,23/10/2018,85.20,Printing - General,Photographic Studios,GPC
18/10/2018 to 19/11/2018,Corporate Resources,Imagin Products Ltd,16/11/2018,83.45,Publicity/Marketing - General,Photographic Studios,GPC
18/10/2018 to 19/11/2018,Corporate Resources,Indeed,01/11/2018,12.05,Recruitment Advertising - General,Business Services-Not Elsewhere Classified,GPC
18/10/2018 to 19/11/2018,Corporate Resources,Indisplay Ltd,17/10/2018,742.00,Publicity/Marketing - General,"Stationery, Office, and School Supply Stores",GPC
18/10/2018 to 19/11/2018,Corporate Resources,Lcfc.Com Web Merch,13/11/2018,60.00,Publicity/Marketing - General,"Membership Clubs (Sports, Recreation, Athletic), C",GPC
18/10/2018 to 19/11/2018,Corporate Resources,Leic Tigers * Online,13/11/2018,17.00,Publicity/Marketing - General,"Sports Apparel, Riding Apparel Stores",GPC
18/10/2018 to 19/11/2018,Corporate Resources,Leisurejobs.Com,06/11/2018,180.00,Recruitment Advertising - General,Advertising Services,GPC
18/10/2018 to 19/11/2018,Corporate Resources,Lidl UK South Wigston,29/10/2018,14.94,Other Equipment & Materials - General,"Grocery Stores, Supermarkets",GPC
18/10/2018 to 19/11/2018,Corporate Resources,Lillian Rose Flowers,31/10/2018,41.98,Other Allowances/Expenses - General,Florists,GPC
18/10/2018 to 19/11/2018,Corporate Resources,Linkedin-430*6645953,19/10/2018,66.01,Recruitment Advertising - General,Continuity/Subscription Merchants,GPC
18/10/2018 to 19/11/2018,Corporate Resources,Msft *<e02006r65e>,01/11/2018,198.24,IT Equipment - Software,"Computers, Computer Peripheral Equipment, Software",GPC
18/10/2018 to 19/11/2018,Corporate Resources,Myhermes.Co.Uk,24/10/2018,5.29,IT Equipment - Maintenance,"Motor Freight Carriers, and Trucking",GPC
18/10/2018 to 19/11/2018,Corporate Resources,Net World Sports,30/10/2018,135.71,Operational Equipment - General,Miscellaneous and Specialty Retail Stores,GPC
18/10/2018 to 19/11/2018,Corporate Resources,No 5 Chambers Ltd,31/10/2018,90.00,Training Expenses - General,"Legal Services, Attorneys",GPC
18/10/2018 to 19/11/2018,Corporate Resources,Paypal *kirwinmacle,07/11/2018,735.63,Books - General,Book Stores,GPC
18/10/2018 to 19/11/2018,Corporate Resources,Paypal *kitesforsch,16/11/2018,128.24,Other Expenditure - General,Shoe Stores,GPC
18/10/2018 to 19/11/2018,Corporate Resources,Paypal *sjdsupplies On,24/10/2018,21.17,Catering Equipment - General,"RADIO, TELEVISION, AND STEREO STORES (ELECTRONIC STORES)",GPC
18/10/2018 to 19/11/2018,Corporate Resources,Paypal *societyforp,06/11/2018,118.80,Subscriptions - General,Professional Services-Not Elsewhere Classified,GPC
18/10/2018 to 19/11/2018,Corporate Resources,Pizza Express Rest,06/11/2018,239.01,Subsistence - General,"Eating Places, Restaurants",GPC
18/10/2018 to 19/11/2018,Corporate Resources,Poundstretcher 292,16/11/2018,5.27,Other Services - General,"Drapery, Window Coverings, and Upholstery Stores",GPC
18/10/2018 to 19/11/2018,Corporate Resources,Premier Inn44512685,08/11/2018,562.50,Hospitality - General,PREMIER TRAVEL,GPC
18/10/2018 to 19/11/2018,Corporate Resources,Royal Albert Hall,24/10/2018,132.00,Public Transport -  Staff - General,"Theatrical Products (Except Motion Pictures), Tick",GPC
18/10/2018 to 19/11/2018,Corporate Resources,Sainsburys S/mkts,22/10/2018,23.00,Provisions - General,"Grocery Stores, Supermarkets",GPC
18/10/2018 to 19/11/2018,Corporate Resources,Sans Supplies Ltd,05/11/2018,48.76,Other Equipment & Materials - General,Commercial Equipment Not Elsewhere Classified,GPC
18/10/2018 to 19/11/2018,Corporate Resources,Sheetmusicplus.Com,24/10/2018,73.02,Materials - General,"Music Stores-Musical Instruments, Pianos, Sheet Mu",GPC
18/10/2018 to 19/11/2018,Corporate Resources,Slb Supplies,16/11/2018,81.90,Other Services - General,Pet Shops-Pet Food and Supplies,GPC
18/10/2018 to 19/11/2018,Corporate Resources,Sparkol,07/11/2018,18.00,IT Equipment - Software,Computer Software Stores,GPC
18/10/2018 to 19/11/2018,Corporate Resources,Station Road Service S,31/10/2018,2.00,Other Expenditure - General,Service Stations (with or without Ancillary Servic,GPC
18/10/2018 to 19/11/2018,Corporate Resources,Tesco Store 2846,30/10/2018,5.90,Materials - General,"Grocery Stores, Supermarkets",GPC
18/10/2018 to 19/11/2018,Corporate Resources,Tesco Store 2849,22/10/2018,144.58,Materials - General,"Grocery Stores, Supermarkets",GPC
18/10/2018 to 19/11/2018,Corporate Resources,Tesco Store 2849,17/10/2018,166.67,Provisions - General,"Grocery Stores, Supermarkets",GPC
18/10/2018 to 19/11/2018,Corporate Resources,Tesco Store 2849,24/10/2018,82.50,Provisions - General,"Grocery Stores, Supermarkets",GPC
18/10/2018 to 19/11/2018,Corporate Resources,Tesco Store 2849,31/10/2018,166.67,Provisions - General,"Grocery Stores, Supermarkets",GPC
18/10/2018 to 19/11/2018,Corporate Resources,Tesco Store 3539,31/10/2018,-20.00,Materials - General,"Grocery Stores, Supermarkets",GPC
18/10/2018 to 19/11/2018,Corporate Resources,Tesco Stores 3076,22/10/2018,23.79,Other Expenditure - General,"Grocery Stores, Supermarkets",GPC
18/10/2018 to 19/11/2018,Corporate Resources,Tesco Stores 5182,30/10/2018,5.00,Materials - General,"Grocery Stores, Supermarkets",GPC
18/10/2018 to 19/11/2018,Corporate Resources,Tesco Stores-2044,03/11/2018,15.50,Materials - General,"Grocery Stores, Supermarkets",GPC
18/10/2018 to 19/11/2018,Corporate Resources,Tesco Stores-2044,06/11/2018,10.47,Materials - General,"Grocery Stores, Supermarkets",GPC
18/10/2018 to 19/11/2018,Corporate Resources,Tesco Stores-2044,10/11/2018,7.50,Materials - General,"Grocery Stores, Supermarkets",GPC
18/10/2018 to 19/11/2018,Corporate Resources,Tesco-Stores 2846,05/11/2018,70.86,Materials - General,"Grocery Stores, Supermarkets",GPC
18/10/2018 to 19/11/2018,Corporate Resources,The Institution Of,30/10/2018,1620.00,Training Expenses - General,Professional Services-Not Elsewhere Classified,GPC
18/10/2018 to 19/11/2018,Corporate Resources,Toolstation Ltd,16/11/2018,28.86,Other Services - General,Hardware Stores,GPC
18/10/2018 to 19/11/2018,Corporate Resources,Toolstation Ltd,16/11/2018,30.26,Other Services - General,Hardware Stores,GPC
18/10/2018 to 19/11/2018,Corporate Resources,Trainline,07/11/2018,119.50,Casual/Essential - General,Passenger Railways,GPC
18/10/2018 to 19/11/2018,Corporate Resources,Travelodge Gb0000,13/11/2018,55.83,Training Expenses - General,Travelodge,GPC
18/10/2018 to 19/11/2018,Corporate Resources,Tvlicensing.Co.Uk,25/10/2018,150.50,Other Expenditure - General,"Management, Consulting and Public Relations Servic",GPC
18/10/2018 to 19/11/2018,Corporate Resources,Tvlicensing.Co.Uk,18/10/2018,150.50,Road Licences - General,"Management, Consulting and Public Relations Servic",GPC
18/10/2018 to 19/11/2018,Corporate Resources,Verifone (U.K.) Limite,08/11/2018,116.36,IT Equipment - Maintenance,Computer and Data Processing Services,GPC
18/10/2018 to 19/11/2018,Corporate Resources,Vue*ncs Citb Hs&e Test,08/11/2018,21.00,Training Expenses - General,Schools and Educational Services-Not Elsewhere Cla,GPC
18/10/2018 to 19/11/2018,Corporate Resources,Wickes,15/11/2018,6.30,R & M of Buildings - General,Home Supply Warehouse,GPC
18/10/2018 to 19/11/2018,Corporate Resources,Wilko Retail Limit,18/10/2018,13.33,Other Equipment & Materials - General,Household Appliance Stores,GPC
18/10/2018 to 19/11/2018,Corporate Resources,Wm Morrisons Store,26/10/2018,3.05,Materials - General,"Grocery Stores, Supermarkets",GPC
18/10/2018 to 19/11/2018,Corporate Resources,Wm Morrisons Store,16/11/2018,15.79,Materials - General,"Grocery Stores, Supermarkets",GPC
18/10/2018 to 19/11/2018,Corporate Resources,Wm Morrisons Store,31/10/2018,5.75,Other Expenditure - General,"Grocery Stores, Supermarkets",GPC
18/10/2018 to 19/11/2018,Corporate Resources,Wm Morrisons Store,10/11/2018,20.47,Other Expenditure - General,"Grocery Stores, Supermarkets",GPC
18/10/2018 to 19/11/2018,Corporate Resources,Wm Morrisons Store,16/11/2018,3.00,Other Expenditure - General,"Grocery Stores, Supermarkets",GPC
18/10/2018 to 19/11/2018,Corporate Resources,Wm Morrisons Store,14/11/2018,4.71,Provisions - General,"Grocery Stores, Supermarkets",GPC
18/10/2018 to 19/11/2018,Corporate Resources,Workwear Express Limited,07/11/2018,250.00,Protective Clothing & Uniforms - General,Miscellaneous Apparel and Accessory Stores,GPC
18/10/2018 to 19/11/2018,Corporate Resources,Workwear Express Limited,07/11/2018,155.27,Protective Clothing & Uniforms - General,Miscellaneous Apparel and Accessory Stores,GPC
18/10/2018 to 19/11/2018,Corporate Resources,Wp-Ma Education Lt,30/10/2018,1198.80,Recruitment Advertising - General,Membership Organizations-Not Elsewhere Classified,GPC
18/10/2018 to 19/11/2018,Corporate Resources,Www Oppassessment Eu Com,26/10/2018,43.00,Training Expenses - General,Business Services-Not Elsewhere Classified,GPC
18/10/2018 to 19/11/2018,Corporate Resources,Www.Arb.Org.Uk,23/10/2018,111.00,Subscriptions - General,"Engineering, Architectural, and Surveying Services",GPC
18/10/2018 to 19/11/2018,Corporate Resources,Www.Cambridgeasses,29/10/2018,22.85,Training Expenses - General,"Colleges, Universities, Professional Schools, and",GPC
18/10/2018 to 19/11/2018,Corporate Resources,Www.Changepeople.Co.Uk,29/10/2018,667.00,Training Expenses - General,Charitable and Social Service Organizations,GPC
18/10/2018 to 19/11/2018,Corporate Resources,Www.Charteredforesters,01/11/2018,25.00,Training Expenses - General,Membership Organizations-Not Elsewhere Classified,GPC
18/10/2018 to 19/11/2018,Corporate Resources,Www.Cimaglobal.Com,01/11/2018,192.00,Subscriptions - General,"Colleges, Universities, Professional Schools, and",GPC
18/10/2018 to 19/11/2018,Corporate Resources,Www.Cips.Org,24/10/2018,137.00,Training Expenses - General,Membership Organizations-Not Elsewhere Classified,GPC
18/10/2018 to 19/11/2018,Corporate Resources,Www.Cips.Org,14/11/2018,210.00,Training Expenses - General,Membership Organizations-Not Elsewhere Classified,GPC
18/10/2018 to 19/11/2018,Corporate Resources,Www.Coursebeetle.Co.Uk,09/11/2018,250.00,Training Expenses - General,Computer Software Stores,GPC
18/10/2018 to 19/11/2018,Corporate Resources,Www.Filmbank.Co.Uk,25/10/2018,273.18,Materials - General,Motion Picture and Video Tape Production,GPC
18/10/2018 to 19/11/2018,Corporate Resources,Www.Filmbank.Co.Uk,25/10/2018,132.30,Materials - General,Motion Picture and Video Tape Production,GPC
18/10/2018 to 19/11/2018,Corporate Resources,Www.Gaynors.Co.Uk,15/11/2018,86.94,Protective Clothing & Uniforms - General,"Sports Apparel, Riding Apparel Stores",GPC
18/10/2018 to 19/11/2018,Corporate Resources,Www.Goleicestershire.C,16/11/2018,132.00,Casual/Essential - General,Travel Agencies,GPC
18/10/2018 to 19/11/2018,Corporate Resources,Www.Hce-Uk.Com,08/11/2018,21.80,Other Expenditure - General,"Medical Services, Health Practitioners-Not Elsewhe",GPC
18/10/2018 to 19/11/2018,Corporate Resources,Www.Ilxgroup.Com,15/11/2018,480.00,Training Expenses - General,"Colleges, Universities, Professional Schools, and",GPC
18/10/2018 to 19/11/2018,Corporate Resources,Www.Inn-Dispensable.Com,18/10/2018,140.00,Training Expenses - General,Business and Secretarial Schools,GPC
18/10/2018 to 19/11/2018,Corporate Resources,Www.Musicroom.Com,14/11/2018,19.98,Materials - General,"Music Stores-Musical Instruments, Pianos, Sheet Mu",GPC
18/10/2018 to 19/11/2018,Corporate Resources,Www.Oak-Barrel.Com,06/11/2018,185.00,Materials - General,"Lawn and Garden Supply Stores, Nurseries",GPC
18/10/2018 to 19/11/2018,Corporate Resources,Www.Parrs.Co.Uk,29/10/2018,194.75,Operational Equipment - General,Hardware Equipment and Supplies,GPC
18/10/2018 to 19/11/2018,Corporate Resources,Www.Postofficeshop.Co.Uk,14/11/2018,35.98,Stationery - General,"Stationary, Office Supplies, Printing and Writing",GPC
18/10/2018 to 19/11/2018,Corporate Resources,Www.Showdata.Com,17/10/2018,255.00,Publicity/Marketing - General,Miscellaneous and Specialty Retail Stores,GPC
18/10/2018 to 19/11/2018,Corporate Resources,Www.Thomann.De,18/10/2018,189.34,Materials - General,"Music Stores-Musical Instruments, Pianos, Sheet Mu",GPC
18/10/2018 to 19/11/2018,Corporate Resources,Information not known,19/10/2018,5.21,Materials - General,Misc-Unknown,GPC
18/10/2018 to 19/11/2018,Corporate Resources,Information not known,25/10/2018,2.01,Materials - General,Misc-Unknown,GPC
18/10/2018 to 19/11/2018,Corporate Resources,Information not known,24/10/2018,3.19,Publicity/Marketing - General,Misc-Unknown,GPC
18/10/2018 to 19/11/2018,Corporate Resources,Information not known,31/10/2018,0.32,Publicity/Marketing - General,Misc-Unknown,GPC
18/10/2018 to 19/11/2018,E&T,Amazon.Co.Uk*mt08z8ud4 Am,05/11/2018,37.21,Materials - General,Miscellaneous and Specialty Retail Stores,GPC
18/10/2018 to 19/11/2018,E&T,Amazon.Co.Uk*mt0h535c4 Am,28/10/2018,16.21,Materials - General,Miscellaneous and Specialty Retail Stores,GPC
18/10/2018 to 19/11/2018,E&T,Amazon.Co.Uk*mt1bi35x4,28/10/2018,6.38,IT Equipment - Purchase - Hardware,Direct Marketers - Other,GPC
18/10/2018 to 19/11/2018,E&T,Amazon.Co.Uk*mt1dd46u4 Am,31/10/2018,7.91,Materials - General,Miscellaneous and Specialty Retail Stores,GPC
18/10/2018 to 19/11/2018,E&T,Amazon.Co.Uk*mt78v9k34 Am,03/11/2018,37.21,Materials - General,Miscellaneous and Specialty Retail Stores,GPC
18/10/2018 to 19/11/2018,E&T,Amazon.Co.Uk*mt7ef6rg4 Am,07/11/2018,19.24,Materials - General,Miscellaneous and Specialty Retail Stores,GPC
18/10/2018 to 19/11/2018,E&T,Amazon.Co.Uk*mt7yg7nk4,18/10/2018,368.30,Other Equipment & Materials - General,Direct Marketers - Other,GPC
18/10/2018 to 19/11/2018,E&T,Amazon.Co.Uk*mt9rr06c4 Am,31/10/2018,102.99,Materials - General,Miscellaneous and Specialty Retail Stores,GPC
18/10/2018 to 19/11/2018,E&T,Amzn Mktp UK Amazon.Co.Uk,17/10/2018,1.40,Books - General,Book Stores,GPC
18/10/2018 to 19/11/2018,E&T,Amzn Mktp UK Amazon.Co.Uk,18/10/2018,10.44,Books - General,Book Stores,GPC
18/10/2018 to 19/11/2018,E&T,Amzn Mktp Uk*m80k10op4 Am,09/11/2018,11.99,Books - General,Book Stores,GPC
18/10/2018 to 19/11/2018,E&T,Amzn Mktp Uk*m83jl6154 Am,16/11/2018,2.92,Stationery - General,Book Stores,GPC
18/10/2018 to 19/11/2018,E&T,Amzn Mktp Uk*mt2om43u4 Am,22/10/2018,20.00,Books - General,Book Stores,GPC
18/10/2018 to 19/11/2018,E&T,Amzn Mktp Uk*mt5c36db4,31/10/2018,32.47,Books - General,Book Stores,GPC
18/10/2018 to 19/11/2018,E&T,Amzn Mktp Uk*mt6wq1wn4 Am,07/11/2018,49.46,Books - General,Book Stores,GPC
18/10/2018 to 19/11/2018,E&T,Amzn Mktp Uk*mt95d50l4 Am,22/10/2018,27.81,Books - General,Book Stores,GPC
18/10/2018 to 19/11/2018,E&T,Amzn Mktp Uk*mt96f16x4 Am,31/10/2018,24.96,Books - General,Book Stores,GPC
18/10/2018 to 19/11/2018,E&T,Amzn Mktp Uk*mt96j3vd4,26/10/2018,11.99,Books - General,Book Stores,GPC
18/10/2018 to 19/11/2018,E&T,Amzn Mktp Uk*mt98v7kd4 Am,03/11/2018,41.04,Books - General,Book Stores,GPC
18/10/2018 to 19/11/2018,E&T,Amzn Mktp Uk*mt9mb1794 Am,03/11/2018,17.38,Books - General,Book Stores,GPC
18/10/2018 to 19/11/2018,E&T,Argos Retail Group,31/10/2018,11.99,Operational Equipment - Purchase,Discount Stores,GPC
18/10/2018 to 19/11/2018,E&T,Argos Retail Group,08/11/2018,47.96,Operational Equipment - Purchase,Discount Stores,GPC
18/10/2018 to 19/11/2018,E&T,Dvla Vehicle Tax,17/10/2018,252.50,Road Licences - General,Government Services-Not Elsewhere Classified,GPC
18/10/2018 to 19/11/2018,E&T,Dvla Vehicle Tax,13/11/2018,167.50,Road Licences - General,Government Services-Not Elsewhere Classified,GPC
18/10/2018 to 19/11/2018,E&T,Dvla Vehicle Tax,13/11/2018,167.50,Road Licences - General,Government Services-Not Elsewhere Classified,GPC
18/10/2018 to 19/11/2018,E&T,Dvla Vehicle Tax,13/11/2018,167.50,Road Licences - General,Government Services-Not Elsewhere Classified,GPC
18/10/2018 to 19/11/2018,E&T,Dvla Vehicle Tax,13/11/2018,167.50,Road Licences - General,Government Services-Not Elsewhere Classified,GPC
18/10/2018 to 19/11/2018,E&T,Dvla Vehicle Tax,13/11/2018,252.50,Road Licences - General,Government Services-Not Elsewhere Classified,GPC
18/10/2018 to 19/11/2018,E&T,Dvla Vehicle Tax,13/11/2018,167.50,Road Licences - General,Government Services-Not Elsewhere Classified,GPC
18/10/2018 to 19/11/2018,E&T,Dvla Vehicle Tax,13/11/2018,167.50,Road Licences - General,Government Services-Not Elsewhere Classified,GPC
18/10/2018 to 19/11/2018,E&T,Dvla Vehicle Tax,13/11/2018,167.50,Road Licences - General,Government Services-Not Elsewhere Classified,GPC
18/10/2018 to 19/11/2018,E&T,Dvla Vehicle Tax,13/11/2018,167.50,Road Licences - General,Government Services-Not Elsewhere Classified,GPC
18/10/2018 to 19/11/2018,E&T,Dvla Vehicle Tax,13/11/2018,252.50,Road Licences - General,Government Services-Not Elsewhere Classified,GPC
18/10/2018 to 19/11/2018,E&T,Dvla Vehicle Tax,13/11/2018,167.50,Road Licences - General,Government Services-Not Elsewhere Classified,GPC
18/10/2018 to 19/11/2018,E&T,Dvla Vehicle Tax,13/11/2018,167.50,Road Licences - General,Government Services-Not Elsewhere Classified,GPC
18/10/2018 to 19/11/2018,E&T,Ea Waste Carriers,08/11/2018,110.00,Other Expenditure - General,Government Services-Not Elsewhere Classified,GPC
18/10/2018 to 19/11/2018,E&T,East Midlands Trains,18/10/2018,74.20,Public Transport -  Staff - General,Passenger Railways,GPC
18/10/2018 to 19/11/2018,E&T,East Midlands Trains,24/10/2018,547.20,Public Transport -  Staff - General,Passenger Railways,GPC
18/10/2018 to 19/11/2018,E&T,East Midlands Trains,25/10/2018,155.50,Public Transport -  Staff - General,Passenger Railways,GPC
18/10/2018 to 19/11/2018,E&T,East Midlands Trains,25/10/2018,254.00,Public Transport -  Staff - General,Passenger Railways,GPC
18/10/2018 to 19/11/2018,E&T,East Midlands Trains,29/10/2018,169.90,Public Transport -  Staff - General,Passenger Railways,GPC
18/10/2018 to 19/11/2018,E&T,East Midlands Trains,01/11/2018,-59.40,Public Transport -  Staff - General,Passenger Railways,GPC
18/10/2018 to 19/11/2018,E&T,East Midlands Trains,01/11/2018,-59.40,Public Transport -  Staff - General,Passenger Railways,GPC
18/10/2018 to 19/11/2018,E&T,East Midlands Trains,02/11/2018,175.50,Public Transport -  Staff - General,Passenger Railways,GPC
18/10/2018 to 19/11/2018,E&T,East Midlands Trains,02/11/2018,514.50,Public Transport -  Staff - General,Passenger Railways,GPC
18/10/2018 to 19/11/2018,E&T,East Midlands Trains,07/11/2018,23.80,Public Transport -  Staff - General,Passenger Railways,GPC
18/10/2018 to 19/11/2018,E&T,East Midlands Trains,07/11/2018,128.50,Public Transport -  Staff - General,Passenger Railways,GPC
18/10/2018 to 19/11/2018,E&T,East Midlands Trains,07/11/2018,321.60,Public Transport -  Staff - General,Passenger Railways,GPC
18/10/2018 to 19/11/2018,E&T,East Midlands Trains,14/11/2018,120.00,Public Transport -  Staff - General,Passenger Railways,GPC
18/10/2018 to 19/11/2018,E&T,East Midlands Trains,14/11/2018,339.00,Public Transport -  Staff - General,Passenger Railways,GPC
18/10/2018 to 19/11/2018,E&T,East Midlands Trains,15/11/2018,62.50,Public Transport -  Staff - General,Passenger Railways,GPC
18/10/2018 to 19/11/2018,E&T,East Midlands Trains,16/11/2018,111.00,Public Transport -  Staff - General,Passenger Railways,GPC
18/10/2018 to 19/11/2018,E&T,Espo,10/11/2018,34.65,Other Expenditure - General,Government Services-Not Elsewhere Classified,GPC
18/10/2018 to 19/11/2018,E&T,Facebk *hsz6cjste2,31/10/2018,30.00,Publicity/Marketing - General,Advertising Services,GPC
18/10/2018 to 19/11/2018,E&T,Lcc Npu 1,07/11/2018,35.00,Other Expenditure - General,Government Services-Not Elsewhere Classified,GPC
18/10/2018 to 19/11/2018,E&T,Leic City Council,25/10/2018,30.00,Other Expenditure - General,Government Services-Not Elsewhere Classified,GPC
18/10/2018 to 19/11/2018,E&T,Leic City Council,25/10/2018,30.00,Other Expenditure - General,Government Services-Not Elsewhere Classified,GPC
18/10/2018 to 19/11/2018,E&T,Leic City Council,25/10/2018,30.00,Other Expenditure - General,Government Services-Not Elsewhere Classified,GPC
18/10/2018 to 19/11/2018,E&T,Leic City Council,25/10/2018,30.00,Other Expenditure - General,Government Services-Not Elsewhere Classified,GPC
18/10/2018 to 19/11/2018,E&T,Leic City Council,25/10/2018,30.00,Other Expenditure - General,Government Services-Not Elsewhere Classified,GPC
18/10/2018 to 19/11/2018,E&T,Leic City Council,25/10/2018,30.00,Other Expenditure - General,Government Services-Not Elsewhere Classified,GPC
18/10/2018 to 19/11/2018,E&T,Marriott,15/11/2018,160.00,Subsistence - General,Marriott Hotels,GPC
18/10/2018 to 19/11/2018,E&T,Marriott,16/11/2018,160.00,Subsistence - General,Marriott Hotels,GPC
18/10/2018 to 19/11/2018,E&T,National Railcard,05/11/2018,30.00,Casual/Essential - General,Passenger Railways,GPC
18/10/2018 to 19/11/2018,E&T,Post Office Counter,30/10/2018,6.50,Postal Services - General,Postage Stamps,GPC
18/10/2018 to 19/11/2018,E&T,Premier Inn44521260,29/10/2018,74.00,Subsistence - General,PREMIER TRAVEL,GPC
18/10/2018 to 19/11/2018,E&T,Safetyspecs Co Uk,08/11/2018,76.45,Other Equipment & Materials - General,Durable Goods Not Elsewhere Classified,GPC
18/10/2018 to 19/11/2018,E&T,Safetyspecs Co Uk,13/11/2018,76.45,Other Equipment & Materials - General,Durable Goods Not Elsewhere Classified,GPC
18/10/2018 to 19/11/2018,E&T,Safetyspecs Co Uk,14/11/2018,83.95,Other Equipment & Materials - General,Durable Goods Not Elsewhere Classified,GPC
18/10/2018 to 19/11/2018,E&T,Stationery Office Book,05/11/2018,183.65,Books - General,Book Stores,GPC
18/10/2018 to 19/11/2018,E&T,Trainline,05/11/2018,153.57,Casual/Essential - General,Passenger Railways,GPC
18/10/2018 to 19/11/2018,E&T,Trainline,05/11/2018,22.42,Casual/Essential - General,Passenger Railways,GPC
18/10/2018 to 19/11/2018,E&T,Wickes,15/11/2018,69.15,Other Equipment & Materials - General,Home Supply Warehouse,GPC
18/10/2018 to 19/11/2018,E&T,Www.Argos.Co.Uk,24/10/2018,58.94,Materials - General,Discount Stores,GPC
18/10/2018 to 19/11/2018,E&T,Www.Argos.Co.Uk,29/10/2018,58.94,Materials - General,Discount Stores,GPC
18/10/2018 to 19/11/2018,E&T,Www.Debtrecoverplus Rt,16/10/2018,160.00,Other Premises Expenses - General,Miscellaneous Personal Services-Not Elsewhere Clas,GPC
18/10/2018 to 19/11/2018,E&T,Www.Incarsafetycentre.,26/10/2018,702.50,Operational Equipment - General,"Automotive Parts, Accessories Stores",GPC
18/10/2018 to 19/11/2018,E&T,Www.Poppylottery.Safea,26/10/2018,250.00,Other Services - General,Charitable and Social Service Organizations,GPC
18/10/2018 to 19/11/2018,E&T,Www.Toolstation.Com,13/11/2018,2.91,Materials - General,Hardware Stores,GPC
18/10/2018 to 19/11/2018,Public Health,3c_*east Midlands - Tr,18/10/2018,8.00,Public Transport -  Staff - General,Automobile Parking Lots and Garages,GPC
18/10/2018 to 19/11/2018,Public Health,3c_*east Midlands - Tr,18/10/2018,8.00,Public Transport -  Staff - General,Automobile Parking Lots and Garages,GPC
18/10/2018 to 19/11/2018,Public Health,Amazon.Co.Uk,17/10/2018,87.06,Other Equipment & Materials - General,Direct Marketers - Other,GPC
18/10/2018 to 19/11/2018,Public Health,Amzn Mktp UK Amazon.Co.Uk,18/10/2018,2.72,Stationery - General,Book Stores,GPC
18/10/2018 to 19/11/2018,Public Health,Amzn Mktp Uk*m83z57jv4 Am,13/11/2018,16.48,IT Equipment - Purchase - Hardware,Book Stores,GPC
18/10/2018 to 19/11/2018,Public Health,Amzn Mktp Uk*mt5mj9g74,25/10/2018,20.48,IT Equipment - General,Book Stores,GPC
18/10/2018 to 19/11/2018,Public Health,Amzn Mktp Uk*mt81r4ub4,05/11/2018,23.29,Books - General,Book Stores,GPC
18/10/2018 to 19/11/2018,Public Health,Amzn Mktp Uk*mt87a1j44 Am,19/10/2018,6.50,Stationery - General,Book Stores,GPC
18/10/2018 to 19/11/2018,Public Health,Amzn Mktp Uk*mt8m32vo4,26/10/2018,39.90,Books - General,Book Stores,GPC
18/10/2018 to 19/11/2018,Public Health,Bp Charnwood S/stn,08/11/2018,20.58,Other Equipment & Materials - General,Service Stations (with or without Ancillary Servic,GPC
18/10/2018 to 19/11/2018,Public Health,Facebk *u9yyygww32,09/11/2018,116.26,Advertising - General,Advertising Services,GPC
18/10/2018 to 19/11/2018,Public Health,Infection Preventi,29/10/2018,70.00,Other Services - General,Charitable and Social Service Organizations,GPC
18/10/2018 to 19/11/2018,Public Health,Linkedin-339*5886266,23/10/2018,32.05,Advertising - General,Continuity/Subscription Merchants,GPC
18/10/2018 to 19/11/2018,Public Health,Linkedin-341*4063676,01/11/2018,0.76,Advertising - General,Continuity/Subscription Merchants,GPC
18/10/2018 to 19/11/2018,Public Health,Makro Self Service,31/10/2018,47.96,Provisions - General,Wholesale Clubs,GPC
18/10/2018 to 19/11/2018,Public Health,Parking Leic Cc,02/11/2018,3.00,Subsistence - General,Government Services-Not Elsewhere Classified,GPC
18/10/2018 to 19/11/2018,Public Health,Paypal *tecobuy,07/11/2018,283.99,Other Equipment & Materials - General,Camera and Photographic Supply Stores,GPC
18/10/2018 to 19/11/2018,Public Health,Pret A Manger,18/10/2018,4.67,Contract Catering - General,"Eating Places, Restaurants",GPC
18/10/2018 to 19/11/2018,Public Health,Rcp Parking Ltd,09/11/2018,7.00,Subsistence - General,Automobile Parking Lots and Garages,GPC
18/10/2018 to 19/11/2018,Public Health,Sainsburys S/mkts,07/11/2018,25.00,Other Expenditure - General,"Grocery Stores, Supermarkets",GPC
18/10/2018 to 19/11/2018,Public Health,Sainsburys S/mkts,08/11/2018,16.00,Other Expenditure - General,"Grocery Stores, Supermarkets",GPC
18/10/2018 to 19/11/2018,Public Health,Sp * Ergo Desks,14/11/2018,337.50,Furniture - General,Computer Software Stores,GPC
18/10/2018 to 19/11/2018,Public Health,Sports Park Cafe,25/10/2018,2.55,Contract Catering - General,"Colleges, Universities, Professional Schools, and",GPC
18/10/2018 to 19/11/2018,Public Health,Sports Park Cafe,02/11/2018,3.70,Contract Catering - General,"Colleges, Universities, Professional Schools, and",GPC
18/10/2018 to 19/11/2018,Public Health,Spotify P082f67dfe,10/11/2018,8.33,Publicity/Marketing - General,"Digital Goods - Media, Books, Movies, Music",GPC
18/10/2018 to 19/11/2018,Public Health,The Print Company (Nor,19/10/2018,135.00,Printing - General,Miscellaneous Publishing and  Printing,GPC
18/10/2018 to 19/11/2018,Public Health,Trainline,23/10/2018,56.44,Public Transport -  Staff - General,Passenger Railways,GPC
18/10/2018 to 19/11/2018,Public Health,Trainline,31/10/2018,48.31,Public Transport -  Staff - General,Passenger Railways,GPC
18/10/2018 to 19/11/2018,Public Health,Trainline,31/10/2018,66.10,Public Transport -  Staff - General,Passenger Railways,GPC
18/10/2018 to 19/11/2018,Public Health,Trainline,09/11/2018,58.48,Public Transport -  Staff - General,Passenger Railways,GPC
18/10/2018 to 19/11/2018,Public Health,Trainline,14/11/2018,75.77,Public Transport -  Staff - General,Passenger Railways,GPC
18/10/2018 to 19/11/2018,Public Health,Vodafone Payg Mbb Topu,15/11/2018,25.00,Telephones - Mobile Phones,Telecommunication Service Including Local and Long,GPC
18/10/2018 to 19/11/2018,Public Health,Www.Bni.Eu,13/11/2018,15.00,Conference - General,Business Services-Not Elsewhere Classified,GPC
"**Amounts are net of VAT, except where VAT has not been reclaimed.",,,,,,,
